Body Name,Date Paid,Transaction Number,Amount,Supplier Name,Supplier Type,Expense Area,Cost Centre Description,Expense Type
Cambridgeshire County Council,07-May-20,51301364235,"-196,648.35",BORRAS CONSTRUCTION LTD,COMPANY,Community Hubs - Sawston,Community Hubs - Sawston,"New Construction, Conversion and Renovation"
Cambridgeshire County Council,21-May-20,51301362840,"-13,946.69",PUBLIC HEALTH ENGLAND,OTHER PUBLIC BODIES,SH STI - PH Sexual Health & Health Checks,SH STI  -  Chlamydia Screening - Laboratory contract,Professional Fees and Hired Services
Cambridgeshire County Council,14-May-20,51301368335,"-9,000.00",THE GABLES SPECIALIST NURSING HOME,CARE ESTABLISHMENT,Strategic Management - Adults,Adults Assistant Director,Nursing Care
Cambridgeshire County Council,14-May-20,51301368335,"-9,000.00",THE GABLES SPECIALIST NURSING HOME,CARE ESTABLISHMENT,Strategic Management - Adults,Adults Assistant Director,Nursing Care
Cambridgeshire County Council,14-May-20,51301368335,"-9,000.00",THE GABLES SPECIALIST NURSING HOME,CARE ESTABLISHMENT,Strategic Management - Adults,Adults Assistant Director,Nursing Care
Cambridgeshire County Council,14-May-20,51301368335,"-9,000.00",THE GABLES SPECIALIST NURSING HOME,CARE ESTABLISHMENT,Strategic Management - Adults,Adults Assistant Director,Nursing Care
Cambridgeshire County Council,14-May-20,51301368335,"-9,000.00",THE GABLES SPECIALIST NURSING HOME,CARE ESTABLISHMENT,Strategic Management - Adults,Adults Assistant Director,Nursing Care
Cambridgeshire County Council,14-May-20,51301368335,"-9,000.00",THE GABLES SPECIALIST NURSING HOME,CARE ESTABLISHMENT,Strategic Management - Adults,Adults Assistant Director,Nursing Care
Cambridgeshire County Council,14-May-20,51301368335,"-9,000.00",THE GABLES SPECIALIST NURSING HOME,CARE ESTABLISHMENT,Strategic Management - Adults,Adults Assistant Director,Nursing Care
Cambridgeshire County Council,14-May-20,51301368335,"-9,000.00",THE GABLES SPECIALIST NURSING HOME,CARE ESTABLISHMENT,Strategic Management - Adults,Adults Assistant Director,Nursing Care
Cambridgeshire County Council,21-May-20,51301328615,"-8,225.84",PUBLIC HEALTH ENGLAND,OTHER PUBLIC BODIES,SH STI - PH Sexual Health & Health Checks,SH STI  -  Chlamydia Screening - Laboratory contract,Professional Fees and Hired Services
Cambridgeshire County Council,14-May-20,51301368335,"-7,714.29",THE GABLES SPECIALIST NURSING HOME,CARE ESTABLISHMENT,Strategic Management - Adults,Adults Assistant Director,Nursing Care
Cambridgeshire County Council,18-May-20,51301372483,"-4,882.50",GUYATT HOUSE CARE LTD,CARE ESTABLISHMENT,LD - Young Adults Team,LD - Young Adults - Care,Supported Living
Cambridgeshire County Council,21-May-20,51301362830,"-4,111.79",PUBLIC HEALTH ENGLAND,OTHER PUBLIC BODIES,SH STI - PH Sexual Health & Health Checks,SH STI  -  Chlamydia Screening - Laboratory contract,Professional Fees and Hired Services
Cambridgeshire County Council,15-May-20,51301371461,"-3,960.00",COMPASS FOSTERING LONDON LIMITED,CARE ESTABLISHMENT,Unaccompanied Asylum Seeking Children,Unaccompanied Asylum Seeking Children <18,Asylum Seekers
Cambridgeshire County Council,19-May-20,51301374100,"-3,219.30",Redacted Personal Data,SERVICE USER,LD - South Locality - Cost of Care,LD - South Cambs - Special Needs,Direct Payments
Cambridgeshire County Council,19-May-20,51301374100,"-3,219.30",Redacted Personal Data,SERVICE USER,LD - South Locality - Cost of Care,LD - South Cambs - Special Needs,Direct Payments
Cambridgeshire County Council,19-May-20,51301374100,"-3,219.30",Redacted Personal Data,SERVICE USER,LD - South Locality - Cost of Care,LD - South Cambs - Special Needs,Direct Payments
Cambridgeshire County Council,19-May-20,51301374100,"-3,219.30",Redacted Personal Data,SERVICE USER,LD - South Locality - Cost of Care,LD - South Cambs - Special Needs,Direct Payments
Cambridgeshire County Council,19-May-20,51301374100,"-3,219.30",Redacted Personal Data,SERVICE USER,LD - South Locality - Cost of Care,LD - South Cambs - Special Needs,Direct Payments
Cambridgeshire County Council,27-May-20,51301375944,"-3,070.45",CARETECH COMMUNITY SERVICES LTD (161 WOOTTON RD),CARE ESTABLISHMENT,Unaccompanied Asylum Seeking Children,Unaccompanied Asylum Seeking Children <18,Asylum Seekers
Cambridgeshire County Council,21-May-20,51301142340,"-3,021.00",PUBLIC HEALTH ENGLAND,OTHER PUBLIC BODIES,SH STI - PH Sexual Health & Health Checks,SH STI  -  Chlamydia Screening - Laboratory contract,Professional Fees and Hired Services
Cambridgeshire County Council,19-May-20,51301373795,"-2,910.31",Redacted Personal Data,INDIVIDUAL,LD - South Locality - Cost of Care,LD - South Cambs - Special Needs,Direct Payments
Cambridgeshire County Council,19-May-20,51301373795,"-2,910.31",Redacted Personal Data,INDIVIDUAL,LD - South Locality - Cost of Care,LD - South Cambs - Special Needs,Direct Payments
Cambridgeshire County Council,19-May-20,51301373795,"-2,910.31",Redacted Personal Data,INDIVIDUAL,LD - South Locality - Cost of Care,LD - South Cambs - Special Needs,Direct Payments
Cambridgeshire County Council,19-May-20,51301373795,"-2,910.31",Redacted Personal Data,INDIVIDUAL,LD - South Locality - Cost of Care,LD - South Cambs - Special Needs,Direct Payments
Cambridgeshire County Council,19-May-20,51301373795,"-2,910.31",Redacted Personal Data,INDIVIDUAL,LD - South Locality - Cost of Care,LD - South Cambs - Special Needs,Direct Payments
Cambridgeshire County Council,13-May-20,51301352554,"-2,860.32",MLL Telecom Limited,TRADE SUPPLIER,CPSN Replacement,CPSN Replacement,IT Hardware
Cambridgeshire County Council,22-May-20,51301375588,"-2,843.52",PC HOMES,CARE ESTABLISHMENT,Unaccompanied Asylum Seeking Children,Unaccompanied Asylum Seeking Children <18,Asylum Seekers
Cambridgeshire County Council,19-May-20,51301374100,"-2,759.40",Redacted Personal Data,SERVICE USER,LD - South Locality - Cost of Care,LD - South Cambs - Special Needs,Direct Payments
Cambridgeshire County Council,22-May-20,51301375592,"-2,545.74",PC HOMES,CARE ESTABLISHMENT,Unaccompanied Asylum Seeking Children,Unaccompanied Asylum Seeking Children <18,Asylum Seekers
Cambridgeshire County Council,22-May-20,51301375585,"-2,545.74",PC HOMES,CARE ESTABLISHMENT,Unaccompanied Asylum Seeking Children,Unaccompanied Asylum Seeking Children <18,Asylum Seekers
Cambridgeshire County Council,19-May-20,51301374350,"-2,544.89",Redacted Personal Data,SERVICE USER,LD - South Locality - Cost of Care,LD - South Cambs - Care,Direct Payments
Cambridgeshire County Council,19-May-20,51301374350,"-2,544.89",Redacted Personal Data,SERVICE USER,LD - South Locality - Cost of Care,LD - South Cambs - Care,Direct Payments
Cambridgeshire County Council,19-May-20,51301374350,"-2,544.89",Redacted Personal Data,SERVICE USER,LD - South Locality - Cost of Care,LD - South Cambs - Care,Direct Payments
Cambridgeshire County Council,19-May-20,51301374350,"-2,544.89",Redacted Personal Data,SERVICE USER,LD - South Locality - Cost of Care,LD - South Cambs - Care,Direct Payments
Cambridgeshire County Council,19-May-20,51301374350,"-2,544.89",Redacted Personal Data,SERVICE USER,LD - South Locality - Cost of Care,LD - South Cambs - Care,Direct Payments
Cambridgeshire County Council,07-May-20,51301364457,"-2,529.20",ATLAS HOME SUPPORT,CARE ESTABLISHMENT,LD - South Locality - Cost of Care,LD - South Cambs - Care,Domiciliary Care
Cambridgeshire County Council,07-May-20,51301364457,"-2,529.20",ATLAS HOME SUPPORT,CARE ESTABLISHMENT,LD - South Locality - Cost of Care,LD - South Cambs - Care,Domiciliary Care
Cambridgeshire County Council,07-May-20,51301364457,"-2,529.20",ATLAS HOME SUPPORT,CARE ESTABLISHMENT,LD - South Locality - Cost of Care,LD - South Cambs - Care,Domiciliary Care
Cambridgeshire County Council,29-May-20,51301377871,"-2,520.04",Crown Social Care Ltd,CARE ESTABLISHMENT,Unaccompanied Asylum Seeking Children,Unaccompanied Asylum Seeking Children <18,Asylum Seekers
Cambridgeshire County Council,19-May-20,51301374351,"-2,520.00",Redacted Personal Data,SERVICE USER,LD - South Locality - Cost of Care,LD - South Cambs - Care,Direct Payments
Cambridgeshire County Council,19-May-20,51301374351,"-2,520.00",Redacted Personal Data,SERVICE USER,LD - South Locality - Cost of Care,LD - South Cambs - Care,Direct Payments
Cambridgeshire County Council,19-May-20,51301374351,"-2,520.00",Redacted Personal Data,SERVICE USER,LD - South Locality - Cost of Care,LD - South Cambs - Care,Direct Payments
Cambridgeshire County Council,19-May-20,51301374351,"-2,520.00",Redacted Personal Data,SERVICE USER,LD - South Locality - Cost of Care,LD - South Cambs - Care,Direct Payments
Cambridgeshire County Council,19-May-20,51301374351,"-2,520.00",Redacted Personal Data,SERVICE USER,LD - South Locality - Cost of Care,LD - South Cambs - Care,Direct Payments
Cambridgeshire County Council,19-May-20,51301373795,"-2,494.56",Redacted Personal Data,INDIVIDUAL,LD - South Locality - Cost of Care,LD - South Cambs - Special Needs,Direct Payments
Cambridgeshire County Council,26-May-20,51301375816,"-2,460.00",UNIQUE CARE HOMES,CARE ESTABLISHMENT,LAC Placements,Placements - residential homes,Agency Placements - Out of  County
Cambridgeshire County Council,07-May-20,51301363138,"-2,431.93",Women's Aid in Luton,COMPANY,Safeguarding Hunts and Fenland,C&F Safeguarding H&F - No Recourse to Public Funds,Professional Fees and Hired Services
Cambridgeshire County Council,15-May-20,51301370241,"-2,391.22",AFFINITY TRUST,CARE ESTABLISHMENT,LD - Hunts Locality - Cost of Care,LD - Huntingdonshire - Special Needs,Homecare
Cambridgeshire County Council,19-May-20,51301374535,"-2,354.10",Redacted Personal Data,SERVICE USER,LD - Hunts Locality - Cost of Care,LD - Huntingdonshire - Care,Direct Payments
Cambridgeshire County Council,19-May-20,51301374535,"-2,354.10",Redacted Personal Data,SERVICE USER,LD - Hunts Locality - Cost of Care,LD - Huntingdonshire - Care,Direct Payments
Cambridgeshire County Council,19-May-20,51301374535,"-2,354.10",Redacted Personal Data,SERVICE USER,LD - Hunts Locality - Cost of Care,LD - Huntingdonshire - Care,Direct Payments
Cambridgeshire County Council,19-May-20,51301374535,"-2,354.10",Redacted Personal Data,SERVICE USER,LD - Hunts Locality - Cost of Care,LD - Huntingdonshire - Care,Direct Payments
Cambridgeshire County Council,19-May-20,51301374535,"-2,354.10",Redacted Personal Data,SERVICE USER,LD - Hunts Locality - Cost of Care,LD - Huntingdonshire - Care,Direct Payments
Cambridgeshire County Council,29-May-20,51301377887,"-2,313.55",Starwrick Housing,CARE ESTABLISHMENT,Unaccompanied Asylum Seeking Children,Unaccompanied Asylum Seeking Children <18,Asylum Seekers
Cambridgeshire County Council,21-May-20,51301364056,"-2,309.18",NPS PETERBOROUGH LTD,TRADE SUPPLIER,Shire Hall Relocation,Shire Hall Relocation,Consultancy
Cambridgeshire County Council,29-May-20,51301377894,"-2,305.28",Starwrick Housing,CARE ESTABLISHMENT,Unaccompanied Asylum Seeking Children,Unaccompanied Asylum Seeking Children <18,Asylum Seekers
Cambridgeshire County Council,29-May-20,51301377890,"-2,305.28",Starwrick Housing,CARE ESTABLISHMENT,Unaccompanied Asylum Seeking Children,Unaccompanied Asylum Seeking Children <18,Asylum Seekers
Cambridgeshire County Council,11-May-20,51301354784,"-2,270.40",WEIGHTMANS LLP,TRADE SUPPLIER,Insurance Fund,Liability,Insurance Fund External
Cambridgeshire County Council,19-May-20,51301374350,"-2,181.33",Redacted Personal Data,SERVICE USER,LD - South Locality - Cost of Care,LD - South Cambs - Care,Direct Payments
Cambridgeshire County Council,19-May-20,51301374351,"-2,160.00",Redacted Personal Data,SERVICE USER,LD - South Locality - Cost of Care,LD - South Cambs - Care,Direct Payments
Cambridgeshire County Council,06-May-20,51301363995,"-2,154.60",Redacted Personal Data,SERVICE USER,LD - Hunts Locality - Cost of Care,LD - Huntingdonshire - Care,Direct Payments
Cambridgeshire County Council,06-May-20,51301363995,"-2,154.60",Redacted Personal Data,SERVICE USER,LD - Hunts Locality - Cost of Care,LD - Huntingdonshire - Care,Direct Payments
Cambridgeshire County Council,06-May-20,51301363995,"-2,154.60",Redacted Personal Data,SERVICE USER,LD - Hunts Locality - Cost of Care,LD - Huntingdonshire - Care,Direct Payments
Cambridgeshire County Council,06-May-20,51301363995,"-2,154.60",Redacted Personal Data,SERVICE USER,LD - Hunts Locality - Cost of Care,LD - Huntingdonshire - Care,Direct Payments
Cambridgeshire County Council,06-May-20,51301363995,"-2,154.60",Redacted Personal Data,SERVICE USER,LD - Hunts Locality - Cost of Care,LD - Huntingdonshire - Care,Direct Payments
Cambridgeshire County Council,06-May-20,51301363995,"-2,154.60",Redacted Personal Data,SERVICE USER,LD - Hunts Locality - Cost of Care,LD - Huntingdonshire - Care,Direct Payments
Cambridgeshire County Council,15-May-20,51301370241,"-2,049.62",AFFINITY TRUST,CARE ESTABLISHMENT,LD - Hunts Locality - Cost of Care,LD - Huntingdonshire - Special Needs,Homecare
Cambridgeshire County Council,19-May-20,51301374535,"-2,017.80",Redacted Personal Data,SERVICE USER,LD - Hunts Locality - Cost of Care,LD - Huntingdonshire - Care,Direct Payments
Cambridgeshire County Council,18-May-20,51301372749,"-1,986.66",TIGH NAVEEN (KISIMUL),CARE ESTABLISHMENT,LD - Hunts Locality - Cost of Care,LD - Huntingdonshire - Care,Supported Living
Cambridgeshire County Council,18-May-20,51301372749,"-1,986.66",TIGH NAVEEN (KISIMUL),CARE ESTABLISHMENT,LD - Hunts Locality - Cost of Care,LD - Huntingdonshire - Care,Supported Living
Cambridgeshire County Council,18-May-20,51301372749,"-1,986.66",TIGH NAVEEN (KISIMUL),CARE ESTABLISHMENT,LD - Hunts Locality - Cost of Care,LD - Huntingdonshire - Care,Supported Living
Cambridgeshire County Council,18-May-20,51301372749,"-1,986.66",TIGH NAVEEN (KISIMUL),CARE ESTABLISHMENT,LD - Hunts Locality - Cost of Care,LD - Huntingdonshire - Care,Supported Living
Cambridgeshire County Council,18-May-20,51301372749,"-1,986.66",TIGH NAVEEN (KISIMUL),CARE ESTABLISHMENT,LD - Hunts Locality - Cost of Care,LD - Huntingdonshire - Care,Supported Living
Cambridgeshire County Council,18-May-20,51301372749,"-1,986.66",TIGH NAVEEN (KISIMUL),CARE ESTABLISHMENT,LD - Hunts Locality - Cost of Care,LD - Huntingdonshire - Care,Supported Living
Cambridgeshire County Council,18-May-20,51301372749,"-1,986.66",TIGH NAVEEN (KISIMUL),CARE ESTABLISHMENT,LD - Hunts Locality - Cost of Care,LD - Huntingdonshire - Care,Supported Living
Cambridgeshire County Council,18-May-20,51301372749,"-1,986.66",TIGH NAVEEN (KISIMUL),CARE ESTABLISHMENT,LD - Hunts Locality - Cost of Care,LD - Huntingdonshire - Care,Supported Living
Cambridgeshire County Council,18-May-20,51301372749,"-1,986.66",TIGH NAVEEN (KISIMUL),CARE ESTABLISHMENT,LD - Hunts Locality - Cost of Care,LD - Huntingdonshire - Care,Supported Living
Cambridgeshire County Council,18-May-20,51301372749,"-1,986.66",TIGH NAVEEN (KISIMUL),CARE ESTABLISHMENT,LD - Hunts Locality - Cost of Care,LD - Huntingdonshire - Care,Supported Living
Cambridgeshire County Council,18-May-20,51301372749,"-1,986.66",TIGH NAVEEN (KISIMUL),CARE ESTABLISHMENT,LD - Hunts Locality - Cost of Care,LD - Huntingdonshire - Care,Supported Living
Cambridgeshire County Council,18-May-20,51301372749,"-1,986.66",TIGH NAVEEN (KISIMUL),CARE ESTABLISHMENT,LD - Hunts Locality - Cost of Care,LD - Huntingdonshire - Care,Supported Living
Cambridgeshire County Council,18-May-20,51301372749,"-1,986.66",TIGH NAVEEN (KISIMUL),CARE ESTABLISHMENT,LD - Hunts Locality - Cost of Care,LD - Huntingdonshire - Care,Supported Living
Cambridgeshire County Council,18-May-20,51301372749,"-1,986.66",TIGH NAVEEN (KISIMUL),CARE ESTABLISHMENT,LD - Hunts Locality - Cost of Care,LD - Huntingdonshire - Care,Supported Living
Cambridgeshire County Council,18-May-20,51301372749,"-1,986.66",TIGH NAVEEN (KISIMUL),CARE ESTABLISHMENT,LD - Hunts Locality - Cost of Care,LD - Huntingdonshire - Care,Supported Living
Cambridgeshire County Council,18-May-20,51301372749,"-1,986.66",TIGH NAVEEN (KISIMUL),CARE ESTABLISHMENT,LD - Hunts Locality - Cost of Care,LD - Huntingdonshire - Care,Supported Living
Cambridgeshire County Council,18-May-20,51301372749,"-1,986.66",TIGH NAVEEN (KISIMUL),CARE ESTABLISHMENT,LD - Hunts Locality - Cost of Care,LD - Huntingdonshire - Care,Supported Living
Cambridgeshire County Council,18-May-20,51301372749,"-1,986.66",TIGH NAVEEN (KISIMUL),CARE ESTABLISHMENT,LD - Hunts Locality - Cost of Care,LD - Huntingdonshire - Care,Supported Living
Cambridgeshire County Council,18-May-20,51301372749,"-1,986.66",TIGH NAVEEN (KISIMUL),CARE ESTABLISHMENT,LD - Hunts Locality - Cost of Care,LD - Huntingdonshire - Care,Supported Living
Cambridgeshire County Council,18-May-20,51301372749,"-1,986.66",TIGH NAVEEN (KISIMUL),CARE ESTABLISHMENT,LD - Hunts Locality - Cost of Care,LD - Huntingdonshire - Care,Supported Living
Cambridgeshire County Council,18-May-20,51301372749,"-1,986.66",TIGH NAVEEN (KISIMUL),CARE ESTABLISHMENT,LD - Hunts Locality - Cost of Care,LD - Huntingdonshire - Care,Supported Living
Cambridgeshire County Council,18-May-20,51301372749,"-1,986.66",TIGH NAVEEN (KISIMUL),CARE ESTABLISHMENT,LD - Hunts Locality - Cost of Care,LD - Huntingdonshire - Care,Supported Living
Cambridgeshire County Council,18-May-20,51301372749,"-1,986.66",TIGH NAVEEN (KISIMUL),CARE ESTABLISHMENT,LD - Hunts Locality - Cost of Care,LD - Huntingdonshire - Care,Supported Living
Cambridgeshire County Council,18-May-20,51301372749,"-1,986.66",TIGH NAVEEN (KISIMUL),CARE ESTABLISHMENT,LD - Hunts Locality - Cost of Care,LD - Huntingdonshire - Care,Supported Living
Cambridgeshire County Council,18-May-20,51301372749,"-1,986.66",TIGH NAVEEN (KISIMUL),CARE ESTABLISHMENT,LD - Hunts Locality - Cost of Care,LD - Huntingdonshire - Care,Supported Living
Cambridgeshire County Council,18-May-20,51301372749,"-1,986.66",TIGH NAVEEN (KISIMUL),CARE ESTABLISHMENT,LD - Hunts Locality - Cost of Care,LD - Huntingdonshire - Care,Supported Living
Cambridgeshire County Council,18-May-20,51301372749,"-1,986.66",TIGH NAVEEN (KISIMUL),CARE ESTABLISHMENT,LD - Hunts Locality - Cost of Care,LD - Huntingdonshire - Care,Supported Living
Cambridgeshire County Council,18-May-20,51301372749,"-1,986.66",TIGH NAVEEN (KISIMUL),CARE ESTABLISHMENT,LD - Hunts Locality - Cost of Care,LD - Huntingdonshire - Care,Supported Living
Cambridgeshire County Council,18-May-20,51301372749,"-1,986.66",TIGH NAVEEN (KISIMUL),CARE ESTABLISHMENT,LD - Hunts Locality - Cost of Care,LD - Huntingdonshire - Care,Supported Living
Cambridgeshire County Council,18-May-20,51301372749,"-1,986.66",TIGH NAVEEN (KISIMUL),CARE ESTABLISHMENT,LD - Hunts Locality - Cost of Care,LD - Huntingdonshire - Care,Supported Living
Cambridgeshire County Council,19-May-20,51301373869,"-1,979.50",Redacted Personal Data,SERVICE USER,LD - Hunts Locality - Cost of Care,LD - Huntingdonshire - Special Needs,Direct Payments
Cambridgeshire County Council,19-May-20,51301373869,"-1,979.50",Redacted Personal Data,SERVICE USER,LD - Hunts Locality - Cost of Care,LD - Huntingdonshire - Special Needs,Direct Payments
Cambridgeshire County Council,19-May-20,51301373869,"-1,979.50",Redacted Personal Data,SERVICE USER,LD - Hunts Locality - Cost of Care,LD - Huntingdonshire - Special Needs,Direct Payments
Cambridgeshire County Council,19-May-20,51301373869,"-1,979.50",Redacted Personal Data,SERVICE USER,LD - Hunts Locality - Cost of Care,LD - Huntingdonshire - Special Needs,Direct Payments
Cambridgeshire County Council,19-May-20,51301373869,"-1,979.50",Redacted Personal Data,SERVICE USER,LD - Hunts Locality - Cost of Care,LD - Huntingdonshire - Special Needs,Direct Payments
Cambridgeshire County Council,19-May-20,51301374350,"-1,919.83",Redacted Personal Data,SERVICE USER,LD - South Locality - Cost of Care,LD - South Cambs - Care,Direct Payments
Cambridgeshire County Council,19-May-20,51301374350,"-1,919.83",Redacted Personal Data,SERVICE USER,LD - South Locality - Cost of Care,LD - South Cambs - Care,Direct Payments
Cambridgeshire County Council,19-May-20,51301374350,"-1,919.83",Redacted Personal Data,SERVICE USER,LD - South Locality - Cost of Care,LD - South Cambs - Care,Direct Payments
Cambridgeshire County Council,19-May-20,51301374350,"-1,919.83",Redacted Personal Data,SERVICE USER,LD - South Locality - Cost of Care,LD - South Cambs - Care,Direct Payments
Cambridgeshire County Council,19-May-20,51301374350,"-1,919.83",Redacted Personal Data,SERVICE USER,LD - South Locality - Cost of Care,LD - South Cambs - Care,Direct Payments
Cambridgeshire County Council,19-May-20,51301374559,"-1,846.63",Redacted Personal Data,SERVICE USER,LD - South Locality - Cost of Care,LD - South Cambs - Care,Direct Payments
Cambridgeshire County Council,19-May-20,51301374559,"-1,846.63",Redacted Personal Data,SERVICE USER,LD - South Locality - Cost of Care,LD - South Cambs - Care,Direct Payments
Cambridgeshire County Council,19-May-20,51301374559,"-1,846.63",Redacted Personal Data,SERVICE USER,LD - South Locality - Cost of Care,LD - South Cambs - Care,Direct Payments
Cambridgeshire County Council,19-May-20,51301374559,"-1,846.63",Redacted Personal Data,SERVICE USER,LD - South Locality - Cost of Care,LD - South Cambs - Care,Direct Payments
Cambridgeshire County Council,19-May-20,51301374559,"-1,846.63",Redacted Personal Data,SERVICE USER,LD - South Locality - Cost of Care,LD - South Cambs - Care,Direct Payments
Cambridgeshire County Council,07-May-20,51301364375,"-1,790.27",DIMENSIONS (UK) LTD,CARE ESTABLISHMENT,LD - South Locality - Cost of Care,LD - South Cambs - Care,Domiciliary Care
Cambridgeshire County Council,07-May-20,51301364375,"-1,790.27",DIMENSIONS (UK) LTD,CARE ESTABLISHMENT,LD - South Locality - Cost of Care,LD - South Cambs - Care,Domiciliary Care
Cambridgeshire County Council,07-May-20,51301364375,"-1,790.27",DIMENSIONS (UK) LTD,CARE ESTABLISHMENT,LD - South Locality - Cost of Care,LD - South Cambs - Care,Domiciliary Care
Cambridgeshire County Council,07-May-20,51301364401,"-1,784.46",HUNTINGDON MENCAP LTD,CARE ESTABLISHMENT,LD - Hunts Locality - Cost of Care,LD - Huntingdonshire - Care,Domiciliary Care
Cambridgeshire County Council,07-May-20,51301364401,"-1,784.46",HUNTINGDON MENCAP LTD,CARE ESTABLISHMENT,LD - Hunts Locality - Cost of Care,LD - Huntingdonshire - Care,Domiciliary Care
Cambridgeshire County Council,07-May-20,51301364401,"-1,784.46",HUNTINGDON MENCAP LTD,CARE ESTABLISHMENT,LD - Hunts Locality - Cost of Care,LD - Huntingdonshire - Care,Domiciliary Care
Cambridgeshire County Council,26-May-20,51301375790,"-1,780.20",UNIQUE CARE HOMES,CARE ESTABLISHMENT,LAC Placements,Placements - residential homes,Agency Placements - Out of  County
Cambridgeshire County Council,27-May-20,51301011300,"-1,767.86",CARETECH COMMUNITY SERVICES LTD (161 WOOTTON RD),CARE ESTABLISHMENT,Unaccompanied Asylum Seeking Children,Unaccompanied Asylum Seeking Children <18,Asylum Seekers
Cambridgeshire County Council,19-May-20,51301374329,"-1,739.96",Redacted Personal Data,SERVICE USER,LD - East Locality - Cost of Care,LD - East Cambs - Care,Direct Payments
Cambridgeshire County Council,19-May-20,51301374329,"-1,739.96",Redacted Personal Data,SERVICE USER,LD - East Locality - Cost of Care,LD - East Cambs - Care,Direct Payments
Cambridgeshire County Council,19-May-20,51301374329,"-1,739.96",Redacted Personal Data,SERVICE USER,LD - East Locality - Cost of Care,LD - East Cambs - Care,Direct Payments
Cambridgeshire County Council,19-May-20,51301374329,"-1,739.96",Redacted Personal Data,SERVICE USER,LD - East Locality - Cost of Care,LD - East Cambs - Care,Direct Payments
Cambridgeshire County Council,19-May-20,51301374329,"-1,739.96",Redacted Personal Data,SERVICE USER,LD - East Locality - Cost of Care,LD - East Cambs - Care,Direct Payments
Cambridgeshire County Council,26-May-20,51300868623,"-1,738.50",ACTION FOR CHILDREN SERVICES LTD,CARE ESTABLISHMENT,Community Support Service,Community Support Service ECF,Grants to Voluntary Bodies
Cambridgeshire County Council,19-May-20,51301374359,"-1,731.36",Redacted Personal Data,SERVICE USER,LD - South Locality - Cost of Care,LD - South Cambs - Care,Direct Payments
Cambridgeshire County Council,19-May-20,51301374359,"-1,731.36",Redacted Personal Data,SERVICE USER,LD - South Locality - Cost of Care,LD - South Cambs - Care,Direct Payments
Cambridgeshire County Council,19-May-20,51301374359,"-1,731.36",Redacted Personal Data,SERVICE USER,LD - South Locality - Cost of Care,LD - South Cambs - Care,Direct Payments
Cambridgeshire County Council,19-May-20,51301374359,"-1,731.36",Redacted Personal Data,SERVICE USER,LD - South Locality - Cost of Care,LD - South Cambs - Care,Direct Payments
Cambridgeshire County Council,19-May-20,51301374359,"-1,731.36",Redacted Personal Data,SERVICE USER,LD - South Locality - Cost of Care,LD - South Cambs - Care,Direct Payments
Cambridgeshire County Council,19-May-20,51301373869,"-1,696.71",Redacted Personal Data,SERVICE USER,LD - Hunts Locality - Cost of Care,LD - Huntingdonshire - Special Needs,Direct Payments
Cambridgeshire County Council,19-May-20,51301374350,"-1,645.57",Redacted Personal Data,SERVICE USER,LD - South Locality - Cost of Care,LD - South Cambs - Care,Direct Payments
Cambridgeshire County Council,21-May-20,51301364731,"-1,637.59",NPS PETERBOROUGH LTD,TRADE SUPPLIER,Shire Hall Relocation,Shire Hall Relocation,Consultancy
Cambridgeshire County Council,18-May-20,51301372578,"-1,627.50",GUYATT HOUSE CARE LTD,CARE ESTABLISHMENT,LD - East Locality - Cost of Care,LD - East Cambs - Special Needs,Supported Living
Cambridgeshire County Council,19-May-20,51301374523,"-1,623.96",Redacted Personal Data,SERVICE USER,LD - South Locality - Cost of Care,LD - South Cambs - Care,Direct Payments
Cambridgeshire County Council,19-May-20,51301374523,"-1,623.96",Redacted Personal Data,SERVICE USER,LD - South Locality - Cost of Care,LD - South Cambs - Care,Direct Payments
Cambridgeshire County Council,19-May-20,51301374523,"-1,623.96",Redacted Personal Data,SERVICE USER,LD - South Locality - Cost of Care,LD - South Cambs - Care,Direct Payments
Cambridgeshire County Council,19-May-20,51301374523,"-1,623.96",Redacted Personal Data,SERVICE USER,LD - South Locality - Cost of Care,LD - South Cambs - Care,Direct Payments
Cambridgeshire County Council,19-May-20,51301374523,"-1,623.96",Redacted Personal Data,SERVICE USER,LD - South Locality - Cost of Care,LD - South Cambs - Care,Direct Payments
Cambridgeshire County Council,19-May-20,51301374160,"-1,589.48",Redacted Personal Data,FOSTER PARENT,LD - Hunts Locality - Cost of Care,LD - Huntingdonshire - Care,Direct Payments
Cambridgeshire County Council,19-May-20,51301374160,"-1,589.48",Redacted Personal Data,FOSTER PARENT,LD - Hunts Locality - Cost of Care,LD - Huntingdonshire - Care,Direct Payments
Cambridgeshire County Council,19-May-20,51301374160,"-1,589.48",Redacted Personal Data,FOSTER PARENT,LD - Hunts Locality - Cost of Care,LD - Huntingdonshire - Care,Direct Payments
Cambridgeshire County Council,19-May-20,51301374160,"-1,589.48",Redacted Personal Data,FOSTER PARENT,LD - Hunts Locality - Cost of Care,LD - Huntingdonshire - Care,Direct Payments
Cambridgeshire County Council,19-May-20,51301374160,"-1,589.48",Redacted Personal Data,FOSTER PARENT,LD - Hunts Locality - Cost of Care,LD - Huntingdonshire - Care,Direct Payments
Cambridgeshire County Council,28-May-20,51301362419,"-1,584.00",BIG GREEN BUS,TRADE SUPPLIER,Passenger Transport other,Cambridgeshire Future Transport,Support - subsidised bus routes
Cambridgeshire County Council,19-May-20,51301374559,"-1,582.82",Redacted Personal Data,SERVICE USER,LD - South Locality - Cost of Care,LD - South Cambs - Care,Direct Payments
Cambridgeshire County Council,19-May-20,51301374337,"-1,560.54",Redacted Personal Data,PARENT/GUARDIAN,Physical Disablity - Cost of Care,Countywide PD Service - Care,Direct Payments
Cambridgeshire County Council,19-May-20,51301374337,"-1,560.54",Redacted Personal Data,PARENT/GUARDIAN,Physical Disablity - Cost of Care,Countywide PD Service - Care,Direct Payments
Cambridgeshire County Council,19-May-20,51301374337,"-1,560.54",Redacted Personal Data,PARENT/GUARDIAN,Physical Disablity - Cost of Care,Countywide PD Service - Care,Direct Payments
Cambridgeshire County Council,19-May-20,51301374337,"-1,560.54",Redacted Personal Data,PARENT/GUARDIAN,Physical Disablity - Cost of Care,Countywide PD Service - Care,Direct Payments
Cambridgeshire County Council,19-May-20,51301374337,"-1,560.54",Redacted Personal Data,PARENT/GUARDIAN,Physical Disablity - Cost of Care,Countywide PD Service - Care,Direct Payments
Cambridgeshire County Council,13-May-20,51301367837,"-1,549.43",CONQUEST CARE HOMES PETERBOROUGH,CARE ESTABLISHMENT,LD - Fenland Locality - Cost of Care,LD - Fenland  - Care,Residential Care
Cambridgeshire County Council,13-May-20,51301367837,"-1,549.43",CONQUEST CARE HOMES PETERBOROUGH,CARE ESTABLISHMENT,LD - Fenland Locality - Cost of Care,LD - Fenland  - Care,Residential Care
Cambridgeshire County Council,13-May-20,51301367837,"-1,549.43",CONQUEST CARE HOMES PETERBOROUGH,CARE ESTABLISHMENT,LD - Fenland Locality - Cost of Care,LD - Fenland  - Care,Residential Care
Cambridgeshire County Council,13-May-20,51301367837,"-1,549.43",CONQUEST CARE HOMES PETERBOROUGH,CARE ESTABLISHMENT,LD - Fenland Locality - Cost of Care,LD - Fenland  - Care,Residential Care
Cambridgeshire County Council,13-May-20,51301367837,"-1,549.43",CONQUEST CARE HOMES PETERBOROUGH,CARE ESTABLISHMENT,LD - Fenland Locality - Cost of Care,LD - Fenland  - Care,Residential Care
Cambridgeshire County Council,13-May-20,51301367837,"-1,549.43",CONQUEST CARE HOMES PETERBOROUGH,CARE ESTABLISHMENT,LD - Fenland Locality - Cost of Care,LD - Fenland  - Care,Residential Care
Cambridgeshire County Council,13-May-20,51301367837,"-1,549.43",CONQUEST CARE HOMES PETERBOROUGH,CARE ESTABLISHMENT,LD - Fenland Locality - Cost of Care,LD - Fenland  - Care,Residential Care
Cambridgeshire County Council,13-May-20,51301367837,"-1,549.43",CONQUEST CARE HOMES PETERBOROUGH,CARE ESTABLISHMENT,LD - Fenland Locality - Cost of Care,LD - Fenland  - Care,Residential Care
Cambridgeshire County Council,13-May-20,51301367837,"-1,549.43",CONQUEST CARE HOMES PETERBOROUGH,CARE ESTABLISHMENT,LD - Fenland Locality - Cost of Care,LD - Fenland  - Care,Residential Care
Cambridgeshire County Council,13-May-20,51301367837,"-1,549.43",CONQUEST CARE HOMES PETERBOROUGH,CARE ESTABLISHMENT,LD - Fenland Locality - Cost of Care,LD - Fenland  - Care,Residential Care
Cambridgeshire County Council,13-May-20,51301367837,"-1,549.43",CONQUEST CARE HOMES PETERBOROUGH,CARE ESTABLISHMENT,LD - Fenland Locality - Cost of Care,LD - Fenland  - Care,Residential Care
Cambridgeshire County Council,13-May-20,51301367837,"-1,549.43",CONQUEST CARE HOMES PETERBOROUGH,CARE ESTABLISHMENT,LD - Fenland Locality - Cost of Care,LD - Fenland  - Care,Residential Care
Cambridgeshire County Council,13-May-20,51301367837,"-1,549.43",CONQUEST CARE HOMES PETERBOROUGH,CARE ESTABLISHMENT,LD - Fenland Locality - Cost of Care,LD - Fenland  - Care,Residential Care
Cambridgeshire County Council,13-May-20,51301367837,"-1,549.43",CONQUEST CARE HOMES PETERBOROUGH,CARE ESTABLISHMENT,LD - Fenland Locality - Cost of Care,LD - Fenland  - Care,Residential Care
Cambridgeshire County Council,13-May-20,51301367837,"-1,549.43",CONQUEST CARE HOMES PETERBOROUGH,CARE ESTABLISHMENT,LD - Fenland Locality - Cost of Care,LD - Fenland  - Care,Residential Care
Cambridgeshire County Council,13-May-20,51301367899,"-1,542.86",THE MANOR CHESHIRE HOME,CARE ESTABLISHMENT,Physical Disablity - Cost of Care,Countywide PD Service - Care,Residential Care
Cambridgeshire County Council,19-May-20,51301374212,"-1,541.16",Redacted Personal Data,SERVICE USER,LD - Young Adults Team,LD - Young Adults - Care,Direct Payments
Cambridgeshire County Council,19-May-20,51301374212,"-1,541.16",Redacted Personal Data,SERVICE USER,LD - Young Adults Team,LD - Young Adults - Care,Direct Payments
Cambridgeshire County Council,19-May-20,51301374212,"-1,541.16",Redacted Personal Data,SERVICE USER,LD - Young Adults Team,LD - Young Adults - Care,Direct Payments
Cambridgeshire County Council,19-May-20,51301374212,"-1,541.16",Redacted Personal Data,SERVICE USER,LD - Young Adults Team,LD - Young Adults - Care,Direct Payments
Cambridgeshire County Council,19-May-20,51301374212,"-1,541.16",Redacted Personal Data,SERVICE USER,LD - Young Adults Team,LD - Young Adults - Care,Direct Payments
Cambridgeshire County Council,07-May-20,51301364416,"-1,526.39",Ambito Care and Education,COMPANY,LD - South Locality - Cost of Care,LD - South Cambs - Care,Domiciliary Care
Cambridgeshire County Council,07-May-20,51301364416,"-1,526.39",Ambito Care and Education,COMPANY,LD - South Locality - Cost of Care,LD - South Cambs - Care,Domiciliary Care
Cambridgeshire County Council,07-May-20,51301364416,"-1,526.39",Ambito Care and Education,COMPANY,LD - South Locality - Cost of Care,LD - South Cambs - Care,Domiciliary Care
Cambridgeshire County Council,19-May-20,51301374338,"-1,519.97",Redacted Personal Data,SERVICE USER,LD - South Locality - Cost of Care,LD - South Cambs - Care,Direct Payments
Cambridgeshire County Council,19-May-20,51301374338,"-1,519.97",Redacted Personal Data,SERVICE USER,LD - South Locality - Cost of Care,LD - South Cambs - Care,Direct Payments
Cambridgeshire County Council,19-May-20,51301374338,"-1,519.97",Redacted Personal Data,SERVICE USER,LD - South Locality - Cost of Care,LD - South Cambs - Care,Direct Payments
Cambridgeshire County Council,19-May-20,51301374338,"-1,519.97",Redacted Personal Data,SERVICE USER,LD - South Locality - Cost of Care,LD - South Cambs - Care,Direct Payments
Cambridgeshire County Council,19-May-20,51301374338,"-1,519.97",Redacted Personal Data,SERVICE USER,LD - South Locality - Cost of Care,LD - South Cambs - Care,Direct Payments
Cambridgeshire County Council,19-May-20,51301374254,"-1,500.00",Redacted Personal Data,SERVICE USER,Physical Disablity - Cost of Care,Countywide PD Service - Care,Direct Payments
Cambridgeshire County Council,19-May-20,51301374254,"-1,500.00",Redacted Personal Data,SERVICE USER,Physical Disablity - Cost of Care,Countywide PD Service - Care,Direct Payments
Cambridgeshire County Council,19-May-20,51301374254,"-1,500.00",Redacted Personal Data,SERVICE USER,Physical Disablity - Cost of Care,Countywide PD Service - Care,Direct Payments
Cambridgeshire County Council,19-May-20,51301374254,"-1,500.00",Redacted Personal Data,SERVICE USER,Physical Disablity - Cost of Care,Countywide PD Service - Care,Direct Payments
Cambridgeshire County Council,19-May-20,51301374254,"-1,500.00",Redacted Personal Data,SERVICE USER,Physical Disablity - Cost of Care,Countywide PD Service - Care,Direct Payments
Cambridgeshire County Council,28-May-20,51301362417,"-1,494.00",BIG GREEN BUS,TRADE SUPPLIER,Passenger Transport other,Cambridgeshire Future Transport,Support - subsidised bus routes
Cambridgeshire County Council,19-May-20,51301374329,"-1,491.39",Redacted Personal Data,SERVICE USER,LD - East Locality - Cost of Care,LD - East Cambs - Care,Direct Payments
Cambridgeshire County Council,26-May-20,51301375839,"-1,491.00",LOCATE ACCOMMODATION,CARE ESTABLISHMENT,Unaccompanied Asylum Seeking Children,Unaccompanied Asylum Seeking Children <18,Asylum Seekers
Cambridgeshire County Council,26-May-20,51301375851,"-1,491.00",LOCATE ACCOMMODATION,CARE ESTABLISHMENT,Unaccompanied Asylum Seeking Children,Unaccompanied Asylum Seeking Children <18,Asylum Seekers
Cambridgeshire County Council,26-May-20,51301375863,"-1,491.00",LOCATE ACCOMMODATION,CARE ESTABLISHMENT,Unaccompanied Asylum Seeking Children,Unaccompanied Asylum Seeking Children <18,Asylum Seekers
Cambridgeshire County Council,26-May-20,51301375805,"-1,491.00",LOCATE ACCOMMODATION,CARE ESTABLISHMENT,Unaccompanied Asylum Seeking Children,Unaccompanied Asylum Seeking Children <18,Asylum Seekers
Cambridgeshire County Council,26-May-20,51301375855,"-1,491.00",LOCATE ACCOMMODATION,CARE ESTABLISHMENT,Unaccompanied Asylum Seeking Children,Unaccompanied Asylum Seeking Children <18,Asylum Seekers
Cambridgeshire County Council,26-May-20,51301375847,"-1,491.00",LOCATE ACCOMMODATION,CARE ESTABLISHMENT,Unaccompanied Asylum Seeking Children,Unaccompanied Asylum Seeking Children <18,Asylum Seekers
Cambridgeshire County Council,19-May-20,51301374359,"-1,484.02",Redacted Personal Data,SERVICE USER,LD - South Locality - Cost of Care,LD - South Cambs - Care,Direct Payments
Cambridgeshire County Council,19-May-20,51301374527,"-1,472.30",Redacted Personal Data,SERVICE USER,LD - South Locality - Cost of Care,LD - South Cambs - Care,Direct Payments
Cambridgeshire County Council,19-May-20,51301374527,"-1,472.30",Redacted Personal Data,SERVICE USER,LD - South Locality - Cost of Care,LD - South Cambs - Care,Direct Payments
Cambridgeshire County Council,19-May-20,51301374527,"-1,472.30",Redacted Personal Data,SERVICE USER,LD - South Locality - Cost of Care,LD - South Cambs - Care,Direct Payments
Cambridgeshire County Council,19-May-20,51301374527,"-1,472.30",Redacted Personal Data,SERVICE USER,LD - South Locality - Cost of Care,LD - South Cambs - Care,Direct Payments
Cambridgeshire County Council,19-May-20,51301374527,"-1,472.30",Redacted Personal Data,SERVICE USER,LD - South Locality - Cost of Care,LD - South Cambs - Care,Direct Payments
Cambridgeshire County Council,19-May-20,51301374099,"-1,460.32",Redacted Personal Data,PARENT/GUARDIAN,LD - Hunts Locality - Cost of Care,LD - Huntingdonshire - Care,Direct Payments
Cambridgeshire County Council,19-May-20,51301374099,"-1,460.32",Redacted Personal Data,PARENT/GUARDIAN,LD - Hunts Locality - Cost of Care,LD - Huntingdonshire - Care,Direct Payments
Cambridgeshire County Council,19-May-20,51301374099,"-1,460.32",Redacted Personal Data,PARENT/GUARDIAN,LD - Hunts Locality - Cost of Care,LD - Huntingdonshire - Care,Direct Payments
Cambridgeshire County Council,19-May-20,51301374099,"-1,460.32",Redacted Personal Data,PARENT/GUARDIAN,LD - Hunts Locality - Cost of Care,LD - Huntingdonshire - Care,Direct Payments
Cambridgeshire County Council,19-May-20,51301374099,"-1,460.32",Redacted Personal Data,PARENT/GUARDIAN,LD - Hunts Locality - Cost of Care,LD - Huntingdonshire - Care,Direct Payments
Cambridgeshire County Council,01-May-20,51301362941,"-1,460.00",Redacted Personal Data,INDIVIDUAL,Children's Disability Direct Payments,CSC Direct Payments,Direct Payments
Cambridgeshire County Council,27-May-20,51301375909,"-1,459.86",REED SPECIALIST RECRUITMENT LTD,TRADE SUPPLIER,Community Support Service,Community Support Service ECF,Grants to Voluntary Bodies
Cambridgeshire County Council,18-May-20,51301372693,"-1,457.73",MAYFIELD HEATH FARM,CARE ESTABLISHMENT,LD - Hunts Locality - Cost of Care,LD - Huntingdonshire - Care,Day Care
Cambridgeshire County Council,18-May-20,51301372693,"-1,457.73",MAYFIELD HEATH FARM,CARE ESTABLISHMENT,LD - Hunts Locality - Cost of Care,LD - Huntingdonshire - Care,Day Care
Cambridgeshire County Council,18-May-20,51301372693,"-1,457.73",MAYFIELD HEATH FARM,CARE ESTABLISHMENT,LD - Hunts Locality - Cost of Care,LD - Huntingdonshire - Care,Day Care
Cambridgeshire County Council,18-May-20,51301372693,"-1,457.73",MAYFIELD HEATH FARM,CARE ESTABLISHMENT,LD - Hunts Locality - Cost of Care,LD - Huntingdonshire - Care,Day Care
Cambridgeshire County Council,18-May-20,51301372693,"-1,457.73",MAYFIELD HEATH FARM,CARE ESTABLISHMENT,LD - Hunts Locality - Cost of Care,LD - Huntingdonshire - Care,Day Care
Cambridgeshire County Council,18-May-20,51301372693,"-1,457.73",MAYFIELD HEATH FARM,CARE ESTABLISHMENT,LD - Hunts Locality - Cost of Care,LD - Huntingdonshire - Care,Day Care
Cambridgeshire County Council,18-May-20,51301372693,"-1,457.73",MAYFIELD HEATH FARM,CARE ESTABLISHMENT,LD - Hunts Locality - Cost of Care,LD - Huntingdonshire - Care,Day Care
Cambridgeshire County Council,18-May-20,51301372693,"-1,457.73",MAYFIELD HEATH FARM,CARE ESTABLISHMENT,LD - Hunts Locality - Cost of Care,LD - Huntingdonshire - Care,Day Care
Cambridgeshire County Council,18-May-20,51301372693,"-1,457.73",MAYFIELD HEATH FARM,CARE ESTABLISHMENT,LD - Hunts Locality - Cost of Care,LD - Huntingdonshire - Care,Day Care
Cambridgeshire County Council,18-May-20,51301372693,"-1,457.73",MAYFIELD HEATH FARM,CARE ESTABLISHMENT,LD - Hunts Locality - Cost of Care,LD - Huntingdonshire - Care,Day Care
Cambridgeshire County Council,18-May-20,51301372693,"-1,457.73",MAYFIELD HEATH FARM,CARE ESTABLISHMENT,LD - Hunts Locality - Cost of Care,LD - Huntingdonshire - Care,Day Care
Cambridgeshire County Council,18-May-20,51301372693,"-1,457.73",MAYFIELD HEATH FARM,CARE ESTABLISHMENT,LD - Hunts Locality - Cost of Care,LD - Huntingdonshire - Care,Day Care
Cambridgeshire County Council,18-May-20,51301372693,"-1,457.73",MAYFIELD HEATH FARM,CARE ESTABLISHMENT,LD - Hunts Locality - Cost of Care,LD - Huntingdonshire - Care,Day Care
Cambridgeshire County Council,18-May-20,51301372693,"-1,457.73",MAYFIELD HEATH FARM,CARE ESTABLISHMENT,LD - Hunts Locality - Cost of Care,LD - Huntingdonshire - Care,Day Care
Cambridgeshire County Council,18-May-20,51301372693,"-1,457.73",MAYFIELD HEATH FARM,CARE ESTABLISHMENT,LD - Hunts Locality - Cost of Care,LD - Huntingdonshire - Care,Day Care
Cambridgeshire County Council,18-May-20,51301372693,"-1,457.73",MAYFIELD HEATH FARM,CARE ESTABLISHMENT,LD - Hunts Locality - Cost of Care,LD - Huntingdonshire - Care,Day Care
Cambridgeshire County Council,18-May-20,51301372693,"-1,457.73",MAYFIELD HEATH FARM,CARE ESTABLISHMENT,LD - Hunts Locality - Cost of Care,LD - Huntingdonshire - Care,Day Care
Cambridgeshire County Council,18-May-20,51301372693,"-1,457.73",MAYFIELD HEATH FARM,CARE ESTABLISHMENT,LD - Hunts Locality - Cost of Care,LD - Huntingdonshire - Care,Day Care
Cambridgeshire County Council,18-May-20,51301372693,"-1,457.73",MAYFIELD HEATH FARM,CARE ESTABLISHMENT,LD - Hunts Locality - Cost of Care,LD - Huntingdonshire - Care,Day Care
Cambridgeshire County Council,18-May-20,51301372693,"-1,457.73",MAYFIELD HEATH FARM,CARE ESTABLISHMENT,LD - Hunts Locality - Cost of Care,LD - Huntingdonshire - Care,Day Care
Cambridgeshire County Council,18-May-20,51301372693,"-1,457.73",MAYFIELD HEATH FARM,CARE ESTABLISHMENT,LD - Hunts Locality - Cost of Care,LD - Huntingdonshire - Care,Day Care
Cambridgeshire County Council,18-May-20,51301372693,"-1,457.73",MAYFIELD HEATH FARM,CARE ESTABLISHMENT,LD - Hunts Locality - Cost of Care,LD - Huntingdonshire - Care,Day Care
Cambridgeshire County Council,18-May-20,51301372693,"-1,457.73",MAYFIELD HEATH FARM,CARE ESTABLISHMENT,LD - Hunts Locality - Cost of Care,LD - Huntingdonshire - Care,Day Care
Cambridgeshire County Council,18-May-20,51301372693,"-1,457.73",MAYFIELD HEATH FARM,CARE ESTABLISHMENT,LD - Hunts Locality - Cost of Care,LD - Huntingdonshire - Care,Day Care
Cambridgeshire County Council,18-May-20,51301372693,"-1,457.73",MAYFIELD HEATH FARM,CARE ESTABLISHMENT,LD - Hunts Locality - Cost of Care,LD - Huntingdonshire - Care,Day Care
Cambridgeshire County Council,18-May-20,51301372693,"-1,457.73",MAYFIELD HEATH FARM,CARE ESTABLISHMENT,LD - Hunts Locality - Cost of Care,LD - Huntingdonshire - Care,Day Care
Cambridgeshire County Council,18-May-20,51301372693,"-1,457.73",MAYFIELD HEATH FARM,CARE ESTABLISHMENT,LD - Hunts Locality - Cost of Care,LD - Huntingdonshire - Care,Day Care
Cambridgeshire County Council,18-May-20,51301372693,"-1,457.73",MAYFIELD HEATH FARM,CARE ESTABLISHMENT,LD - Hunts Locality - Cost of Care,LD - Huntingdonshire - Care,Day Care
Cambridgeshire County Council,18-May-20,51301372693,"-1,457.73",MAYFIELD HEATH FARM,CARE ESTABLISHMENT,LD - Hunts Locality - Cost of Care,LD - Huntingdonshire - Care,Day Care
Cambridgeshire County Council,18-May-20,51301372693,"-1,457.73",MAYFIELD HEATH FARM,CARE ESTABLISHMENT,LD - Hunts Locality - Cost of Care,LD - Huntingdonshire - Care,Day Care
Cambridgeshire County Council,07-May-20,51301364457,"-1,445.26",ATLAS HOME SUPPORT,CARE ESTABLISHMENT,LD - South Locality - Cost of Care,LD - South Cambs - Care,Domiciliary Care
Cambridgeshire County Council,19-May-20,51301373908,"-1,442.02",Redacted Personal Data,SERVICE USER,LD - South Locality - Cost of Care,LD - South Cambs - Care,Direct Payments
Cambridgeshire County Council,19-May-20,51301373908,"-1,442.02",Redacted Personal Data,SERVICE USER,LD - South Locality - Cost of Care,LD - South Cambs - Care,Direct Payments
Cambridgeshire County Council,19-May-20,51301373908,"-1,442.02",Redacted Personal Data,SERVICE USER,LD - South Locality - Cost of Care,LD - South Cambs - Care,Direct Payments
Cambridgeshire County Council,19-May-20,51301373908,"-1,442.02",Redacted Personal Data,SERVICE USER,LD - South Locality - Cost of Care,LD - South Cambs - Care,Direct Payments
Cambridgeshire County Council,19-May-20,51301373908,"-1,442.02",Redacted Personal Data,SERVICE USER,LD - South Locality - Cost of Care,LD - South Cambs - Care,Direct Payments
Cambridgeshire County Council,26-May-20,51301375818,"-1,436.52",24/7 Support UK Limited,CARE ESTABLISHMENT,Unaccompanied Asylum Seeking Children,Unaccompanied Asylum Seeking Children <18,Asylum Seekers
Cambridgeshire County Council,19-May-20,51301374100,"-1,435.70",Redacted Personal Data,SERVICE USER,LD - South Locality - Cost of Care,LD - South Cambs - Special Needs,Direct Payments
Cambridgeshire County Council,19-May-20,51301374100,"-1,435.70",Redacted Personal Data,SERVICE USER,LD - South Locality - Cost of Care,LD - South Cambs - Special Needs,Direct Payments
Cambridgeshire County Council,19-May-20,51301374100,"-1,435.70",Redacted Personal Data,SERVICE USER,LD - South Locality - Cost of Care,LD - South Cambs - Special Needs,Direct Payments
Cambridgeshire County Council,19-May-20,51301374100,"-1,435.70",Redacted Personal Data,SERVICE USER,LD - South Locality - Cost of Care,LD - South Cambs - Special Needs,Direct Payments
Cambridgeshire County Council,19-May-20,51301374100,"-1,435.70",Redacted Personal Data,SERVICE USER,LD - South Locality - Cost of Care,LD - South Cambs - Special Needs,Direct Payments
Cambridgeshire County Council,13-May-20,51301367353,"-1,400.00",WOODLANDS CARE CENTRE,CARE ESTABLISHMENT,OPMH - Under 65,Older People Mental Health - Under 65's,Nursing Care
Cambridgeshire County Council,13-May-20,51301367353,"-1,400.00",WOODLANDS CARE CENTRE,CARE ESTABLISHMENT,OPMH - Under 65,Older People Mental Health - Under 65's,Nursing Care
Cambridgeshire County Council,13-May-20,51301367353,"-1,400.00",WOODLANDS CARE CENTRE,CARE ESTABLISHMENT,OPMH - Under 65,Older People Mental Health - Under 65's,Nursing Care
Cambridgeshire County Council,13-May-20,51301367353,"-1,400.00",WOODLANDS CARE CENTRE,CARE ESTABLISHMENT,OPMH - Under 65,Older People Mental Health - Under 65's,Nursing Care
Cambridgeshire County Council,13-May-20,51301367353,"-1,400.00",WOODLANDS CARE CENTRE,CARE ESTABLISHMENT,OPMH - Under 65,Older People Mental Health - Under 65's,Nursing Care
Cambridgeshire County Council,19-May-20,51301374474,"-1,398.82",Redacted Personal Data,SERVICE USER,LD - South Locality - Cost of Care,LD - South Cambs - Care,Direct Payments
Cambridgeshire County Council,19-May-20,51301374474,"-1,398.82",Redacted Personal Data,SERVICE USER,LD - South Locality - Cost of Care,LD - South Cambs - Care,Direct Payments
Cambridgeshire County Council,19-May-20,51301374474,"-1,398.82",Redacted Personal Data,SERVICE USER,LD - South Locality - Cost of Care,LD - South Cambs - Care,Direct Payments
Cambridgeshire County Council,19-May-20,51301374474,"-1,398.82",Redacted Personal Data,SERVICE USER,LD - South Locality - Cost of Care,LD - South Cambs - Care,Direct Payments
Cambridgeshire County Council,19-May-20,51301374474,"-1,398.82",Redacted Personal Data,SERVICE USER,LD - South Locality - Cost of Care,LD - South Cambs - Care,Direct Payments
Cambridgeshire County Council,15-May-20,51301370241,"-1,398.60",AFFINITY TRUST,CARE ESTABLISHMENT,LD - Hunts Locality - Cost of Care,LD - Huntingdonshire - Special Needs,Homecare
Cambridgeshire County Council,19-May-20,51301372987,"-1,395.02",TRANSITION CARE PETERBOROUGH LTD,CARE ESTABLISHMENT,LAC Placements,Placements - supported accommodation,Agency Placements - In County
Cambridgeshire County Council,19-May-20,51301374523,"-1,391.97",Redacted Personal Data,SERVICE USER,LD - South Locality - Cost of Care,LD - South Cambs - Care,Direct Payments
Cambridgeshire County Council,19-May-20,51301374363,"-1,379.42",Redacted Personal Data,SERVICE USER,LD - Hunts Locality - Cost of Care,LD - Huntingdonshire - Care,Direct Payments
Cambridgeshire County Council,19-May-20,51301374363,"-1,379.42",Redacted Personal Data,SERVICE USER,LD - Hunts Locality - Cost of Care,LD - Huntingdonshire - Care,Direct Payments
Cambridgeshire County Council,19-May-20,51301374363,"-1,379.42",Redacted Personal Data,SERVICE USER,LD - Hunts Locality - Cost of Care,LD - Huntingdonshire - Care,Direct Payments
Cambridgeshire County Council,19-May-20,51301374363,"-1,379.42",Redacted Personal Data,SERVICE USER,LD - Hunts Locality - Cost of Care,LD - Huntingdonshire - Care,Direct Payments
Cambridgeshire County Council,19-May-20,51301374363,"-1,379.42",Redacted Personal Data,SERVICE USER,LD - Hunts Locality - Cost of Care,LD - Huntingdonshire - Care,Direct Payments
Cambridgeshire County Council,26-May-20,51301375823,"-1,376.52",24/7 Support UK Limited,CARE ESTABLISHMENT,Unaccompanied Asylum Seeking Children,Unaccompanied Asylum Seeking Children <18,Asylum Seekers
Cambridgeshire County Council,19-May-20,51301374160,"-1,362.41",Redacted Personal Data,FOSTER PARENT,LD - Hunts Locality - Cost of Care,LD - Huntingdonshire - Care,Direct Payments
Cambridgeshire County Council,19-May-20,51301374337,"-1,337.61",Redacted Personal Data,PARENT/GUARDIAN,Physical Disablity - Cost of Care,Countywide PD Service - Care,Direct Payments
Cambridgeshire County Council,26-May-20,51300844147,"-1,335.00",ACTION FOR CHILDREN SERVICES LTD,CARE ESTABLISHMENT,Community Support Service,Community Support Service ECF,Grants to Voluntary Bodies
Cambridgeshire County Council,28-May-20,51301377745,"-1,328.17",DEVON & CORNWALL AUTISTIC COMMUNITY TRUST T/A SPECTRUM,TRUST (OTHER),LD - South Locality - Cost of Care,LD - South Cambs - Care,Day Care
Cambridgeshire County Council,28-May-20,51301377745,"-1,328.17",DEVON & CORNWALL AUTISTIC COMMUNITY TRUST T/A SPECTRUM,TRUST (OTHER),LD - South Locality - Cost of Care,LD - South Cambs - Care,Day Care
Cambridgeshire County Council,28-May-20,51301377745,"-1,328.17",DEVON & CORNWALL AUTISTIC COMMUNITY TRUST T/A SPECTRUM,TRUST (OTHER),LD - South Locality - Cost of Care,LD - South Cambs - Care,Day Care
Cambridgeshire County Council,28-May-20,51301377745,"-1,328.17",DEVON & CORNWALL AUTISTIC COMMUNITY TRUST T/A SPECTRUM,TRUST (OTHER),LD - South Locality - Cost of Care,LD - South Cambs - Care,Day Care
Cambridgeshire County Council,28-May-20,51301377745,"-1,328.17",DEVON & CORNWALL AUTISTIC COMMUNITY TRUST T/A SPECTRUM,TRUST (OTHER),LD - South Locality - Cost of Care,LD - South Cambs - Care,Day Care
Cambridgeshire County Council,28-May-20,51301377745,"-1,328.17",DEVON & CORNWALL AUTISTIC COMMUNITY TRUST T/A SPECTRUM,TRUST (OTHER),LD - South Locality - Cost of Care,LD - South Cambs - Care,Day Care
Cambridgeshire County Council,28-May-20,51301377745,"-1,328.17",DEVON & CORNWALL AUTISTIC COMMUNITY TRUST T/A SPECTRUM,TRUST (OTHER),LD - South Locality - Cost of Care,LD - South Cambs - Care,Day Care
Cambridgeshire County Council,28-May-20,51301377745,"-1,328.17",DEVON & CORNWALL AUTISTIC COMMUNITY TRUST T/A SPECTRUM,TRUST (OTHER),LD - South Locality - Cost of Care,LD - South Cambs - Care,Day Care
Cambridgeshire County Council,28-May-20,51301377745,"-1,328.17",DEVON & CORNWALL AUTISTIC COMMUNITY TRUST T/A SPECTRUM,TRUST (OTHER),LD - South Locality - Cost of Care,LD - South Cambs - Care,Day Care
Cambridgeshire County Council,28-May-20,51301377745,"-1,328.17",DEVON & CORNWALL AUTISTIC COMMUNITY TRUST T/A SPECTRUM,TRUST (OTHER),LD - South Locality - Cost of Care,LD - South Cambs - Care,Day Care
Cambridgeshire County Council,28-May-20,51301377745,"-1,328.17",DEVON & CORNWALL AUTISTIC COMMUNITY TRUST T/A SPECTRUM,TRUST (OTHER),LD - South Locality - Cost of Care,LD - South Cambs - Care,Day Care
Cambridgeshire County Council,28-May-20,51301377745,"-1,328.17",DEVON & CORNWALL AUTISTIC COMMUNITY TRUST T/A SPECTRUM,TRUST (OTHER),LD - South Locality - Cost of Care,LD - South Cambs - Care,Day Care
Cambridgeshire County Council,28-May-20,51301377745,"-1,328.17",DEVON & CORNWALL AUTISTIC COMMUNITY TRUST T/A SPECTRUM,TRUST (OTHER),LD - South Locality - Cost of Care,LD - South Cambs - Care,Day Care
Cambridgeshire County Council,28-May-20,51301377745,"-1,328.17",DEVON & CORNWALL AUTISTIC COMMUNITY TRUST T/A SPECTRUM,TRUST (OTHER),LD - South Locality - Cost of Care,LD - South Cambs - Care,Day Care
Cambridgeshire County Council,28-May-20,51301377745,"-1,328.17",DEVON & CORNWALL AUTISTIC COMMUNITY TRUST T/A SPECTRUM,TRUST (OTHER),LD - South Locality - Cost of Care,LD - South Cambs - Care,Day Care
Cambridgeshire County Council,28-May-20,51301377745,"-1,328.17",DEVON & CORNWALL AUTISTIC COMMUNITY TRUST T/A SPECTRUM,TRUST (OTHER),LD - South Locality - Cost of Care,LD - South Cambs - Care,Day Care
Cambridgeshire County Council,28-May-20,51301377745,"-1,328.17",DEVON & CORNWALL AUTISTIC COMMUNITY TRUST T/A SPECTRUM,TRUST (OTHER),LD - South Locality - Cost of Care,LD - South Cambs - Care,Day Care
Cambridgeshire County Council,28-May-20,51301377745,"-1,328.17",DEVON & CORNWALL AUTISTIC COMMUNITY TRUST T/A SPECTRUM,TRUST (OTHER),LD - South Locality - Cost of Care,LD - South Cambs - Care,Day Care
Cambridgeshire County Council,28-May-20,51301377745,"-1,328.17",DEVON & CORNWALL AUTISTIC COMMUNITY TRUST T/A SPECTRUM,TRUST (OTHER),LD - South Locality - Cost of Care,LD - South Cambs - Care,Day Care
Cambridgeshire County Council,28-May-20,51301377745,"-1,328.17",DEVON & CORNWALL AUTISTIC COMMUNITY TRUST T/A SPECTRUM,TRUST (OTHER),LD - South Locality - Cost of Care,LD - South Cambs - Care,Day Care
Cambridgeshire County Council,28-May-20,51301377745,"-1,328.17",DEVON & CORNWALL AUTISTIC COMMUNITY TRUST T/A SPECTRUM,TRUST (OTHER),LD - South Locality - Cost of Care,LD - South Cambs - Care,Day Care
Cambridgeshire County Council,28-May-20,51301377745,"-1,328.17",DEVON & CORNWALL AUTISTIC COMMUNITY TRUST T/A SPECTRUM,TRUST (OTHER),LD - South Locality - Cost of Care,LD - South Cambs - Care,Day Care
Cambridgeshire County Council,28-May-20,51301377745,"-1,328.17",DEVON & CORNWALL AUTISTIC COMMUNITY TRUST T/A SPECTRUM,TRUST (OTHER),LD - South Locality - Cost of Care,LD - South Cambs - Care,Day Care
Cambridgeshire County Council,28-May-20,51301377745,"-1,328.17",DEVON & CORNWALL AUTISTIC COMMUNITY TRUST T/A SPECTRUM,TRUST (OTHER),LD - South Locality - Cost of Care,LD - South Cambs - Care,Day Care
Cambridgeshire County Council,28-May-20,51301377745,"-1,328.17",DEVON & CORNWALL AUTISTIC COMMUNITY TRUST T/A SPECTRUM,TRUST (OTHER),LD - South Locality - Cost of Care,LD - South Cambs - Care,Day Care
Cambridgeshire County Council,28-May-20,51301377745,"-1,328.17",DEVON & CORNWALL AUTISTIC COMMUNITY TRUST T/A SPECTRUM,TRUST (OTHER),LD - South Locality - Cost of Care,LD - South Cambs - Care,Day Care
Cambridgeshire County Council,28-May-20,51301377745,"-1,328.17",DEVON & CORNWALL AUTISTIC COMMUNITY TRUST T/A SPECTRUM,TRUST (OTHER),LD - South Locality - Cost of Care,LD - South Cambs - Care,Day Care
Cambridgeshire County Council,28-May-20,51301377745,"-1,328.17",DEVON & CORNWALL AUTISTIC COMMUNITY TRUST T/A SPECTRUM,TRUST (OTHER),LD - South Locality - Cost of Care,LD - South Cambs - Care,Day Care
Cambridgeshire County Council,28-May-20,51301377745,"-1,328.17",DEVON & CORNWALL AUTISTIC COMMUNITY TRUST T/A SPECTRUM,TRUST (OTHER),LD - South Locality - Cost of Care,LD - South Cambs - Care,Day Care
Cambridgeshire County Council,28-May-20,51301377745,"-1,328.17",DEVON & CORNWALL AUTISTIC COMMUNITY TRUST T/A SPECTRUM,TRUST (OTHER),LD - South Locality - Cost of Care,LD - South Cambs - Care,Day Care
Cambridgeshire County Council,28-May-20,51301377745,"-1,328.17",DEVON & CORNWALL AUTISTIC COMMUNITY TRUST T/A SPECTRUM,TRUST (OTHER),LD - South Locality - Cost of Care,LD - South Cambs - Care,Day Care
Cambridgeshire County Council,28-May-20,51301377745,"-1,328.17",DEVON & CORNWALL AUTISTIC COMMUNITY TRUST T/A SPECTRUM,TRUST (OTHER),LD - South Locality - Cost of Care,LD - South Cambs - Care,Day Care
Cambridgeshire County Council,28-May-20,51301377745,"-1,328.17",DEVON & CORNWALL AUTISTIC COMMUNITY TRUST T/A SPECTRUM,TRUST (OTHER),LD - South Locality - Cost of Care,LD - South Cambs - Care,Day Care
Cambridgeshire County Council,28-May-20,51301377745,"-1,328.17",DEVON & CORNWALL AUTISTIC COMMUNITY TRUST T/A SPECTRUM,TRUST (OTHER),LD - South Locality - Cost of Care,LD - South Cambs - Care,Day Care
Cambridgeshire County Council,28-May-20,51301377745,"-1,328.17",DEVON & CORNWALL AUTISTIC COMMUNITY TRUST T/A SPECTRUM,TRUST (OTHER),LD - South Locality - Cost of Care,LD - South Cambs - Care,Day Care
Cambridgeshire County Council,28-May-20,51301377745,"-1,328.17",DEVON & CORNWALL AUTISTIC COMMUNITY TRUST T/A SPECTRUM,TRUST (OTHER),LD - South Locality - Cost of Care,LD - South Cambs - Care,Day Care
Cambridgeshire County Council,28-May-20,51301377745,"-1,328.17",DEVON & CORNWALL AUTISTIC COMMUNITY TRUST T/A SPECTRUM,TRUST (OTHER),LD - South Locality - Cost of Care,LD - South Cambs - Care,Day Care
Cambridgeshire County Council,28-May-20,51301377745,"-1,328.17",DEVON & CORNWALL AUTISTIC COMMUNITY TRUST T/A SPECTRUM,TRUST (OTHER),LD - South Locality - Cost of Care,LD - South Cambs - Care,Day Care
Cambridgeshire County Council,28-May-20,51301377745,"-1,328.17",DEVON & CORNWALL AUTISTIC COMMUNITY TRUST T/A SPECTRUM,TRUST (OTHER),LD - South Locality - Cost of Care,LD - South Cambs - Care,Day Care
Cambridgeshire County Council,28-May-20,51301377745,"-1,328.17",DEVON & CORNWALL AUTISTIC COMMUNITY TRUST T/A SPECTRUM,TRUST (OTHER),LD - South Locality - Cost of Care,LD - South Cambs - Care,Day Care
Cambridgeshire County Council,19-May-20,51301374212,"-1,320.99",Redacted Personal Data,SERVICE USER,LD - Young Adults Team,LD - Young Adults - Care,Direct Payments
Cambridgeshire County Council,14-May-20,51301368411,"-1,316.88",THE MARBROOK CENTRE,CARE ESTABLISHMENT,OPMH - Hunts & Fens,Older People Mental Health Fenland,Nursing Care
Cambridgeshire County Council,07-May-20,51301364402,"-1,307.15",Ambito Care and Education,COMPANY,LD - South Locality - Cost of Care,LD - South Cambs - Care,Domiciliary Care
Cambridgeshire County Council,07-May-20,51301364402,"-1,307.15",Ambito Care and Education,COMPANY,LD - South Locality - Cost of Care,LD - South Cambs - Care,Domiciliary Care
Cambridgeshire County Council,07-May-20,51301364402,"-1,307.15",Ambito Care and Education,COMPANY,LD - South Locality - Cost of Care,LD - South Cambs - Care,Domiciliary Care
Cambridgeshire County Council,07-May-20,51301364435,"-1,305.71",DUNAMIS SOCIAL CARE,CARE ESTABLISHMENT,Physical Disablity - Cost of Care,Countywide PD Service - Care,Domiciliary Care
Cambridgeshire County Council,07-May-20,51301364435,"-1,305.71",DUNAMIS SOCIAL CARE,CARE ESTABLISHMENT,Physical Disablity - Cost of Care,Countywide PD Service - Care,Domiciliary Care
Cambridgeshire County Council,07-May-20,51301364435,"-1,305.71",DUNAMIS SOCIAL CARE,CARE ESTABLISHMENT,Physical Disablity - Cost of Care,Countywide PD Service - Care,Domiciliary Care
Cambridgeshire County Council,19-May-20,51301374338,"-1,302.83",Redacted Personal Data,SERVICE USER,LD - South Locality - Cost of Care,LD - South Cambs - Care,Direct Payments
Cambridgeshire County Council,13-May-20,51301367367,"-1,300.00",BARCHESTER HEALTHCARE HOMES LTD,CARE ESTABLISHMENT,OP - East Cambs Locality - Cost of Care,East Cambs - O P Team - Care,Nursing Care
Cambridgeshire County Council,13-May-20,51301367367,"-1,300.00",BARCHESTER HEALTHCARE HOMES LTD,CARE ESTABLISHMENT,OP - East Cambs Locality - Cost of Care,East Cambs - O P Team - Care,Nursing Care
Cambridgeshire County Council,13-May-20,51301367367,"-1,300.00",BARCHESTER HEALTHCARE HOMES LTD,CARE ESTABLISHMENT,OP - East Cambs Locality - Cost of Care,East Cambs - O P Team - Care,Nursing Care
Cambridgeshire County Council,13-May-20,51301367367,"-1,300.00",BARCHESTER HEALTHCARE HOMES LTD,CARE ESTABLISHMENT,OP - East Cambs Locality - Cost of Care,East Cambs - O P Team - Care,Nursing Care
Cambridgeshire County Council,13-May-20,51301367367,"-1,300.00",BARCHESTER HEALTHCARE HOMES LTD,CARE ESTABLISHMENT,OP - East Cambs Locality - Cost of Care,East Cambs - O P Team - Care,Nursing Care
Cambridgeshire County Council,13-May-20,51301367367,"-1,300.00",BARCHESTER HEALTHCARE HOMES LTD,CARE ESTABLISHMENT,OP - East Cambs Locality - Cost of Care,East Cambs - O P Team - Care,Nursing Care
Cambridgeshire County Council,13-May-20,51301367367,"-1,300.00",BARCHESTER HEALTHCARE HOMES LTD,CARE ESTABLISHMENT,OP - East Cambs Locality - Cost of Care,East Cambs - O P Team - Care,Nursing Care
Cambridgeshire County Council,13-May-20,51301367691,"-1,289.32",CONQUEST CARE HOMES PETERBOROUGH,CARE ESTABLISHMENT,LD - Hunts Locality - Cost of Care,LD - Huntingdonshire - Care,Residential Care
Cambridgeshire County Council,13-May-20,51301367691,"-1,289.32",CONQUEST CARE HOMES PETERBOROUGH,CARE ESTABLISHMENT,LD - Hunts Locality - Cost of Care,LD - Huntingdonshire - Care,Residential Care
Cambridgeshire County Council,13-May-20,51301367691,"-1,289.32",CONQUEST CARE HOMES PETERBOROUGH,CARE ESTABLISHMENT,LD - Hunts Locality - Cost of Care,LD - Huntingdonshire - Care,Residential Care
Cambridgeshire County Council,13-May-20,51301367691,"-1,289.32",CONQUEST CARE HOMES PETERBOROUGH,CARE ESTABLISHMENT,LD - Hunts Locality - Cost of Care,LD - Huntingdonshire - Care,Residential Care
Cambridgeshire County Council,13-May-20,51301367691,"-1,289.32",CONQUEST CARE HOMES PETERBOROUGH,CARE ESTABLISHMENT,LD - Hunts Locality - Cost of Care,LD - Huntingdonshire - Care,Residential Care
Cambridgeshire County Council,13-May-20,51301367691,"-1,289.32",CONQUEST CARE HOMES PETERBOROUGH,CARE ESTABLISHMENT,LD - Hunts Locality - Cost of Care,LD - Huntingdonshire - Care,Residential Care
Cambridgeshire County Council,13-May-20,51301367691,"-1,289.32",CONQUEST CARE HOMES PETERBOROUGH,CARE ESTABLISHMENT,LD - Hunts Locality - Cost of Care,LD - Huntingdonshire - Care,Residential Care
Cambridgeshire County Council,19-May-20,51301373960,"-1,287.63",Redacted Personal Data,SERVICE USER,LD - South Locality - Cost of Care,LD - South Cambs - Care,Direct Payments
Cambridgeshire County Council,19-May-20,51301373960,"-1,287.63",Redacted Personal Data,SERVICE USER,LD - South Locality - Cost of Care,LD - South Cambs - Care,Direct Payments
Cambridgeshire County Council,19-May-20,51301373960,"-1,287.63",Redacted Personal Data,SERVICE USER,LD - South Locality - Cost of Care,LD - South Cambs - Care,Direct Payments
Cambridgeshire County Council,19-May-20,51301373960,"-1,287.63",Redacted Personal Data,SERVICE USER,LD - South Locality - Cost of Care,LD - South Cambs - Care,Direct Payments
Cambridgeshire County Council,19-May-20,51301373960,"-1,287.63",Redacted Personal Data,SERVICE USER,LD - South Locality - Cost of Care,LD - South Cambs - Care,Direct Payments
Cambridgeshire County Council,19-May-20,51301374254,"-1,285.71",Redacted Personal Data,SERVICE USER,Physical Disablity - Cost of Care,Countywide PD Service - Care,Direct Payments
Cambridgeshire County Council,07-May-20,51301364608,"-1,262.20",VOYAGE,CARE ESTABLISHMENT,LD - South Locality - Cost of Care,LD - South Cambs - Care,Domiciliary Care
Cambridgeshire County Council,07-May-20,51301364608,"-1,262.20",VOYAGE,CARE ESTABLISHMENT,LD - South Locality - Cost of Care,LD - South Cambs - Care,Domiciliary Care
Cambridgeshire County Council,07-May-20,51301364608,"-1,262.20",VOYAGE,CARE ESTABLISHMENT,LD - South Locality - Cost of Care,LD - South Cambs - Care,Domiciliary Care
Cambridgeshire County Council,19-May-20,51301374527,"-1,261.97",Redacted Personal Data,SERVICE USER,LD - South Locality - Cost of Care,LD - South Cambs - Care,Direct Payments
Cambridgeshire County Council,19-May-20,51301373937,"-1,260.08",Redacted Personal Data,INDIVIDUAL,AMH - Hunts & Fens,Hunts Mental Health Team,Direct Payments
Cambridgeshire County Council,19-May-20,51301373937,"-1,260.08",Redacted Personal Data,INDIVIDUAL,AMH - Hunts & Fens,Hunts Mental Health Team,Direct Payments
Cambridgeshire County Council,19-May-20,51301373937,"-1,260.08",Redacted Personal Data,INDIVIDUAL,AMH - Hunts & Fens,Hunts Mental Health Team,Direct Payments
Cambridgeshire County Council,19-May-20,51301373937,"-1,260.08",Redacted Personal Data,INDIVIDUAL,AMH - Hunts & Fens,Hunts Mental Health Team,Direct Payments
Cambridgeshire County Council,19-May-20,51301373937,"-1,260.08",Redacted Personal Data,INDIVIDUAL,AMH - Hunts & Fens,Hunts Mental Health Team,Direct Payments
Cambridgeshire County Council,18-May-20,51301372865,"-1,260.00",Elite care,CARE ESTABLISHMENT,Unaccompanied Asylum Seeking Children,Unaccompanied Asylum Seeking Children <18,Asylum Seekers
Cambridgeshire County Council,18-May-20,51301372859,"-1,260.00",Elite care,CARE ESTABLISHMENT,Unaccompanied Asylum Seeking Children,Unaccompanied Asylum Seeking Children <18,Asylum Seekers
Cambridgeshire County Council,18-May-20,51301372862,"-1,260.00",Elite care,CARE ESTABLISHMENT,Unaccompanied Asylum Seeking Children,Unaccompanied Asylum Seeking Children <18,Asylum Seekers
Cambridgeshire County Council,19-May-20,51301374099,"-1,251.70",Redacted Personal Data,PARENT/GUARDIAN,LD - Hunts Locality - Cost of Care,LD - Huntingdonshire - Care,Direct Payments
Cambridgeshire County Council,19-May-20,51301373747,"-1,250.00",Redacted Personal Data,INDIVIDUAL,Physical Disablity - Cost of Care,Countywide PD Service - Care,Direct Payments
Cambridgeshire County Council,19-May-20,51301373747,"-1,250.00",Redacted Personal Data,INDIVIDUAL,Physical Disablity - Cost of Care,Countywide PD Service - Care,Direct Payments
Cambridgeshire County Council,19-May-20,51301373747,"-1,250.00",Redacted Personal Data,INDIVIDUAL,Physical Disablity - Cost of Care,Countywide PD Service - Care,Direct Payments
Cambridgeshire County Council,19-May-20,51301373747,"-1,250.00",Redacted Personal Data,INDIVIDUAL,Physical Disablity - Cost of Care,Countywide PD Service - Care,Direct Payments
Cambridgeshire County Council,19-May-20,51301373747,"-1,250.00",Redacted Personal Data,INDIVIDUAL,Physical Disablity - Cost of Care,Countywide PD Service - Care,Direct Payments
Cambridgeshire County Council,19-May-20,51301373908,"-1,236.02",Redacted Personal Data,SERVICE USER,LD - South Locality - Cost of Care,LD - South Cambs - Care,Direct Payments
Cambridgeshire County Council,13-May-20,51301367259,"-1,234.44",WOODLANDS CARE CENTRE,CARE ESTABLISHMENT,OP - East Cambs Locality - Cost of Care,East Cambs - O P Team - Care,Nursing Care
Cambridgeshire County Council,13-May-20,51301367259,"-1,234.44",WOODLANDS CARE CENTRE,CARE ESTABLISHMENT,OP - East Cambs Locality - Cost of Care,East Cambs - O P Team - Care,Nursing Care
Cambridgeshire County Council,13-May-20,51301367259,"-1,234.44",WOODLANDS CARE CENTRE,CARE ESTABLISHMENT,OP - East Cambs Locality - Cost of Care,East Cambs - O P Team - Care,Nursing Care
Cambridgeshire County Council,13-May-20,51301367259,"-1,234.44",WOODLANDS CARE CENTRE,CARE ESTABLISHMENT,OP - East Cambs Locality - Cost of Care,East Cambs - O P Team - Care,Nursing Care
Cambridgeshire County Council,13-May-20,51301367259,"-1,234.44",WOODLANDS CARE CENTRE,CARE ESTABLISHMENT,OP - East Cambs Locality - Cost of Care,East Cambs - O P Team - Care,Nursing Care
Cambridgeshire County Council,13-May-20,51301367259,"-1,234.44",WOODLANDS CARE CENTRE,CARE ESTABLISHMENT,OP - East Cambs Locality - Cost of Care,East Cambs - O P Team - Care,Nursing Care
Cambridgeshire County Council,13-May-20,51301367259,"-1,234.44",WOODLANDS CARE CENTRE,CARE ESTABLISHMENT,OP - East Cambs Locality - Cost of Care,East Cambs - O P Team - Care,Nursing Care
Cambridgeshire County Council,13-May-20,51301367259,"-1,234.44",WOODLANDS CARE CENTRE,CARE ESTABLISHMENT,OP - East Cambs Locality - Cost of Care,East Cambs - O P Team - Care,Nursing Care
Cambridgeshire County Council,13-May-20,51301367259,"-1,234.44",WOODLANDS CARE CENTRE,CARE ESTABLISHMENT,OP - East Cambs Locality - Cost of Care,East Cambs - O P Team - Care,Nursing Care
Cambridgeshire County Council,13-May-20,51301367259,"-1,234.44",WOODLANDS CARE CENTRE,CARE ESTABLISHMENT,OP - East Cambs Locality - Cost of Care,East Cambs - O P Team - Care,Nursing Care
Cambridgeshire County Council,13-May-20,51301367259,"-1,234.44",WOODLANDS CARE CENTRE,CARE ESTABLISHMENT,OP - East Cambs Locality - Cost of Care,East Cambs - O P Team - Care,Nursing Care
Cambridgeshire County Council,13-May-20,51301367259,"-1,234.44",WOODLANDS CARE CENTRE,CARE ESTABLISHMENT,OP - East Cambs Locality - Cost of Care,East Cambs - O P Team - Care,Nursing Care
Cambridgeshire County Council,13-May-20,51301367259,"-1,234.44",WOODLANDS CARE CENTRE,CARE ESTABLISHMENT,OP - East Cambs Locality - Cost of Care,East Cambs - O P Team - Care,Nursing Care
Cambridgeshire County Council,13-May-20,51301367259,"-1,234.44",WOODLANDS CARE CENTRE,CARE ESTABLISHMENT,OP - East Cambs Locality - Cost of Care,East Cambs - O P Team - Care,Nursing Care
Cambridgeshire County Council,13-May-20,51301367259,"-1,234.44",WOODLANDS CARE CENTRE,CARE ESTABLISHMENT,OP - East Cambs Locality - Cost of Care,East Cambs - O P Team - Care,Nursing Care
Cambridgeshire County Council,13-May-20,51301367259,"-1,234.44",WOODLANDS CARE CENTRE,CARE ESTABLISHMENT,OP - East Cambs Locality - Cost of Care,East Cambs - O P Team - Care,Nursing Care
Cambridgeshire County Council,13-May-20,51301367259,"-1,234.44",WOODLANDS CARE CENTRE,CARE ESTABLISHMENT,OP - East Cambs Locality - Cost of Care,East Cambs - O P Team - Care,Nursing Care
Cambridgeshire County Council,13-May-20,51301367259,"-1,234.44",WOODLANDS CARE CENTRE,CARE ESTABLISHMENT,OP - East Cambs Locality - Cost of Care,East Cambs - O P Team - Care,Nursing Care
Cambridgeshire County Council,13-May-20,51301367259,"-1,234.44",WOODLANDS CARE CENTRE,CARE ESTABLISHMENT,OP - East Cambs Locality - Cost of Care,East Cambs - O P Team - Care,Nursing Care
Cambridgeshire County Council,13-May-20,51301367259,"-1,234.44",WOODLANDS CARE CENTRE,CARE ESTABLISHMENT,OP - East Cambs Locality - Cost of Care,East Cambs - O P Team - Care,Nursing Care
Cambridgeshire County Council,13-May-20,51301367259,"-1,234.44",WOODLANDS CARE CENTRE,CARE ESTABLISHMENT,OP - East Cambs Locality - Cost of Care,East Cambs - O P Team - Care,Nursing Care
Cambridgeshire County Council,14-May-20,51301368618,"-1,234.44",OAKLANDS CARE HOME,CARE ESTABLISHMENT,OPMH - City & South,Older People Mental Health City & South,Nursing Care
Cambridgeshire County Council,21-May-20,51301364340,"-1,232.78",NPS PETERBOROUGH LTD,TRADE SUPPLIER,Shire Hall Relocation,Shire Hall Relocation,Consultancy
Cambridgeshire County Council,19-May-20,51301374100,"-1,230.60",Redacted Personal Data,SERVICE USER,LD - South Locality - Cost of Care,LD - South Cambs - Special Needs,Direct Payments
Cambridgeshire County Council,19-May-20,51301374418,"-1,216.01",Redacted Personal Data,SERVICE USER,LD - South Locality - Cost of Care,LD - South Cambs - Care,Direct Payments
Cambridgeshire County Council,19-May-20,51301374418,"-1,216.01",Redacted Personal Data,SERVICE USER,LD - South Locality - Cost of Care,LD - South Cambs - Care,Direct Payments
Cambridgeshire County Council,19-May-20,51301374418,"-1,216.01",Redacted Personal Data,SERVICE USER,LD - South Locality - Cost of Care,LD - South Cambs - Care,Direct Payments
Cambridgeshire County Council,19-May-20,51301374418,"-1,216.01",Redacted Personal Data,SERVICE USER,LD - South Locality - Cost of Care,LD - South Cambs - Care,Direct Payments
Cambridgeshire County Council,19-May-20,51301374418,"-1,216.01",Redacted Personal Data,SERVICE USER,LD - South Locality - Cost of Care,LD - South Cambs - Care,Direct Payments
Cambridgeshire County Council,28-May-20,51301377782,"-1,213.17",DEVON & CORNWALL AUTISTIC COMMUNITY TRUST T/A SPECTRUM,TRUST (OTHER),LD - South Locality - Cost of Care,LD - South Cambs - Care,Residential Care
Cambridgeshire County Council,28-May-20,51301377782,"-1,213.17",DEVON & CORNWALL AUTISTIC COMMUNITY TRUST T/A SPECTRUM,TRUST (OTHER),LD - South Locality - Cost of Care,LD - South Cambs - Care,Residential Care
Cambridgeshire County Council,28-May-20,51301377782,"-1,213.17",DEVON & CORNWALL AUTISTIC COMMUNITY TRUST T/A SPECTRUM,TRUST (OTHER),LD - South Locality - Cost of Care,LD - South Cambs - Care,Residential Care
Cambridgeshire County Council,28-May-20,51301377782,"-1,213.17",DEVON & CORNWALL AUTISTIC COMMUNITY TRUST T/A SPECTRUM,TRUST (OTHER),LD - South Locality - Cost of Care,LD - South Cambs - Care,Residential Care
Cambridgeshire County Council,28-May-20,51301377782,"-1,213.17",DEVON & CORNWALL AUTISTIC COMMUNITY TRUST T/A SPECTRUM,TRUST (OTHER),LD - South Locality - Cost of Care,LD - South Cambs - Care,Residential Care
Cambridgeshire County Council,28-May-20,51301377782,"-1,213.17",DEVON & CORNWALL AUTISTIC COMMUNITY TRUST T/A SPECTRUM,TRUST (OTHER),LD - South Locality - Cost of Care,LD - South Cambs - Care,Residential Care
Cambridgeshire County Council,28-May-20,51301377782,"-1,213.17",DEVON & CORNWALL AUTISTIC COMMUNITY TRUST T/A SPECTRUM,TRUST (OTHER),LD - South Locality - Cost of Care,LD - South Cambs - Care,Residential Care
Cambridgeshire County Council,28-May-20,51301377782,"-1,213.17",DEVON & CORNWALL AUTISTIC COMMUNITY TRUST T/A SPECTRUM,TRUST (OTHER),LD - South Locality - Cost of Care,LD - South Cambs - Care,Residential Care
Cambridgeshire County Council,28-May-20,51301377782,"-1,213.17",DEVON & CORNWALL AUTISTIC COMMUNITY TRUST T/A SPECTRUM,TRUST (OTHER),LD - South Locality - Cost of Care,LD - South Cambs - Care,Residential Care
Cambridgeshire County Council,28-May-20,51301377782,"-1,213.17",DEVON & CORNWALL AUTISTIC COMMUNITY TRUST T/A SPECTRUM,TRUST (OTHER),LD - South Locality - Cost of Care,LD - South Cambs - Care,Residential Care
Cambridgeshire County Council,28-May-20,51301377782,"-1,213.17",DEVON & CORNWALL AUTISTIC COMMUNITY TRUST T/A SPECTRUM,TRUST (OTHER),LD - South Locality - Cost of Care,LD - South Cambs - Care,Residential Care
Cambridgeshire County Council,28-May-20,51301377782,"-1,213.17",DEVON & CORNWALL AUTISTIC COMMUNITY TRUST T/A SPECTRUM,TRUST (OTHER),LD - South Locality - Cost of Care,LD - South Cambs - Care,Residential Care
Cambridgeshire County Council,28-May-20,51301377782,"-1,213.17",DEVON & CORNWALL AUTISTIC COMMUNITY TRUST T/A SPECTRUM,TRUST (OTHER),LD - South Locality - Cost of Care,LD - South Cambs - Care,Residential Care
Cambridgeshire County Council,28-May-20,51301377782,"-1,213.17",DEVON & CORNWALL AUTISTIC COMMUNITY TRUST T/A SPECTRUM,TRUST (OTHER),LD - South Locality - Cost of Care,LD - South Cambs - Care,Residential Care
Cambridgeshire County Council,28-May-20,51301377782,"-1,213.17",DEVON & CORNWALL AUTISTIC COMMUNITY TRUST T/A SPECTRUM,TRUST (OTHER),LD - South Locality - Cost of Care,LD - South Cambs - Care,Residential Care
Cambridgeshire County Council,28-May-20,51301377782,"-1,213.17",DEVON & CORNWALL AUTISTIC COMMUNITY TRUST T/A SPECTRUM,TRUST (OTHER),LD - South Locality - Cost of Care,LD - South Cambs - Care,Residential Care
Cambridgeshire County Council,28-May-20,51301377782,"-1,213.17",DEVON & CORNWALL AUTISTIC COMMUNITY TRUST T/A SPECTRUM,TRUST (OTHER),LD - South Locality - Cost of Care,LD - South Cambs - Care,Residential Care
Cambridgeshire County Council,28-May-20,51301377782,"-1,213.17",DEVON & CORNWALL AUTISTIC COMMUNITY TRUST T/A SPECTRUM,TRUST (OTHER),LD - South Locality - Cost of Care,LD - South Cambs - Care,Residential Care
Cambridgeshire County Council,28-May-20,51301377782,"-1,213.17",DEVON & CORNWALL AUTISTIC COMMUNITY TRUST T/A SPECTRUM,TRUST (OTHER),LD - South Locality - Cost of Care,LD - South Cambs - Care,Residential Care
Cambridgeshire County Council,28-May-20,51301377782,"-1,213.17",DEVON & CORNWALL AUTISTIC COMMUNITY TRUST T/A SPECTRUM,TRUST (OTHER),LD - South Locality - Cost of Care,LD - South Cambs - Care,Residential Care
Cambridgeshire County Council,28-May-20,51301377782,"-1,213.17",DEVON & CORNWALL AUTISTIC COMMUNITY TRUST T/A SPECTRUM,TRUST (OTHER),LD - South Locality - Cost of Care,LD - South Cambs - Care,Residential Care
Cambridgeshire County Council,28-May-20,51301377782,"-1,213.17",DEVON & CORNWALL AUTISTIC COMMUNITY TRUST T/A SPECTRUM,TRUST (OTHER),LD - South Locality - Cost of Care,LD - South Cambs - Care,Residential Care
Cambridgeshire County Council,28-May-20,51301377782,"-1,213.17",DEVON & CORNWALL AUTISTIC COMMUNITY TRUST T/A SPECTRUM,TRUST (OTHER),LD - South Locality - Cost of Care,LD - South Cambs - Care,Residential Care
Cambridgeshire County Council,28-May-20,51301377782,"-1,213.17",DEVON & CORNWALL AUTISTIC COMMUNITY TRUST T/A SPECTRUM,TRUST (OTHER),LD - South Locality - Cost of Care,LD - South Cambs - Care,Residential Care
Cambridgeshire County Council,28-May-20,51301377782,"-1,213.17",DEVON & CORNWALL AUTISTIC COMMUNITY TRUST T/A SPECTRUM,TRUST (OTHER),LD - South Locality - Cost of Care,LD - South Cambs - Care,Residential Care
Cambridgeshire County Council,28-May-20,51301377782,"-1,213.17",DEVON & CORNWALL AUTISTIC COMMUNITY TRUST T/A SPECTRUM,TRUST (OTHER),LD - South Locality - Cost of Care,LD - South Cambs - Care,Residential Care
Cambridgeshire County Council,28-May-20,51301377782,"-1,213.17",DEVON & CORNWALL AUTISTIC COMMUNITY TRUST T/A SPECTRUM,TRUST (OTHER),LD - South Locality - Cost of Care,LD - South Cambs - Care,Residential Care
Cambridgeshire County Council,28-May-20,51301377782,"-1,213.17",DEVON & CORNWALL AUTISTIC COMMUNITY TRUST T/A SPECTRUM,TRUST (OTHER),LD - South Locality - Cost of Care,LD - South Cambs - Care,Residential Care
Cambridgeshire County Council,28-May-20,51301377782,"-1,213.17",DEVON & CORNWALL AUTISTIC COMMUNITY TRUST T/A SPECTRUM,TRUST (OTHER),LD - South Locality - Cost of Care,LD - South Cambs - Care,Residential Care
Cambridgeshire County Council,28-May-20,51301377782,"-1,213.17",DEVON & CORNWALL AUTISTIC COMMUNITY TRUST T/A SPECTRUM,TRUST (OTHER),LD - South Locality - Cost of Care,LD - South Cambs - Care,Residential Care
Cambridgeshire County Council,28-May-20,51301377782,"-1,213.17",DEVON & CORNWALL AUTISTIC COMMUNITY TRUST T/A SPECTRUM,TRUST (OTHER),LD - South Locality - Cost of Care,LD - South Cambs - Care,Residential Care
Cambridgeshire County Council,28-May-20,51301377782,"-1,213.17",DEVON & CORNWALL AUTISTIC COMMUNITY TRUST T/A SPECTRUM,TRUST (OTHER),LD - South Locality - Cost of Care,LD - South Cambs - Care,Residential Care
Cambridgeshire County Council,28-May-20,51301377782,"-1,213.17",DEVON & CORNWALL AUTISTIC COMMUNITY TRUST T/A SPECTRUM,TRUST (OTHER),LD - South Locality - Cost of Care,LD - South Cambs - Care,Residential Care
Cambridgeshire County Council,28-May-20,51301377782,"-1,213.17",DEVON & CORNWALL AUTISTIC COMMUNITY TRUST T/A SPECTRUM,TRUST (OTHER),LD - South Locality - Cost of Care,LD - South Cambs - Care,Residential Care
Cambridgeshire County Council,28-May-20,51301377782,"-1,213.17",DEVON & CORNWALL AUTISTIC COMMUNITY TRUST T/A SPECTRUM,TRUST (OTHER),LD - South Locality - Cost of Care,LD - South Cambs - Care,Residential Care
Cambridgeshire County Council,28-May-20,51301377782,"-1,213.17",DEVON & CORNWALL AUTISTIC COMMUNITY TRUST T/A SPECTRUM,TRUST (OTHER),LD - South Locality - Cost of Care,LD - South Cambs - Care,Residential Care
Cambridgeshire County Council,28-May-20,51301377782,"-1,213.17",DEVON & CORNWALL AUTISTIC COMMUNITY TRUST T/A SPECTRUM,TRUST (OTHER),LD - South Locality - Cost of Care,LD - South Cambs - Care,Residential Care
Cambridgeshire County Council,28-May-20,51301377782,"-1,213.17",DEVON & CORNWALL AUTISTIC COMMUNITY TRUST T/A SPECTRUM,TRUST (OTHER),LD - South Locality - Cost of Care,LD - South Cambs - Care,Residential Care
Cambridgeshire County Council,28-May-20,51301377782,"-1,213.17",DEVON & CORNWALL AUTISTIC COMMUNITY TRUST T/A SPECTRUM,TRUST (OTHER),LD - South Locality - Cost of Care,LD - South Cambs - Care,Residential Care
Cambridgeshire County Council,28-May-20,51301377782,"-1,213.17",DEVON & CORNWALL AUTISTIC COMMUNITY TRUST T/A SPECTRUM,TRUST (OTHER),LD - South Locality - Cost of Care,LD - South Cambs - Care,Residential Care
Cambridgeshire County Council,28-May-20,51301377782,"-1,213.17",DEVON & CORNWALL AUTISTIC COMMUNITY TRUST T/A SPECTRUM,TRUST (OTHER),LD - South Locality - Cost of Care,LD - South Cambs - Care,Residential Care
Cambridgeshire County Council,28-May-20,51301377782,"-1,213.17",DEVON & CORNWALL AUTISTIC COMMUNITY TRUST T/A SPECTRUM,TRUST (OTHER),LD - South Locality - Cost of Care,LD - South Cambs - Care,Residential Care
Cambridgeshire County Council,28-May-20,51301377782,"-1,213.17",DEVON & CORNWALL AUTISTIC COMMUNITY TRUST T/A SPECTRUM,TRUST (OTHER),LD - South Locality - Cost of Care,LD - South Cambs - Care,Residential Care
Cambridgeshire County Council,28-May-20,51301377782,"-1,213.17",DEVON & CORNWALL AUTISTIC COMMUNITY TRUST T/A SPECTRUM,TRUST (OTHER),LD - South Locality - Cost of Care,LD - South Cambs - Care,Residential Care
Cambridgeshire County Council,13-May-20,51301367768,"-1,200.00",BRAMLEY COURT,CARE ESTABLISHMENT,OP - City & South Locality - Cost of Care,Older People - City & South - Care,Nursing Care
Cambridgeshire County Council,13-May-20,51301367768,"-1,200.00",BRAMLEY COURT,CARE ESTABLISHMENT,OP - City & South Locality - Cost of Care,Older People - City & South - Care,Nursing Care
Cambridgeshire County Council,13-May-20,51301367768,"-1,200.00",BRAMLEY COURT,CARE ESTABLISHMENT,OP - City & South Locality - Cost of Care,Older People - City & South - Care,Nursing Care
Cambridgeshire County Council,13-May-20,51301367768,"-1,200.00",BRAMLEY COURT,CARE ESTABLISHMENT,OP - City & South Locality - Cost of Care,Older People - City & South - Care,Nursing Care
Cambridgeshire County Council,13-May-20,51301367768,"-1,200.00",BRAMLEY COURT,CARE ESTABLISHMENT,OP - City & South Locality - Cost of Care,Older People - City & South - Care,Nursing Care
Cambridgeshire County Council,13-May-20,51301367768,"-1,200.00",BRAMLEY COURT,CARE ESTABLISHMENT,OP - City & South Locality - Cost of Care,Older People - City & South - Care,Nursing Care
Cambridgeshire County Council,14-May-20,51301368399,"-1,200.00",ETHELDRED HOUSE,CARE ESTABLISHMENT,OP - City & South Locality - Cost of Care,Older People - City & South - Care,Residential Care
Cambridgeshire County Council,18-May-20,51301372837,"-1,200.00",SOHAM LODGE,CARE ESTABLISHMENT,Strategic Management - Adults,Adults Assistant Director,Short Term Other
Cambridgeshire County Council,18-May-20,51301372837,"-1,200.00",SOHAM LODGE,CARE ESTABLISHMENT,Strategic Management - Adults,Adults Assistant Director,Short Term Other
Cambridgeshire County Council,18-May-20,51301372837,"-1,200.00",SOHAM LODGE,CARE ESTABLISHMENT,Strategic Management - Adults,Adults Assistant Director,Short Term Other
Cambridgeshire County Council,19-May-20,51301374361,"-1,200.00",Redacted Personal Data,SERVICE USER,LD - East Locality - Cost of Care,LD - East Cambs - Special Needs,Direct Payments
Cambridgeshire County Council,19-May-20,51301374361,"-1,200.00",Redacted Personal Data,SERVICE USER,LD - East Locality - Cost of Care,LD - East Cambs - Special Needs,Direct Payments
Cambridgeshire County Council,19-May-20,51301374361,"-1,200.00",Redacted Personal Data,SERVICE USER,LD - East Locality - Cost of Care,LD - East Cambs - Special Needs,Direct Payments
Cambridgeshire County Council,19-May-20,51301374361,"-1,200.00",Redacted Personal Data,SERVICE USER,LD - East Locality - Cost of Care,LD - East Cambs - Special Needs,Direct Payments
Cambridgeshire County Council,19-May-20,51301374361,"-1,200.00",Redacted Personal Data,SERVICE USER,LD - East Locality - Cost of Care,LD - East Cambs - Special Needs,Direct Payments
Cambridgeshire County Council,19-May-20,51301374474,"-1,198.99",Redacted Personal Data,SERVICE USER,LD - South Locality - Cost of Care,LD - South Cambs - Care,Direct Payments
Cambridgeshire County Council,13-May-20,51301367258,"-1,190.00",WOODLANDS CARE CENTRE,CARE ESTABLISHMENT,OPMH - Hunts & Fens,Older People Mental Health Hunts,Nursing Care
Cambridgeshire County Council,13-May-20,51301367258,"-1,190.00",WOODLANDS CARE CENTRE,CARE ESTABLISHMENT,OPMH - Hunts & Fens,Older People Mental Health Hunts,Nursing Care
Cambridgeshire County Council,13-May-20,51301367258,"-1,190.00",WOODLANDS CARE CENTRE,CARE ESTABLISHMENT,OPMH - Hunts & Fens,Older People Mental Health Hunts,Nursing Care
Cambridgeshire County Council,13-May-20,51301367258,"-1,190.00",WOODLANDS CARE CENTRE,CARE ESTABLISHMENT,OPMH - Hunts & Fens,Older People Mental Health Hunts,Nursing Care
Cambridgeshire County Council,13-May-20,51301367258,"-1,190.00",WOODLANDS CARE CENTRE,CARE ESTABLISHMENT,OPMH - Hunts & Fens,Older People Mental Health Hunts,Nursing Care
Cambridgeshire County Council,13-May-20,51301367258,"-1,190.00",WOODLANDS CARE CENTRE,CARE ESTABLISHMENT,OPMH - Hunts & Fens,Older People Mental Health Hunts,Nursing Care
Cambridgeshire County Council,19-May-20,51301374363,"-1,182.36",Redacted Personal Data,SERVICE USER,LD - Hunts Locality - Cost of Care,LD - Huntingdonshire - Care,Direct Payments
Cambridgeshire County Council,07-May-20,51301364507,"-1,180.58",VOYAGE,CARE ESTABLISHMENT,LD - South Locality - Cost of Care,LD - South Cambs - Care,Domiciliary Care
Cambridgeshire County Council,07-May-20,51301364507,"-1,180.58",VOYAGE,CARE ESTABLISHMENT,LD - South Locality - Cost of Care,LD - South Cambs - Care,Domiciliary Care
Cambridgeshire County Council,07-May-20,51301364507,"-1,180.58",VOYAGE,CARE ESTABLISHMENT,LD - South Locality - Cost of Care,LD - South Cambs - Care,Domiciliary Care
Cambridgeshire County Council,19-May-20,51301374495,"-1,176.00",Redacted Personal Data,SERVICE USER,LD - Fenland Locality - Cost of Care,LD - Fenland  - Special Needs,Direct Payments
Cambridgeshire County Council,19-May-20,51301374495,"-1,176.00",Redacted Personal Data,SERVICE USER,LD - Fenland Locality - Cost of Care,LD - Fenland  - Special Needs,Direct Payments
Cambridgeshire County Council,19-May-20,51301374495,"-1,176.00",Redacted Personal Data,SERVICE USER,LD - Fenland Locality - Cost of Care,LD - Fenland  - Special Needs,Direct Payments
Cambridgeshire County Council,19-May-20,51301374495,"-1,176.00",Redacted Personal Data,SERVICE USER,LD - Fenland Locality - Cost of Care,LD - Fenland  - Special Needs,Direct Payments
Cambridgeshire County Council,19-May-20,51301374495,"-1,176.00",Redacted Personal Data,SERVICE USER,LD - Fenland Locality - Cost of Care,LD - Fenland  - Special Needs,Direct Payments
Cambridgeshire County Council,13-May-20,51301367323,"-1,174.44",BARCHESTER HEALTHCARE HOMES LTD,CARE ESTABLISHMENT,OP - City & South Locality - Cost of Care,Older People - City & South - Care,Nursing Care
Cambridgeshire County Council,13-May-20,51301367323,"-1,174.44",BARCHESTER HEALTHCARE HOMES LTD,CARE ESTABLISHMENT,OP - City & South Locality - Cost of Care,Older People - City & South - Care,Nursing Care
Cambridgeshire County Council,13-May-20,51301367323,"-1,174.44",BARCHESTER HEALTHCARE HOMES LTD,CARE ESTABLISHMENT,OP - City & South Locality - Cost of Care,Older People - City & South - Care,Nursing Care
Cambridgeshire County Council,13-May-20,51301367323,"-1,174.44",BARCHESTER HEALTHCARE HOMES LTD,CARE ESTABLISHMENT,OP - City & South Locality - Cost of Care,Older People - City & South - Care,Nursing Care
Cambridgeshire County Council,13-May-20,51301367323,"-1,174.44",BARCHESTER HEALTHCARE HOMES LTD,CARE ESTABLISHMENT,OP - City & South Locality - Cost of Care,Older People - City & South - Care,Nursing Care
Cambridgeshire County Council,13-May-20,51301367323,"-1,174.44",BARCHESTER HEALTHCARE HOMES LTD,CARE ESTABLISHMENT,OP - City & South Locality - Cost of Care,Older People - City & South - Care,Nursing Care
Cambridgeshire County Council,06-May-20,51301336076,"-1,165.70",AGATE HOUSE,CARE ESTABLISHMENT,Physical Disablity - Cost of Care,Countywide PD Service - Care,Nursing Care
Cambridgeshire County Council,06-May-20,51301336076,"-1,165.70",AGATE HOUSE,CARE ESTABLISHMENT,Physical Disablity - Cost of Care,Countywide PD Service - Care,Nursing Care
Cambridgeshire County Council,06-May-20,51301336076,"-1,165.70",AGATE HOUSE,CARE ESTABLISHMENT,Physical Disablity - Cost of Care,Countywide PD Service - Care,Nursing Care
Cambridgeshire County Council,06-May-20,51301336076,"-1,165.70",AGATE HOUSE,CARE ESTABLISHMENT,Physical Disablity - Cost of Care,Countywide PD Service - Care,Nursing Care
Cambridgeshire County Council,06-May-20,51301336076,"-1,165.70",AGATE HOUSE,CARE ESTABLISHMENT,Physical Disablity - Cost of Care,Countywide PD Service - Care,Nursing Care
Cambridgeshire County Council,06-May-20,51301336076,"-1,165.70",AGATE HOUSE,CARE ESTABLISHMENT,Physical Disablity - Cost of Care,Countywide PD Service - Care,Nursing Care
Cambridgeshire County Council,06-May-20,51301336076,"-1,165.70",AGATE HOUSE,CARE ESTABLISHMENT,Physical Disablity - Cost of Care,Countywide PD Service - Care,Nursing Care
Cambridgeshire County Council,06-May-20,51301336076,"-1,165.70",AGATE HOUSE,CARE ESTABLISHMENT,Physical Disablity - Cost of Care,Countywide PD Service - Care,Nursing Care
Cambridgeshire County Council,06-May-20,51301336076,"-1,165.70",AGATE HOUSE,CARE ESTABLISHMENT,Physical Disablity - Cost of Care,Countywide PD Service - Care,Nursing Care
Cambridgeshire County Council,06-May-20,51301336076,"-1,165.70",AGATE HOUSE,CARE ESTABLISHMENT,Physical Disablity - Cost of Care,Countywide PD Service - Care,Nursing Care
Cambridgeshire County Council,06-May-20,51301336076,"-1,165.70",AGATE HOUSE,CARE ESTABLISHMENT,Physical Disablity - Cost of Care,Countywide PD Service - Care,Nursing Care
Cambridgeshire County Council,06-May-20,51301336076,"-1,165.70",AGATE HOUSE,CARE ESTABLISHMENT,Physical Disablity - Cost of Care,Countywide PD Service - Care,Nursing Care
Cambridgeshire County Council,06-May-20,51301336076,"-1,165.70",AGATE HOUSE,CARE ESTABLISHMENT,Physical Disablity - Cost of Care,Countywide PD Service - Care,Nursing Care
Cambridgeshire County Council,06-May-20,51301336076,"-1,165.70",AGATE HOUSE,CARE ESTABLISHMENT,Physical Disablity - Cost of Care,Countywide PD Service - Care,Nursing Care
Cambridgeshire County Council,06-May-20,51301336076,"-1,165.70",AGATE HOUSE,CARE ESTABLISHMENT,Physical Disablity - Cost of Care,Countywide PD Service - Care,Nursing Care
Cambridgeshire County Council,06-May-20,51301336076,"-1,165.70",AGATE HOUSE,CARE ESTABLISHMENT,Physical Disablity - Cost of Care,Countywide PD Service - Care,Nursing Care
Cambridgeshire County Council,06-May-20,51301336076,"-1,165.70",AGATE HOUSE,CARE ESTABLISHMENT,Physical Disablity - Cost of Care,Countywide PD Service - Care,Nursing Care
Cambridgeshire County Council,06-May-20,51301336076,"-1,165.70",AGATE HOUSE,CARE ESTABLISHMENT,Physical Disablity - Cost of Care,Countywide PD Service - Care,Nursing Care
Cambridgeshire County Council,06-May-20,51301336076,"-1,165.70",AGATE HOUSE,CARE ESTABLISHMENT,Physical Disablity - Cost of Care,Countywide PD Service - Care,Nursing Care
Cambridgeshire County Council,06-May-20,51301336076,"-1,165.70",AGATE HOUSE,CARE ESTABLISHMENT,Physical Disablity - Cost of Care,Countywide PD Service - Care,Nursing Care
Cambridgeshire County Council,06-May-20,51301336076,"-1,165.70",AGATE HOUSE,CARE ESTABLISHMENT,Physical Disablity - Cost of Care,Countywide PD Service - Care,Nursing Care
Cambridgeshire County Council,06-May-20,51301336076,"-1,165.70",AGATE HOUSE,CARE ESTABLISHMENT,Physical Disablity - Cost of Care,Countywide PD Service - Care,Nursing Care
Cambridgeshire County Council,06-May-20,51301336076,"-1,165.70",AGATE HOUSE,CARE ESTABLISHMENT,Physical Disablity - Cost of Care,Countywide PD Service - Care,Nursing Care
Cambridgeshire County Council,06-May-20,51301336076,"-1,165.70",AGATE HOUSE,CARE ESTABLISHMENT,Physical Disablity - Cost of Care,Countywide PD Service - Care,Nursing Care
Cambridgeshire County Council,06-May-20,51301336076,"-1,165.70",AGATE HOUSE,CARE ESTABLISHMENT,Physical Disablity - Cost of Care,Countywide PD Service - Care,Nursing Care
Cambridgeshire County Council,06-May-20,51301336076,"-1,165.70",AGATE HOUSE,CARE ESTABLISHMENT,Physical Disablity - Cost of Care,Countywide PD Service - Care,Nursing Care
Cambridgeshire County Council,06-May-20,51301336076,"-1,165.70",AGATE HOUSE,CARE ESTABLISHMENT,Physical Disablity - Cost of Care,Countywide PD Service - Care,Nursing Care
Cambridgeshire County Council,06-May-20,51301336076,"-1,165.70",AGATE HOUSE,CARE ESTABLISHMENT,Physical Disablity - Cost of Care,Countywide PD Service - Care,Nursing Care
Cambridgeshire County Council,06-May-20,51301336076,"-1,165.70",AGATE HOUSE,CARE ESTABLISHMENT,Physical Disablity - Cost of Care,Countywide PD Service - Care,Nursing Care
Cambridgeshire County Council,06-May-20,51301336076,"-1,165.70",AGATE HOUSE,CARE ESTABLISHMENT,Physical Disablity - Cost of Care,Countywide PD Service - Care,Nursing Care
Cambridgeshire County Council,06-May-20,51301336076,"-1,165.70",AGATE HOUSE,CARE ESTABLISHMENT,Physical Disablity - Cost of Care,Countywide PD Service - Care,Nursing Care
Cambridgeshire County Council,06-May-20,51301336076,"-1,165.70",AGATE HOUSE,CARE ESTABLISHMENT,Physical Disablity - Cost of Care,Countywide PD Service - Care,Nursing Care
Cambridgeshire County Council,06-May-20,51301336076,"-1,165.70",AGATE HOUSE,CARE ESTABLISHMENT,Physical Disablity - Cost of Care,Countywide PD Service - Care,Nursing Care
Cambridgeshire County Council,06-May-20,51301336076,"-1,165.70",AGATE HOUSE,CARE ESTABLISHMENT,Physical Disablity - Cost of Care,Countywide PD Service - Care,Nursing Care
Cambridgeshire County Council,06-May-20,51301336076,"-1,165.70",AGATE HOUSE,CARE ESTABLISHMENT,Physical Disablity - Cost of Care,Countywide PD Service - Care,Nursing Care
Cambridgeshire County Council,06-May-20,51301336076,"-1,165.70",AGATE HOUSE,CARE ESTABLISHMENT,Physical Disablity - Cost of Care,Countywide PD Service - Care,Nursing Care
Cambridgeshire County Council,06-May-20,51301336076,"-1,165.70",AGATE HOUSE,CARE ESTABLISHMENT,Physical Disablity - Cost of Care,Countywide PD Service - Care,Nursing Care
Cambridgeshire County Council,06-May-20,51301336076,"-1,165.70",AGATE HOUSE,CARE ESTABLISHMENT,Physical Disablity - Cost of Care,Countywide PD Service - Care,Nursing Care
Cambridgeshire County Council,06-May-20,51301336076,"-1,165.70",AGATE HOUSE,CARE ESTABLISHMENT,Physical Disablity - Cost of Care,Countywide PD Service - Care,Nursing Care
Cambridgeshire County Council,06-May-20,51301336076,"-1,165.70",AGATE HOUSE,CARE ESTABLISHMENT,Physical Disablity - Cost of Care,Countywide PD Service - Care,Nursing Care
Cambridgeshire County Council,06-May-20,51301336076,"-1,165.70",AGATE HOUSE,CARE ESTABLISHMENT,Physical Disablity - Cost of Care,Countywide PD Service - Care,Nursing Care
Cambridgeshire County Council,06-May-20,51301336076,"-1,165.70",AGATE HOUSE,CARE ESTABLISHMENT,Physical Disablity - Cost of Care,Countywide PD Service - Care,Nursing Care
Cambridgeshire County Council,06-May-20,51301336076,"-1,165.70",AGATE HOUSE,CARE ESTABLISHMENT,Physical Disablity - Cost of Care,Countywide PD Service - Care,Nursing Care
Cambridgeshire County Council,06-May-20,51301336076,"-1,165.70",AGATE HOUSE,CARE ESTABLISHMENT,Physical Disablity - Cost of Care,Countywide PD Service - Care,Nursing Care
Cambridgeshire County Council,06-May-20,51301336076,"-1,165.70",AGATE HOUSE,CARE ESTABLISHMENT,Physical Disablity - Cost of Care,Countywide PD Service - Care,Nursing Care
Cambridgeshire County Council,06-May-20,51301336076,"-1,165.70",AGATE HOUSE,CARE ESTABLISHMENT,Physical Disablity - Cost of Care,Countywide PD Service - Care,Nursing Care
Cambridgeshire County Council,06-May-20,51301336076,"-1,165.70",AGATE HOUSE,CARE ESTABLISHMENT,Physical Disablity - Cost of Care,Countywide PD Service - Care,Nursing Care
Cambridgeshire County Council,06-May-20,51301336076,"-1,165.70",AGATE HOUSE,CARE ESTABLISHMENT,Physical Disablity - Cost of Care,Countywide PD Service - Care,Nursing Care
Cambridgeshire County Council,06-May-20,51301336076,"-1,165.70",AGATE HOUSE,CARE ESTABLISHMENT,Physical Disablity - Cost of Care,Countywide PD Service - Care,Nursing Care
Cambridgeshire County Council,06-May-20,51301336076,"-1,165.70",AGATE HOUSE,CARE ESTABLISHMENT,Physical Disablity - Cost of Care,Countywide PD Service - Care,Nursing Care
Cambridgeshire County Council,06-May-20,51301336076,"-1,165.70",AGATE HOUSE,CARE ESTABLISHMENT,Physical Disablity - Cost of Care,Countywide PD Service - Care,Nursing Care
Cambridgeshire County Council,06-May-20,51301336076,"-1,165.70",AGATE HOUSE,CARE ESTABLISHMENT,Physical Disablity - Cost of Care,Countywide PD Service - Care,Nursing Care
Cambridgeshire County Council,06-May-20,51301336076,"-1,165.70",AGATE HOUSE,CARE ESTABLISHMENT,Physical Disablity - Cost of Care,Countywide PD Service - Care,Nursing Care
Cambridgeshire County Council,06-May-20,51301336076,"-1,165.70",AGATE HOUSE,CARE ESTABLISHMENT,Physical Disablity - Cost of Care,Countywide PD Service - Care,Nursing Care
Cambridgeshire County Council,06-May-20,51301336076,"-1,165.70",AGATE HOUSE,CARE ESTABLISHMENT,Physical Disablity - Cost of Care,Countywide PD Service - Care,Nursing Care
Cambridgeshire County Council,06-May-20,51301336076,"-1,165.70",AGATE HOUSE,CARE ESTABLISHMENT,Physical Disablity - Cost of Care,Countywide PD Service - Care,Nursing Care
Cambridgeshire County Council,06-May-20,51301336076,"-1,165.70",AGATE HOUSE,CARE ESTABLISHMENT,Physical Disablity - Cost of Care,Countywide PD Service - Care,Nursing Care
Cambridgeshire County Council,13-May-20,51301367241,"-1,156.50",WOODLANDS CARE CENTRE,CARE ESTABLISHMENT,OPMH - City & South,Older People Mental Health City & South,Nursing Care
Cambridgeshire County Council,13-May-20,51301367241,"-1,156.50",WOODLANDS CARE CENTRE,CARE ESTABLISHMENT,OPMH - City & South,Older People Mental Health City & South,Nursing Care
Cambridgeshire County Council,13-May-20,51301367241,"-1,156.50",WOODLANDS CARE CENTRE,CARE ESTABLISHMENT,OPMH - City & South,Older People Mental Health City & South,Nursing Care
Cambridgeshire County Council,13-May-20,51301367241,"-1,156.50",WOODLANDS CARE CENTRE,CARE ESTABLISHMENT,OPMH - City & South,Older People Mental Health City & South,Nursing Care
Cambridgeshire County Council,13-May-20,51301367241,"-1,156.50",WOODLANDS CARE CENTRE,CARE ESTABLISHMENT,OPMH - City & South,Older People Mental Health City & South,Nursing Care
Cambridgeshire County Council,13-May-20,51301367279,"-1,144.95",WOODLANDS CARE CENTRE,CARE ESTABLISHMENT,Physical Disablity - Cost of Care,Countywide PD Service - Care,Nursing Care
Cambridgeshire County Council,13-May-20,51301367279,"-1,144.95",WOODLANDS CARE CENTRE,CARE ESTABLISHMENT,Physical Disablity - Cost of Care,Countywide PD Service - Care,Nursing Care
Cambridgeshire County Council,13-May-20,51301367279,"-1,144.95",WOODLANDS CARE CENTRE,CARE ESTABLISHMENT,Physical Disablity - Cost of Care,Countywide PD Service - Care,Nursing Care
Cambridgeshire County Council,13-May-20,51301367279,"-1,144.95",WOODLANDS CARE CENTRE,CARE ESTABLISHMENT,Physical Disablity - Cost of Care,Countywide PD Service - Care,Nursing Care
Cambridgeshire County Council,13-May-20,51301367279,"-1,144.95",WOODLANDS CARE CENTRE,CARE ESTABLISHMENT,Physical Disablity - Cost of Care,Countywide PD Service - Care,Nursing Care
Cambridgeshire County Council,13-May-20,51301367279,"-1,144.95",WOODLANDS CARE CENTRE,CARE ESTABLISHMENT,Physical Disablity - Cost of Care,Countywide PD Service - Care,Nursing Care
Cambridgeshire County Council,13-May-20,51301367279,"-1,144.95",WOODLANDS CARE CENTRE,CARE ESTABLISHMENT,Physical Disablity - Cost of Care,Countywide PD Service - Care,Nursing Care
Cambridgeshire County Council,13-May-20,51301367279,"-1,144.95",WOODLANDS CARE CENTRE,CARE ESTABLISHMENT,Physical Disablity - Cost of Care,Countywide PD Service - Care,Nursing Care
Cambridgeshire County Council,13-May-20,51301367279,"-1,144.95",WOODLANDS CARE CENTRE,CARE ESTABLISHMENT,Physical Disablity - Cost of Care,Countywide PD Service - Care,Nursing Care
Cambridgeshire County Council,13-May-20,51301367279,"-1,144.95",WOODLANDS CARE CENTRE,CARE ESTABLISHMENT,Physical Disablity - Cost of Care,Countywide PD Service - Care,Nursing Care
Cambridgeshire County Council,13-May-20,51301367279,"-1,144.95",WOODLANDS CARE CENTRE,CARE ESTABLISHMENT,Physical Disablity - Cost of Care,Countywide PD Service - Care,Nursing Care
Cambridgeshire County Council,19-May-20,51301374474,"-1,144.49",Redacted Personal Data,SERVICE USER,LD - South Locality - Cost of Care,LD - South Cambs - Care,Direct Payments
Cambridgeshire County Council,19-May-20,51301374474,"-1,144.49",Redacted Personal Data,SERVICE USER,LD - South Locality - Cost of Care,LD - South Cambs - Care,Direct Payments
Cambridgeshire County Council,19-May-20,51301374474,"-1,144.49",Redacted Personal Data,SERVICE USER,LD - South Locality - Cost of Care,LD - South Cambs - Care,Direct Payments
Cambridgeshire County Council,19-May-20,51301374474,"-1,144.49",Redacted Personal Data,SERVICE USER,LD - South Locality - Cost of Care,LD - South Cambs - Care,Direct Payments
Cambridgeshire County Council,19-May-20,51301374474,"-1,144.49",Redacted Personal Data,SERVICE USER,LD - South Locality - Cost of Care,LD - South Cambs - Care,Direct Payments
Cambridgeshire County Council,19-May-20,51301372990,"-1,138.55",TRANSITION CARE PETERBOROUGH LTD,CARE ESTABLISHMENT,LAC Placements,Placements - supported accommodation,Agency Placements - In County
Cambridgeshire County Council,13-May-20,51301367337,"-1,134.44",WOODLANDS CARE CENTRE,CARE ESTABLISHMENT,OP - City & South Locality - Cost of Care,Older People - City & South - Care,Nursing Care
Cambridgeshire County Council,13-May-20,51301367337,"-1,134.44",WOODLANDS CARE CENTRE,CARE ESTABLISHMENT,OP - City & South Locality - Cost of Care,Older People - City & South - Care,Nursing Care
Cambridgeshire County Council,13-May-20,51301367337,"-1,134.44",WOODLANDS CARE CENTRE,CARE ESTABLISHMENT,OP - City & South Locality - Cost of Care,Older People - City & South - Care,Nursing Care
Cambridgeshire County Council,13-May-20,51301367262,"-1,134.44",WOODLANDS CARE CENTRE,CARE ESTABLISHMENT,OP - City & South Locality - Cost of Care,Older People - City & South - Care,Nursing Care
Cambridgeshire County Council,13-May-20,51301367262,"-1,134.44",WOODLANDS CARE CENTRE,CARE ESTABLISHMENT,OP - City & South Locality - Cost of Care,Older People - City & South - Care,Nursing Care
Cambridgeshire County Council,13-May-20,51301367262,"-1,134.44",WOODLANDS CARE CENTRE,CARE ESTABLISHMENT,OP - City & South Locality - Cost of Care,Older People - City & South - Care,Nursing Care
Cambridgeshire County Council,13-May-20,51301367262,"-1,134.44",WOODLANDS CARE CENTRE,CARE ESTABLISHMENT,OP - City & South Locality - Cost of Care,Older People - City & South - Care,Nursing Care
Cambridgeshire County Council,13-May-20,51301367262,"-1,134.44",WOODLANDS CARE CENTRE,CARE ESTABLISHMENT,OP - City & South Locality - Cost of Care,Older People - City & South - Care,Nursing Care
Cambridgeshire County Council,13-May-20,51301367337,"-1,134.44",WOODLANDS CARE CENTRE,CARE ESTABLISHMENT,OP - City & South Locality - Cost of Care,Older People - City & South - Care,Nursing Care
Cambridgeshire County Council,13-May-20,51301367337,"-1,134.44",WOODLANDS CARE CENTRE,CARE ESTABLISHMENT,OP - City & South Locality - Cost of Care,Older People - City & South - Care,Nursing Care
Cambridgeshire County Council,13-May-20,51301367262,"-1,134.44",WOODLANDS CARE CENTRE,CARE ESTABLISHMENT,OP - City & South Locality - Cost of Care,Older People - City & South - Care,Nursing Care
Cambridgeshire County Council,07-May-20,51301364405,"-1,134.42",AFFINITY TRUST,CARE ESTABLISHMENT,LD - Fenland Locality - Cost of Care,LD - Fenland  - Care,Domiciliary Care
Cambridgeshire County Council,07-May-20,51301364405,"-1,134.42",AFFINITY TRUST,CARE ESTABLISHMENT,LD - Fenland Locality - Cost of Care,LD - Fenland  - Care,Domiciliary Care
Cambridgeshire County Council,07-May-20,51301364405,"-1,134.42",AFFINITY TRUST,CARE ESTABLISHMENT,LD - Fenland Locality - Cost of Care,LD - Fenland  - Care,Domiciliary Care
Cambridgeshire County Council,29-May-20,51301378029,"-1,111.34",Redacted Personal Data,SERVICE USER,Physical Disablity - Cost of Care,Countywide PD Service - Care,Direct Payments
Cambridgeshire County Council,29-May-20,51301378029,"-1,111.34",Redacted Personal Data,SERVICE USER,Physical Disablity - Cost of Care,Countywide PD Service - Care,Direct Payments
Cambridgeshire County Council,29-May-20,51301378029,"-1,111.34",Redacted Personal Data,SERVICE USER,Physical Disablity - Cost of Care,Countywide PD Service - Care,Direct Payments
Cambridgeshire County Council,29-May-20,51301378029,"-1,111.34",Redacted Personal Data,SERVICE USER,Physical Disablity - Cost of Care,Countywide PD Service - Care,Direct Payments
Cambridgeshire County Council,29-May-20,51301378029,"-1,111.34",Redacted Personal Data,SERVICE USER,Physical Disablity - Cost of Care,Countywide PD Service - Care,Direct Payments
Cambridgeshire County Council,29-May-20,51301378029,"-1,111.34",Redacted Personal Data,SERVICE USER,Physical Disablity - Cost of Care,Countywide PD Service - Care,Direct Payments
Cambridgeshire County Council,19-May-20,51301374364,"-1,107.33",Redacted Personal Data,SERVICE USER,Physical Disablity - Cost of Care,Countywide PD Service - Care,Direct Payments
Cambridgeshire County Council,19-May-20,51301374364,"-1,107.33",Redacted Personal Data,SERVICE USER,Physical Disablity - Cost of Care,Countywide PD Service - Care,Direct Payments
Cambridgeshire County Council,19-May-20,51301374364,"-1,107.33",Redacted Personal Data,SERVICE USER,Physical Disablity - Cost of Care,Countywide PD Service - Care,Direct Payments
Cambridgeshire County Council,19-May-20,51301374364,"-1,107.33",Redacted Personal Data,SERVICE USER,Physical Disablity - Cost of Care,Countywide PD Service - Care,Direct Payments
Cambridgeshire County Council,19-May-20,51301374364,"-1,107.33",Redacted Personal Data,SERVICE USER,Physical Disablity - Cost of Care,Countywide PD Service - Care,Direct Payments
Cambridgeshire County Council,19-May-20,51301374446,"-1,104.84",Redacted Personal Data,SERVICE USER,Physical Disablity - Cost of Care,Countywide PD Service - Care,Direct Payments
Cambridgeshire County Council,19-May-20,51301374446,"-1,104.84",Redacted Personal Data,SERVICE USER,Physical Disablity - Cost of Care,Countywide PD Service - Care,Direct Payments
Cambridgeshire County Council,19-May-20,51301374446,"-1,104.84",Redacted Personal Data,SERVICE USER,Physical Disablity - Cost of Care,Countywide PD Service - Care,Direct Payments
Cambridgeshire County Council,19-May-20,51301374446,"-1,104.84",Redacted Personal Data,SERVICE USER,Physical Disablity - Cost of Care,Countywide PD Service - Care,Direct Payments
Cambridgeshire County Council,19-May-20,51301374446,"-1,104.84",Redacted Personal Data,SERVICE USER,Physical Disablity - Cost of Care,Countywide PD Service - Care,Direct Payments
Cambridgeshire County Council,19-May-20,51301373960,"-1,103.68",Redacted Personal Data,SERVICE USER,LD - South Locality - Cost of Care,LD - South Cambs - Care,Direct Payments
Cambridgeshire County Council,06-May-20,51301352817,"-1,100.00",BLACK SWAN CARE GROUP LTD,CARE ESTABLISHMENT,Physical Disablity - Cost of Care,Countywide PD Service - Care,Residential Care
Cambridgeshire County Council,06-May-20,51301352817,"-1,100.00",BLACK SWAN CARE GROUP LTD,CARE ESTABLISHMENT,Physical Disablity - Cost of Care,Countywide PD Service - Care,Residential Care
Cambridgeshire County Council,06-May-20,51301352817,"-1,100.00",BLACK SWAN CARE GROUP LTD,CARE ESTABLISHMENT,Physical Disablity - Cost of Care,Countywide PD Service - Care,Residential Care
Cambridgeshire County Council,06-May-20,51301352817,"-1,100.00",BLACK SWAN CARE GROUP LTD,CARE ESTABLISHMENT,Physical Disablity - Cost of Care,Countywide PD Service - Care,Residential Care
Cambridgeshire County Council,06-May-20,51301352817,"-1,100.00",BLACK SWAN CARE GROUP LTD,CARE ESTABLISHMENT,Physical Disablity - Cost of Care,Countywide PD Service - Care,Residential Care
Cambridgeshire County Council,06-May-20,51301352817,"-1,100.00",BLACK SWAN CARE GROUP LTD,CARE ESTABLISHMENT,Physical Disablity - Cost of Care,Countywide PD Service - Care,Residential Care
Cambridgeshire County Council,19-May-20,51301374460,"-1,095.40",Redacted Personal Data,SERVICE USER,Physical Disablity - Cost of Care,Countywide PD Service - Care,Direct Payments
Cambridgeshire County Council,19-May-20,51301374460,"-1,095.40",Redacted Personal Data,SERVICE USER,Physical Disablity - Cost of Care,Countywide PD Service - Care,Direct Payments
Cambridgeshire County Council,19-May-20,51301374460,"-1,095.40",Redacted Personal Data,SERVICE USER,Physical Disablity - Cost of Care,Countywide PD Service - Care,Direct Payments
Cambridgeshire County Council,19-May-20,51301374460,"-1,095.40",Redacted Personal Data,SERVICE USER,Physical Disablity - Cost of Care,Countywide PD Service - Care,Direct Payments
Cambridgeshire County Council,19-May-20,51301374460,"-1,095.40",Redacted Personal Data,SERVICE USER,Physical Disablity - Cost of Care,Countywide PD Service - Care,Direct Payments
Cambridgeshire County Council,19-May-20,51301373937,"-1,080.07",Redacted Personal Data,INDIVIDUAL,AMH - Hunts & Fens,Hunts Mental Health Team,Direct Payments
Cambridgeshire County Council,19-May-20,51301373747,"-1,071.43",Redacted Personal Data,INDIVIDUAL,Physical Disablity - Cost of Care,Countywide PD Service - Care,Direct Payments
Cambridgeshire County Council,07-May-20,51301364465,"-1,051.96",ATLAS HOME SUPPORT,CARE ESTABLISHMENT,LD - South Locality - Cost of Care,LD - South Cambs - Care,Domiciliary Care
Cambridgeshire County Council,07-May-20,51301364465,"-1,051.96",ATLAS HOME SUPPORT,CARE ESTABLISHMENT,LD - South Locality - Cost of Care,LD - South Cambs - Care,Domiciliary Care
Cambridgeshire County Council,07-May-20,51301364465,"-1,051.96",ATLAS HOME SUPPORT,CARE ESTABLISHMENT,LD - South Locality - Cost of Care,LD - South Cambs - Care,Domiciliary Care
Cambridgeshire County Council,13-May-20,51301367324,"-1,050.00",WOODLANDS CARE CENTRE,CARE ESTABLISHMENT,OPMH - City & South,Older People Mental Health City & South,Nursing Care
Cambridgeshire County Council,13-May-20,51301367324,"-1,050.00",WOODLANDS CARE CENTRE,CARE ESTABLISHMENT,OPMH - City & South,Older People Mental Health City & South,Nursing Care
Cambridgeshire County Council,13-May-20,51301367324,"-1,050.00",WOODLANDS CARE CENTRE,CARE ESTABLISHMENT,OPMH - City & South,Older People Mental Health City & South,Nursing Care
Cambridgeshire County Council,07-May-20,51301364390,"-1,045.81",MENCAP PETERBOROUGH,CARE ESTABLISHMENT,Autism and Adult Support - Cost of Care,Autism and Adult Support - Care,Domiciliary Care
Cambridgeshire County Council,07-May-20,51301364390,"-1,045.81",MENCAP PETERBOROUGH,CARE ESTABLISHMENT,Autism and Adult Support - Cost of Care,Autism and Adult Support - Care,Domiciliary Care
Cambridgeshire County Council,07-May-20,51301364390,"-1,045.81",MENCAP PETERBOROUGH,CARE ESTABLISHMENT,Autism and Adult Support - Cost of Care,Autism and Adult Support - Care,Domiciliary Care
Cambridgeshire County Council,19-May-20,51301374418,"-1,042.29",Redacted Personal Data,SERVICE USER,LD - South Locality - Cost of Care,LD - South Cambs - Care,Direct Payments
Cambridgeshire County Council,18-May-20,51301371959,"-1,042.24",VOYAGE,CARE ESTABLISHMENT,LD - South Locality - Cost of Care,LD - South Cambs - Care,Domiciliary Care
Cambridgeshire County Council,18-May-20,51301371959,"-1,042.24",VOYAGE,CARE ESTABLISHMENT,LD - South Locality - Cost of Care,LD - South Cambs - Care,Domiciliary Care
Cambridgeshire County Council,18-May-20,51301371959,"-1,042.24",VOYAGE,CARE ESTABLISHMENT,LD - South Locality - Cost of Care,LD - South Cambs - Care,Domiciliary Care
Cambridgeshire County Council,19-May-20,51301374501,"-1,041.25",Redacted Personal Data,SERVICE USER,LD - Hunts Locality - Cost of Care,LD - Huntingdonshire - Care,Direct Payments
Cambridgeshire County Council,19-May-20,51301374501,"-1,041.25",Redacted Personal Data,SERVICE USER,LD - Hunts Locality - Cost of Care,LD - Huntingdonshire - Care,Direct Payments
Cambridgeshire County Council,19-May-20,51301374501,"-1,041.25",Redacted Personal Data,SERVICE USER,LD - Hunts Locality - Cost of Care,LD - Huntingdonshire - Care,Direct Payments
Cambridgeshire County Council,19-May-20,51301374501,"-1,041.25",Redacted Personal Data,SERVICE USER,LD - Hunts Locality - Cost of Care,LD - Huntingdonshire - Care,Direct Payments
Cambridgeshire County Council,19-May-20,51301374501,"-1,041.25",Redacted Personal Data,SERVICE USER,LD - Hunts Locality - Cost of Care,LD - Huntingdonshire - Care,Direct Payments
Cambridgeshire County Council,19-May-20,51301374001,"-1,035.00",Redacted Personal Data,INDIVIDUAL,OP - City & South Locality - Cost of Care,Older People - City & South - Care,Direct Payments
Cambridgeshire County Council,19-May-20,51301374001,"-1,035.00",Redacted Personal Data,INDIVIDUAL,OP - City & South Locality - Cost of Care,Older People - City & South - Care,Direct Payments
Cambridgeshire County Council,19-May-20,51301374001,"-1,035.00",Redacted Personal Data,INDIVIDUAL,OP - City & South Locality - Cost of Care,Older People - City & South - Care,Direct Payments
Cambridgeshire County Council,19-May-20,51301374001,"-1,035.00",Redacted Personal Data,INDIVIDUAL,OP - City & South Locality - Cost of Care,Older People - City & South - Care,Direct Payments
Cambridgeshire County Council,19-May-20,51301374001,"-1,035.00",Redacted Personal Data,INDIVIDUAL,OP - City & South Locality - Cost of Care,Older People - City & South - Care,Direct Payments
Cambridgeshire County Council,14-May-20,51301368399,"-1,028.57",ETHELDRED HOUSE,CARE ESTABLISHMENT,OP - City & South Locality - Cost of Care,Older People - City & South - Care,Residential Care
Cambridgeshire County Council,19-May-20,51301374361,"-1,028.57",Redacted Personal Data,SERVICE USER,LD - East Locality - Cost of Care,LD - East Cambs - Special Needs,Direct Payments
Cambridgeshire County Council,07-May-20,51301364375,"-1,023.01",DIMENSIONS (UK) LTD,CARE ESTABLISHMENT,LD - South Locality - Cost of Care,LD - South Cambs - Care,Domiciliary Care
Cambridgeshire County Council,07-May-20,51301364401,"-1,019.69",HUNTINGDON MENCAP LTD,CARE ESTABLISHMENT,LD - Hunts Locality - Cost of Care,LD - Huntingdonshire - Care,Domiciliary Care
Cambridgeshire County Council,19-May-20,51301374160,"-1,016.23",Redacted Personal Data,FOSTER PARENT,LD - Hunts Locality - Cost of Care,LD - Huntingdonshire - Care,Direct Payments
Cambridgeshire County Council,19-May-20,51301374160,"-1,016.23",Redacted Personal Data,FOSTER PARENT,LD - Hunts Locality - Cost of Care,LD - Huntingdonshire - Care,Direct Payments
Cambridgeshire County Council,19-May-20,51301374160,"-1,016.23",Redacted Personal Data,FOSTER PARENT,LD - Hunts Locality - Cost of Care,LD - Huntingdonshire - Care,Direct Payments
Cambridgeshire County Council,19-May-20,51301374160,"-1,016.23",Redacted Personal Data,FOSTER PARENT,LD - Hunts Locality - Cost of Care,LD - Huntingdonshire - Care,Direct Payments
Cambridgeshire County Council,19-May-20,51301374160,"-1,016.23",Redacted Personal Data,FOSTER PARENT,LD - Hunts Locality - Cost of Care,LD - Huntingdonshire - Care,Direct Payments
Cambridgeshire County Council,19-May-20,51301374186,"-1,010.31",Redacted Personal Data,SERVICE USER,Physical Disablity - Cost of Care,Countywide PD Service - Care,Direct Payments
Cambridgeshire County Council,19-May-20,51301374186,"-1,010.31",Redacted Personal Data,SERVICE USER,Physical Disablity - Cost of Care,Countywide PD Service - Care,Direct Payments
Cambridgeshire County Council,19-May-20,51301374186,"-1,010.31",Redacted Personal Data,SERVICE USER,Physical Disablity - Cost of Care,Countywide PD Service - Care,Direct Payments
Cambridgeshire County Council,19-May-20,51301374186,"-1,010.31",Redacted Personal Data,SERVICE USER,Physical Disablity - Cost of Care,Countywide PD Service - Care,Direct Payments
Cambridgeshire County Council,19-May-20,51301374186,"-1,010.31",Redacted Personal Data,SERVICE USER,Physical Disablity - Cost of Care,Countywide PD Service - Care,Direct Payments
Cambridgeshire County Council,19-May-20,51301374495,"-1,008.00",Redacted Personal Data,SERVICE USER,LD - Fenland Locality - Cost of Care,LD - Fenland  - Special Needs,Direct Payments
Cambridgeshire County Council,19-May-20,51301374384,"-1,005.10",Redacted Personal Data,INDIVIDUAL,LD - Fenland Locality - Cost of Care,LD - Fenland  - Special Needs,Direct Payments
Cambridgeshire County Council,19-May-20,51301374384,"-1,005.10",Redacted Personal Data,INDIVIDUAL,LD - Fenland Locality - Cost of Care,LD - Fenland  - Special Needs,Direct Payments
Cambridgeshire County Council,19-May-20,51301374384,"-1,005.10",Redacted Personal Data,INDIVIDUAL,LD - Fenland Locality - Cost of Care,LD - Fenland  - Special Needs,Direct Payments
Cambridgeshire County Council,19-May-20,51301374384,"-1,005.10",Redacted Personal Data,INDIVIDUAL,LD - Fenland Locality - Cost of Care,LD - Fenland  - Special Needs,Direct Payments
Cambridgeshire County Council,19-May-20,51301374384,"-1,005.10",Redacted Personal Data,INDIVIDUAL,LD - Fenland Locality - Cost of Care,LD - Fenland  - Special Needs,Direct Payments
Cambridgeshire County Council,06-May-20,51301364011,"-1,000.14",AGATE HOUSE,CARE ESTABLISHMENT,Physical Disablity - Cost of Care,Countywide PD Service - Care,Nursing Care
Cambridgeshire County Council,06-May-20,51301364011,"-1,000.14",AGATE HOUSE,CARE ESTABLISHMENT,Physical Disablity - Cost of Care,Countywide PD Service - Care,Nursing Care
Cambridgeshire County Council,06-May-20,51301364011,"-1,000.14",AGATE HOUSE,CARE ESTABLISHMENT,Physical Disablity - Cost of Care,Countywide PD Service - Care,Nursing Care
Cambridgeshire County Council,06-May-20,51301364011,"-1,000.14",AGATE HOUSE,CARE ESTABLISHMENT,Physical Disablity - Cost of Care,Countywide PD Service - Care,Nursing Care
Cambridgeshire County Council,06-May-20,51301364011,"-1,000.14",AGATE HOUSE,CARE ESTABLISHMENT,Physical Disablity - Cost of Care,Countywide PD Service - Care,Nursing Care
Cambridgeshire County Council,06-May-20,51301364011,"-1,000.14",AGATE HOUSE,CARE ESTABLISHMENT,Physical Disablity - Cost of Care,Countywide PD Service - Care,Nursing Care
Cambridgeshire County Council,06-May-20,51301364011,"-1,000.14",AGATE HOUSE,CARE ESTABLISHMENT,Physical Disablity - Cost of Care,Countywide PD Service - Care,Nursing Care
Cambridgeshire County Council,06-May-20,51301364011,"-1,000.14",AGATE HOUSE,CARE ESTABLISHMENT,Physical Disablity - Cost of Care,Countywide PD Service - Care,Nursing Care
Cambridgeshire County Council,06-May-20,51301364011,"-1,000.14",AGATE HOUSE,CARE ESTABLISHMENT,Physical Disablity - Cost of Care,Countywide PD Service - Care,Nursing Care
Cambridgeshire County Council,06-May-20,51301364011,"-1,000.14",AGATE HOUSE,CARE ESTABLISHMENT,Physical Disablity - Cost of Care,Countywide PD Service - Care,Nursing Care
Cambridgeshire County Council,06-May-20,51301364011,"-1,000.14",AGATE HOUSE,CARE ESTABLISHMENT,Physical Disablity - Cost of Care,Countywide PD Service - Care,Nursing Care
Cambridgeshire County Council,06-May-20,51301364011,"-1,000.14",AGATE HOUSE,CARE ESTABLISHMENT,Physical Disablity - Cost of Care,Countywide PD Service - Care,Nursing Care
Cambridgeshire County Council,06-May-20,51301364011,"-1,000.14",AGATE HOUSE,CARE ESTABLISHMENT,Physical Disablity - Cost of Care,Countywide PD Service - Care,Nursing Care
Cambridgeshire County Council,06-May-20,51301364011,"-1,000.14",AGATE HOUSE,CARE ESTABLISHMENT,Physical Disablity - Cost of Care,Countywide PD Service - Care,Nursing Care
Cambridgeshire County Council,06-May-20,51301364011,"-1,000.14",AGATE HOUSE,CARE ESTABLISHMENT,Physical Disablity - Cost of Care,Countywide PD Service - Care,Nursing Care
Cambridgeshire County Council,06-May-20,51301364011,"-1,000.14",AGATE HOUSE,CARE ESTABLISHMENT,Physical Disablity - Cost of Care,Countywide PD Service - Care,Nursing Care
Cambridgeshire County Council,06-May-20,51301364011,"-1,000.14",AGATE HOUSE,CARE ESTABLISHMENT,Physical Disablity - Cost of Care,Countywide PD Service - Care,Nursing Care
Cambridgeshire County Council,06-May-20,51301364011,"-1,000.14",AGATE HOUSE,CARE ESTABLISHMENT,Physical Disablity - Cost of Care,Countywide PD Service - Care,Nursing Care
Cambridgeshire County Council,06-May-20,51301364011,"-1,000.14",AGATE HOUSE,CARE ESTABLISHMENT,Physical Disablity - Cost of Care,Countywide PD Service - Care,Nursing Care
Cambridgeshire County Council,06-May-20,51301364011,"-1,000.14",AGATE HOUSE,CARE ESTABLISHMENT,Physical Disablity - Cost of Care,Countywide PD Service - Care,Nursing Care
Cambridgeshire County Council,06-May-20,51301364011,"-1,000.14",AGATE HOUSE,CARE ESTABLISHMENT,Physical Disablity - Cost of Care,Countywide PD Service - Care,Nursing Care
Cambridgeshire County Council,06-May-20,51301364011,"-1,000.14",AGATE HOUSE,CARE ESTABLISHMENT,Physical Disablity - Cost of Care,Countywide PD Service - Care,Nursing Care
Cambridgeshire County Council,06-May-20,51301364011,"-1,000.14",AGATE HOUSE,CARE ESTABLISHMENT,Physical Disablity - Cost of Care,Countywide PD Service - Care,Nursing Care
Cambridgeshire County Council,06-May-20,51301364011,"-1,000.14",AGATE HOUSE,CARE ESTABLISHMENT,Physical Disablity - Cost of Care,Countywide PD Service - Care,Nursing Care
Cambridgeshire County Council,06-May-20,51301364011,"-1,000.14",AGATE HOUSE,CARE ESTABLISHMENT,Physical Disablity - Cost of Care,Countywide PD Service - Care,Nursing Care
Cambridgeshire County Council,06-May-20,51301364011,"-1,000.14",AGATE HOUSE,CARE ESTABLISHMENT,Physical Disablity - Cost of Care,Countywide PD Service - Care,Nursing Care
Cambridgeshire County Council,06-May-20,51301364011,"-1,000.14",AGATE HOUSE,CARE ESTABLISHMENT,Physical Disablity - Cost of Care,Countywide PD Service - Care,Nursing Care
Cambridgeshire County Council,06-May-20,51301364011,"-1,000.14",AGATE HOUSE,CARE ESTABLISHMENT,Physical Disablity - Cost of Care,Countywide PD Service - Care,Nursing Care
Cambridgeshire County Council,06-May-20,51301364011,"-1,000.14",AGATE HOUSE,CARE ESTABLISHMENT,Physical Disablity - Cost of Care,Countywide PD Service - Care,Nursing Care
Cambridgeshire County Council,06-May-20,51301364011,"-1,000.14",AGATE HOUSE,CARE ESTABLISHMENT,Physical Disablity - Cost of Care,Countywide PD Service - Care,Nursing Care
Cambridgeshire County Council,06-May-20,51301364011,"-1,000.14",AGATE HOUSE,CARE ESTABLISHMENT,Physical Disablity - Cost of Care,Countywide PD Service - Care,Nursing Care
Cambridgeshire County Council,06-May-20,51301364011,"-1,000.14",AGATE HOUSE,CARE ESTABLISHMENT,Physical Disablity - Cost of Care,Countywide PD Service - Care,Nursing Care
Cambridgeshire County Council,06-May-20,51301364011,"-1,000.14",AGATE HOUSE,CARE ESTABLISHMENT,Physical Disablity - Cost of Care,Countywide PD Service - Care,Nursing Care
Cambridgeshire County Council,06-May-20,51301364011,"-1,000.14",AGATE HOUSE,CARE ESTABLISHMENT,Physical Disablity - Cost of Care,Countywide PD Service - Care,Nursing Care
Cambridgeshire County Council,06-May-20,51301364011,"-1,000.14",AGATE HOUSE,CARE ESTABLISHMENT,Physical Disablity - Cost of Care,Countywide PD Service - Care,Nursing Care
Cambridgeshire County Council,06-May-20,51301364011,"-1,000.14",AGATE HOUSE,CARE ESTABLISHMENT,Physical Disablity - Cost of Care,Countywide PD Service - Care,Nursing Care
Cambridgeshire County Council,06-May-20,51301364011,"-1,000.14",AGATE HOUSE,CARE ESTABLISHMENT,Physical Disablity - Cost of Care,Countywide PD Service - Care,Nursing Care
Cambridgeshire County Council,06-May-20,51301364011,"-1,000.14",AGATE HOUSE,CARE ESTABLISHMENT,Physical Disablity - Cost of Care,Countywide PD Service - Care,Nursing Care
Cambridgeshire County Council,06-May-20,51301364011,"-1,000.14",AGATE HOUSE,CARE ESTABLISHMENT,Physical Disablity - Cost of Care,Countywide PD Service - Care,Nursing Care
Cambridgeshire County Council,06-May-20,51301364011,"-1,000.14",AGATE HOUSE,CARE ESTABLISHMENT,Physical Disablity - Cost of Care,Countywide PD Service - Care,Nursing Care
Cambridgeshire County Council,06-May-20,51301364011,"-1,000.14",AGATE HOUSE,CARE ESTABLISHMENT,Physical Disablity - Cost of Care,Countywide PD Service - Care,Nursing Care
Cambridgeshire County Council,06-May-20,51301364011,"-1,000.14",AGATE HOUSE,CARE ESTABLISHMENT,Physical Disablity - Cost of Care,Countywide PD Service - Care,Nursing Care
Cambridgeshire County Council,06-May-20,51301364011,"-1,000.14",AGATE HOUSE,CARE ESTABLISHMENT,Physical Disablity - Cost of Care,Countywide PD Service - Care,Nursing Care
Cambridgeshire County Council,06-May-20,51301364011,"-1,000.14",AGATE HOUSE,CARE ESTABLISHMENT,Physical Disablity - Cost of Care,Countywide PD Service - Care,Nursing Care
Cambridgeshire County Council,06-May-20,51301364011,"-1,000.14",AGATE HOUSE,CARE ESTABLISHMENT,Physical Disablity - Cost of Care,Countywide PD Service - Care,Nursing Care
Cambridgeshire County Council,06-May-20,51301364011,"-1,000.14",AGATE HOUSE,CARE ESTABLISHMENT,Physical Disablity - Cost of Care,Countywide PD Service - Care,Nursing Care
Cambridgeshire County Council,06-May-20,51301364011,"-1,000.14",AGATE HOUSE,CARE ESTABLISHMENT,Physical Disablity - Cost of Care,Countywide PD Service - Care,Nursing Care
Cambridgeshire County Council,06-May-20,51301364011,"-1,000.14",AGATE HOUSE,CARE ESTABLISHMENT,Physical Disablity - Cost of Care,Countywide PD Service - Care,Nursing Care
Cambridgeshire County Council,06-May-20,51301364011,"-1,000.14",AGATE HOUSE,CARE ESTABLISHMENT,Physical Disablity - Cost of Care,Countywide PD Service - Care,Nursing Care
Cambridgeshire County Council,06-May-20,51301364011,"-1,000.14",AGATE HOUSE,CARE ESTABLISHMENT,Physical Disablity - Cost of Care,Countywide PD Service - Care,Nursing Care
Cambridgeshire County Council,06-May-20,51301364011,"-1,000.14",AGATE HOUSE,CARE ESTABLISHMENT,Physical Disablity - Cost of Care,Countywide PD Service - Care,Nursing Care
Cambridgeshire County Council,06-May-20,51301364011,"-1,000.14",AGATE HOUSE,CARE ESTABLISHMENT,Physical Disablity - Cost of Care,Countywide PD Service - Care,Nursing Care
Cambridgeshire County Council,06-May-20,51301364011,"-1,000.14",AGATE HOUSE,CARE ESTABLISHMENT,Physical Disablity - Cost of Care,Countywide PD Service - Care,Nursing Care
Cambridgeshire County Council,06-May-20,51301364011,"-1,000.14",AGATE HOUSE,CARE ESTABLISHMENT,Physical Disablity - Cost of Care,Countywide PD Service - Care,Nursing Care
Cambridgeshire County Council,06-May-20,51301364011,"-1,000.14",AGATE HOUSE,CARE ESTABLISHMENT,Physical Disablity - Cost of Care,Countywide PD Service - Care,Nursing Care
Cambridgeshire County Council,06-May-20,51301364011,"-1,000.14",AGATE HOUSE,CARE ESTABLISHMENT,Physical Disablity - Cost of Care,Countywide PD Service - Care,Nursing Care
Cambridgeshire County Council,06-May-20,51301364011,"-1,000.14",AGATE HOUSE,CARE ESTABLISHMENT,Physical Disablity - Cost of Care,Countywide PD Service - Care,Nursing Care
Cambridgeshire County Council,06-May-20,51301364011,"-1,000.14",AGATE HOUSE,CARE ESTABLISHMENT,Physical Disablity - Cost of Care,Countywide PD Service - Care,Nursing Care
Cambridgeshire County Council,06-May-20,51301364011,"-1,000.14",AGATE HOUSE,CARE ESTABLISHMENT,Physical Disablity - Cost of Care,Countywide PD Service - Care,Nursing Care
Cambridgeshire County Council,06-May-20,51301364011,"-1,000.14",AGATE HOUSE,CARE ESTABLISHMENT,Physical Disablity - Cost of Care,Countywide PD Service - Care,Nursing Care
Cambridgeshire County Council,06-May-20,51301364011,"-1,000.14",AGATE HOUSE,CARE ESTABLISHMENT,Physical Disablity - Cost of Care,Countywide PD Service - Care,Nursing Care
Cambridgeshire County Council,06-May-20,51301364011,"-1,000.14",AGATE HOUSE,CARE ESTABLISHMENT,Physical Disablity - Cost of Care,Countywide PD Service - Care,Nursing Care
Cambridgeshire County Council,06-May-20,51301364011,"-1,000.14",AGATE HOUSE,CARE ESTABLISHMENT,Physical Disablity - Cost of Care,Countywide PD Service - Care,Nursing Care
Cambridgeshire County Council,06-May-20,51301364011,"-1,000.14",AGATE HOUSE,CARE ESTABLISHMENT,Physical Disablity - Cost of Care,Countywide PD Service - Care,Nursing Care
Cambridgeshire County Council,06-May-20,51301364011,"-1,000.14",AGATE HOUSE,CARE ESTABLISHMENT,Physical Disablity - Cost of Care,Countywide PD Service - Care,Nursing Care
Cambridgeshire County Council,28-May-20,51301377775,"-1,000.04",THE MANOR CHESHIRE HOME,CARE ESTABLISHMENT,Physical Disablity - Cost of Care,Countywide PD Service - Care,Residential Care
Cambridgeshire County Council,28-May-20,51301377775,"-1,000.04",THE MANOR CHESHIRE HOME,CARE ESTABLISHMENT,Physical Disablity - Cost of Care,Countywide PD Service - Care,Residential Care
Cambridgeshire County Council,28-May-20,51301377775,"-1,000.04",THE MANOR CHESHIRE HOME,CARE ESTABLISHMENT,Physical Disablity - Cost of Care,Countywide PD Service - Care,Residential Care
Cambridgeshire County Council,28-May-20,51301377775,"-1,000.04",THE MANOR CHESHIRE HOME,CARE ESTABLISHMENT,Physical Disablity - Cost of Care,Countywide PD Service - Care,Residential Care
Cambridgeshire County Council,28-May-20,51301377775,"-1,000.04",THE MANOR CHESHIRE HOME,CARE ESTABLISHMENT,Physical Disablity - Cost of Care,Countywide PD Service - Care,Residential Care
Cambridgeshire County Council,28-May-20,51301377775,"-1,000.04",THE MANOR CHESHIRE HOME,CARE ESTABLISHMENT,Physical Disablity - Cost of Care,Countywide PD Service - Care,Residential Care
Cambridgeshire County Council,28-May-20,51301377775,"-1,000.04",THE MANOR CHESHIRE HOME,CARE ESTABLISHMENT,Physical Disablity - Cost of Care,Countywide PD Service - Care,Residential Care
Cambridgeshire County Council,28-May-20,51301377775,"-1,000.04",THE MANOR CHESHIRE HOME,CARE ESTABLISHMENT,Physical Disablity - Cost of Care,Countywide PD Service - Care,Residential Care
Cambridgeshire County Council,28-May-20,51301377775,"-1,000.04",THE MANOR CHESHIRE HOME,CARE ESTABLISHMENT,Physical Disablity - Cost of Care,Countywide PD Service - Care,Residential Care
Cambridgeshire County Council,28-May-20,51301377775,"-1,000.04",THE MANOR CHESHIRE HOME,CARE ESTABLISHMENT,Physical Disablity - Cost of Care,Countywide PD Service - Care,Residential Care
Cambridgeshire County Council,28-May-20,51301377775,"-1,000.04",THE MANOR CHESHIRE HOME,CARE ESTABLISHMENT,Physical Disablity - Cost of Care,Countywide PD Service - Care,Residential Care
Cambridgeshire County Council,28-May-20,51301377775,"-1,000.04",THE MANOR CHESHIRE HOME,CARE ESTABLISHMENT,Physical Disablity - Cost of Care,Countywide PD Service - Care,Residential Care
Cambridgeshire County Council,28-May-20,51301377775,"-1,000.04",THE MANOR CHESHIRE HOME,CARE ESTABLISHMENT,Physical Disablity - Cost of Care,Countywide PD Service - Care,Residential Care
Cambridgeshire County Council,28-May-20,51301377775,"-1,000.04",THE MANOR CHESHIRE HOME,CARE ESTABLISHMENT,Physical Disablity - Cost of Care,Countywide PD Service - Care,Residential Care
Cambridgeshire County Council,28-May-20,51301377775,"-1,000.04",THE MANOR CHESHIRE HOME,CARE ESTABLISHMENT,Physical Disablity - Cost of Care,Countywide PD Service - Care,Residential Care
Cambridgeshire County Council,28-May-20,51301377775,"-1,000.04",THE MANOR CHESHIRE HOME,CARE ESTABLISHMENT,Physical Disablity - Cost of Care,Countywide PD Service - Care,Residential Care
Cambridgeshire County Council,28-May-20,51301377775,"-1,000.04",THE MANOR CHESHIRE HOME,CARE ESTABLISHMENT,Physical Disablity - Cost of Care,Countywide PD Service - Care,Residential Care
Cambridgeshire County Council,28-May-20,51301377775,"-1,000.04",THE MANOR CHESHIRE HOME,CARE ESTABLISHMENT,Physical Disablity - Cost of Care,Countywide PD Service - Care,Residential Care
Cambridgeshire County Council,28-May-20,51301377775,"-1,000.04",THE MANOR CHESHIRE HOME,CARE ESTABLISHMENT,Physical Disablity - Cost of Care,Countywide PD Service - Care,Residential Care
Cambridgeshire County Council,28-May-20,51301377775,"-1,000.04",THE MANOR CHESHIRE HOME,CARE ESTABLISHMENT,Physical Disablity - Cost of Care,Countywide PD Service - Care,Residential Care
Cambridgeshire County Council,28-May-20,51301377775,"-1,000.04",THE MANOR CHESHIRE HOME,CARE ESTABLISHMENT,Physical Disablity - Cost of Care,Countywide PD Service - Care,Residential Care
Cambridgeshire County Council,28-May-20,51301377775,"-1,000.04",THE MANOR CHESHIRE HOME,CARE ESTABLISHMENT,Physical Disablity - Cost of Care,Countywide PD Service - Care,Residential Care
Cambridgeshire County Council,28-May-20,51301377775,"-1,000.04",THE MANOR CHESHIRE HOME,CARE ESTABLISHMENT,Physical Disablity - Cost of Care,Countywide PD Service - Care,Residential Care
Cambridgeshire County Council,28-May-20,51301377775,"-1,000.04",THE MANOR CHESHIRE HOME,CARE ESTABLISHMENT,Physical Disablity - Cost of Care,Countywide PD Service - Care,Residential Care
Cambridgeshire County Council,28-May-20,51301377775,"-1,000.04",THE MANOR CHESHIRE HOME,CARE ESTABLISHMENT,Physical Disablity - Cost of Care,Countywide PD Service - Care,Residential Care
Cambridgeshire County Council,28-May-20,51301377775,"-1,000.04",THE MANOR CHESHIRE HOME,CARE ESTABLISHMENT,Physical Disablity - Cost of Care,Countywide PD Service - Care,Residential Care
Cambridgeshire County Council,28-May-20,51301377775,"-1,000.04",THE MANOR CHESHIRE HOME,CARE ESTABLISHMENT,Physical Disablity - Cost of Care,Countywide PD Service - Care,Residential Care
Cambridgeshire County Council,28-May-20,51301377775,"-1,000.04",THE MANOR CHESHIRE HOME,CARE ESTABLISHMENT,Physical Disablity - Cost of Care,Countywide PD Service - Care,Residential Care
Cambridgeshire County Council,28-May-20,51301377775,"-1,000.04",THE MANOR CHESHIRE HOME,CARE ESTABLISHMENT,Physical Disablity - Cost of Care,Countywide PD Service - Care,Residential Care
Cambridgeshire County Council,28-May-20,51301377775,"-1,000.04",THE MANOR CHESHIRE HOME,CARE ESTABLISHMENT,Physical Disablity - Cost of Care,Countywide PD Service - Care,Residential Care
Cambridgeshire County Council,28-May-20,51301377775,"-1,000.04",THE MANOR CHESHIRE HOME,CARE ESTABLISHMENT,Physical Disablity - Cost of Care,Countywide PD Service - Care,Residential Care
Cambridgeshire County Council,28-May-20,51301377775,"-1,000.04",THE MANOR CHESHIRE HOME,CARE ESTABLISHMENT,Physical Disablity - Cost of Care,Countywide PD Service - Care,Residential Care
Cambridgeshire County Council,28-May-20,51301377775,"-1,000.04",THE MANOR CHESHIRE HOME,CARE ESTABLISHMENT,Physical Disablity - Cost of Care,Countywide PD Service - Care,Residential Care
Cambridgeshire County Council,28-May-20,51301377775,"-1,000.04",THE MANOR CHESHIRE HOME,CARE ESTABLISHMENT,Physical Disablity - Cost of Care,Countywide PD Service - Care,Residential Care
Cambridgeshire County Council,28-May-20,51301377775,"-1,000.04",THE MANOR CHESHIRE HOME,CARE ESTABLISHMENT,Physical Disablity - Cost of Care,Countywide PD Service - Care,Residential Care
Cambridgeshire County Council,28-May-20,51301377775,"-1,000.04",THE MANOR CHESHIRE HOME,CARE ESTABLISHMENT,Physical Disablity - Cost of Care,Countywide PD Service - Care,Residential Care
Cambridgeshire County Council,28-May-20,51301377775,"-1,000.04",THE MANOR CHESHIRE HOME,CARE ESTABLISHMENT,Physical Disablity - Cost of Care,Countywide PD Service - Care,Residential Care
Cambridgeshire County Council,28-May-20,51301377775,"-1,000.04",THE MANOR CHESHIRE HOME,CARE ESTABLISHMENT,Physical Disablity - Cost of Care,Countywide PD Service - Care,Residential Care
Cambridgeshire County Council,28-May-20,51301377775,"-1,000.04",THE MANOR CHESHIRE HOME,CARE ESTABLISHMENT,Physical Disablity - Cost of Care,Countywide PD Service - Care,Residential Care
Cambridgeshire County Council,28-May-20,51301377775,"-1,000.04",THE MANOR CHESHIRE HOME,CARE ESTABLISHMENT,Physical Disablity - Cost of Care,Countywide PD Service - Care,Residential Care
Cambridgeshire County Council,28-May-20,51301377775,"-1,000.04",THE MANOR CHESHIRE HOME,CARE ESTABLISHMENT,Physical Disablity - Cost of Care,Countywide PD Service - Care,Residential Care
Cambridgeshire County Council,28-May-20,51301377775,"-1,000.04",THE MANOR CHESHIRE HOME,CARE ESTABLISHMENT,Physical Disablity - Cost of Care,Countywide PD Service - Care,Residential Care
Cambridgeshire County Council,28-May-20,51301377775,"-1,000.04",THE MANOR CHESHIRE HOME,CARE ESTABLISHMENT,Physical Disablity - Cost of Care,Countywide PD Service - Care,Residential Care
Cambridgeshire County Council,28-May-20,51301377775,"-1,000.04",THE MANOR CHESHIRE HOME,CARE ESTABLISHMENT,Physical Disablity - Cost of Care,Countywide PD Service - Care,Residential Care
Cambridgeshire County Council,28-May-20,51301377775,"-1,000.04",THE MANOR CHESHIRE HOME,CARE ESTABLISHMENT,Physical Disablity - Cost of Care,Countywide PD Service - Care,Residential Care
Cambridgeshire County Council,28-May-20,51301377775,"-1,000.04",THE MANOR CHESHIRE HOME,CARE ESTABLISHMENT,Physical Disablity - Cost of Care,Countywide PD Service - Care,Residential Care
Cambridgeshire County Council,28-May-20,51301377775,"-1,000.04",THE MANOR CHESHIRE HOME,CARE ESTABLISHMENT,Physical Disablity - Cost of Care,Countywide PD Service - Care,Residential Care
Cambridgeshire County Council,28-May-20,51301377775,"-1,000.04",THE MANOR CHESHIRE HOME,CARE ESTABLISHMENT,Physical Disablity - Cost of Care,Countywide PD Service - Care,Residential Care
Cambridgeshire County Council,19-May-20,51301374498,"-1,000.00",Redacted Personal Data,SERVICE USER,Physical Disablity - Cost of Care,Countywide PD Service - Care,Direct Payments
Cambridgeshire County Council,19-May-20,51301374498,"-1,000.00",Redacted Personal Data,SERVICE USER,Physical Disablity - Cost of Care,Countywide PD Service - Care,Direct Payments
Cambridgeshire County Council,19-May-20,51301374498,"-1,000.00",Redacted Personal Data,SERVICE USER,Physical Disablity - Cost of Care,Countywide PD Service - Care,Direct Payments
Cambridgeshire County Council,19-May-20,51301374498,"-1,000.00",Redacted Personal Data,SERVICE USER,Physical Disablity - Cost of Care,Countywide PD Service - Care,Direct Payments
Cambridgeshire County Council,19-May-20,51301374498,"-1,000.00",Redacted Personal Data,SERVICE USER,Physical Disablity - Cost of Care,Countywide PD Service - Care,Direct Payments
Cambridgeshire County Council,19-May-20,51301374418,-994.92,Redacted Personal Data,SERVICE USER,LD - South Locality - Cost of Care,LD - South Cambs - Care,Direct Payments
Cambridgeshire County Council,19-May-20,51301374418,-994.92,Redacted Personal Data,SERVICE USER,LD - South Locality - Cost of Care,LD - South Cambs - Care,Direct Payments
Cambridgeshire County Council,19-May-20,51301374418,-994.92,Redacted Personal Data,SERVICE USER,LD - South Locality - Cost of Care,LD - South Cambs - Care,Direct Payments
Cambridgeshire County Council,19-May-20,51301374418,-994.92,Redacted Personal Data,SERVICE USER,LD - South Locality - Cost of Care,LD - South Cambs - Care,Direct Payments
Cambridgeshire County Council,19-May-20,51301374418,-994.92,Redacted Personal Data,SERVICE USER,LD - South Locality - Cost of Care,LD - South Cambs - Care,Direct Payments
Cambridgeshire County Council,13-May-20,51301367241,-991.29,WOODLANDS CARE CENTRE,CARE ESTABLISHMENT,OPMH - City & South,Older People Mental Health City & South,Nursing Care
Cambridgeshire County Council,19-May-20,51301374022,-989.27,Redacted Personal Data,INDIVIDUAL,AMH - Hunts & Fens,Hunts Mental Health Team,Direct Payments
Cambridgeshire County Council,19-May-20,51301374022,-989.27,Redacted Personal Data,INDIVIDUAL,AMH - Hunts & Fens,Hunts Mental Health Team,Direct Payments
Cambridgeshire County Council,19-May-20,51301374022,-989.27,Redacted Personal Data,INDIVIDUAL,AMH - Hunts & Fens,Hunts Mental Health Team,Direct Payments
Cambridgeshire County Council,19-May-20,51301374022,-989.27,Redacted Personal Data,INDIVIDUAL,AMH - Hunts & Fens,Hunts Mental Health Team,Direct Payments
Cambridgeshire County Council,19-May-20,51301374022,-989.27,Redacted Personal Data,INDIVIDUAL,AMH - Hunts & Fens,Hunts Mental Health Team,Direct Payments
Cambridgeshire County Council,14-May-20,51301368839,-984.00,CARE UK LIMITED,CARE ESTABLISHMENT,OP - Hunts Locality - Cost of Care,Hunts OP Team - Care,Nursing Care
Cambridgeshire County Council,14-May-20,51301368839,-984.00,CARE UK LIMITED,CARE ESTABLISHMENT,OP - Hunts Locality - Cost of Care,Hunts OP Team - Care,Nursing Care
Cambridgeshire County Council,14-May-20,51301368839,-984.00,CARE UK LIMITED,CARE ESTABLISHMENT,OP - Hunts Locality - Cost of Care,Hunts OP Team - Care,Nursing Care
Cambridgeshire County Council,14-May-20,51301368839,-984.00,CARE UK LIMITED,CARE ESTABLISHMENT,OP - Hunts Locality - Cost of Care,Hunts OP Team - Care,Nursing Care
Cambridgeshire County Council,14-May-20,51301368839,-984.00,CARE UK LIMITED,CARE ESTABLISHMENT,OP - Hunts Locality - Cost of Care,Hunts OP Team - Care,Nursing Care
Cambridgeshire County Council,14-May-20,51301368839,-984.00,CARE UK LIMITED,CARE ESTABLISHMENT,OP - Hunts Locality - Cost of Care,Hunts OP Team - Care,Nursing Care
Cambridgeshire County Council,14-May-20,51301368839,-984.00,CARE UK LIMITED,CARE ESTABLISHMENT,OP - Hunts Locality - Cost of Care,Hunts OP Team - Care,Nursing Care
Cambridgeshire County Council,14-May-20,51301368839,-984.00,CARE UK LIMITED,CARE ESTABLISHMENT,OP - Hunts Locality - Cost of Care,Hunts OP Team - Care,Nursing Care
Cambridgeshire County Council,14-May-20,51301368839,-984.00,CARE UK LIMITED,CARE ESTABLISHMENT,OP - Hunts Locality - Cost of Care,Hunts OP Team - Care,Nursing Care
Cambridgeshire County Council,14-May-20,51301368839,-984.00,CARE UK LIMITED,CARE ESTABLISHMENT,OP - Hunts Locality - Cost of Care,Hunts OP Team - Care,Nursing Care
Cambridgeshire County Council,14-May-20,51301368839,-984.00,CARE UK LIMITED,CARE ESTABLISHMENT,OP - Hunts Locality - Cost of Care,Hunts OP Team - Care,Nursing Care
Cambridgeshire County Council,14-May-20,51301368839,-984.00,CARE UK LIMITED,CARE ESTABLISHMENT,OP - Hunts Locality - Cost of Care,Hunts OP Team - Care,Nursing Care
Cambridgeshire County Council,14-May-20,51301368839,-984.00,CARE UK LIMITED,CARE ESTABLISHMENT,OP - Hunts Locality - Cost of Care,Hunts OP Team - Care,Nursing Care
Cambridgeshire County Council,14-May-20,51301368839,-984.00,CARE UK LIMITED,CARE ESTABLISHMENT,OP - Hunts Locality - Cost of Care,Hunts OP Team - Care,Nursing Care
Cambridgeshire County Council,14-May-20,51301368839,-984.00,CARE UK LIMITED,CARE ESTABLISHMENT,OP - Hunts Locality - Cost of Care,Hunts OP Team - Care,Nursing Care
Cambridgeshire County Council,14-May-20,51301368839,-984.00,CARE UK LIMITED,CARE ESTABLISHMENT,OP - Hunts Locality - Cost of Care,Hunts OP Team - Care,Nursing Care
Cambridgeshire County Council,14-May-20,51301368839,-984.00,CARE UK LIMITED,CARE ESTABLISHMENT,OP - Hunts Locality - Cost of Care,Hunts OP Team - Care,Nursing Care
Cambridgeshire County Council,14-May-20,51301368839,-984.00,CARE UK LIMITED,CARE ESTABLISHMENT,OP - Hunts Locality - Cost of Care,Hunts OP Team - Care,Nursing Care
Cambridgeshire County Council,14-May-20,51301368839,-984.00,CARE UK LIMITED,CARE ESTABLISHMENT,OP - Hunts Locality - Cost of Care,Hunts OP Team - Care,Nursing Care
Cambridgeshire County Council,14-May-20,51301368839,-984.00,CARE UK LIMITED,CARE ESTABLISHMENT,OP - Hunts Locality - Cost of Care,Hunts OP Team - Care,Nursing Care
Cambridgeshire County Council,14-May-20,51301368839,-984.00,CARE UK LIMITED,CARE ESTABLISHMENT,OP - Hunts Locality - Cost of Care,Hunts OP Team - Care,Nursing Care
Cambridgeshire County Council,14-May-20,51301368839,-984.00,CARE UK LIMITED,CARE ESTABLISHMENT,OP - Hunts Locality - Cost of Care,Hunts OP Team - Care,Nursing Care
Cambridgeshire County Council,14-May-20,51301368839,-984.00,CARE UK LIMITED,CARE ESTABLISHMENT,OP - Hunts Locality - Cost of Care,Hunts OP Team - Care,Nursing Care
Cambridgeshire County Council,14-May-20,51301368839,-984.00,CARE UK LIMITED,CARE ESTABLISHMENT,OP - Hunts Locality - Cost of Care,Hunts OP Team - Care,Nursing Care
Cambridgeshire County Council,14-May-20,51301368839,-984.00,CARE UK LIMITED,CARE ESTABLISHMENT,OP - Hunts Locality - Cost of Care,Hunts OP Team - Care,Nursing Care
Cambridgeshire County Council,14-May-20,51301368839,-984.00,CARE UK LIMITED,CARE ESTABLISHMENT,OP - Hunts Locality - Cost of Care,Hunts OP Team - Care,Nursing Care
Cambridgeshire County Council,14-May-20,51301368839,-984.00,CARE UK LIMITED,CARE ESTABLISHMENT,OP - Hunts Locality - Cost of Care,Hunts OP Team - Care,Nursing Care
Cambridgeshire County Council,14-May-20,51301368839,-984.00,CARE UK LIMITED,CARE ESTABLISHMENT,OP - Hunts Locality - Cost of Care,Hunts OP Team - Care,Nursing Care
Cambridgeshire County Council,14-May-20,51301368839,-984.00,CARE UK LIMITED,CARE ESTABLISHMENT,OP - Hunts Locality - Cost of Care,Hunts OP Team - Care,Nursing Care
Cambridgeshire County Council,14-May-20,51301368839,-984.00,CARE UK LIMITED,CARE ESTABLISHMENT,OP - Hunts Locality - Cost of Care,Hunts OP Team - Care,Nursing Care
Cambridgeshire County Council,14-May-20,51301368839,-984.00,CARE UK LIMITED,CARE ESTABLISHMENT,OP - Hunts Locality - Cost of Care,Hunts OP Team - Care,Nursing Care
Cambridgeshire County Council,14-May-20,51301368839,-984.00,CARE UK LIMITED,CARE ESTABLISHMENT,OP - Hunts Locality - Cost of Care,Hunts OP Team - Care,Nursing Care
Cambridgeshire County Council,14-May-20,51301368839,-984.00,CARE UK LIMITED,CARE ESTABLISHMENT,OP - Hunts Locality - Cost of Care,Hunts OP Team - Care,Nursing Care
Cambridgeshire County Council,14-May-20,51301368839,-984.00,CARE UK LIMITED,CARE ESTABLISHMENT,OP - Hunts Locality - Cost of Care,Hunts OP Team - Care,Nursing Care
Cambridgeshire County Council,14-May-20,51301368839,-984.00,CARE UK LIMITED,CARE ESTABLISHMENT,OP - Hunts Locality - Cost of Care,Hunts OP Team - Care,Nursing Care
Cambridgeshire County Council,14-May-20,51301368839,-984.00,CARE UK LIMITED,CARE ESTABLISHMENT,OP - Hunts Locality - Cost of Care,Hunts OP Team - Care,Nursing Care
Cambridgeshire County Council,19-May-20,51301374474,-980.99,Redacted Personal Data,SERVICE USER,LD - South Locality - Cost of Care,LD - South Cambs - Care,Direct Payments
Cambridgeshire County Council,19-May-20,51301373807,-979.99,Redacted Personal Data,INDIVIDUAL,LD - Young Adults Team,LD - Young Adults - Care,Direct Payments
Cambridgeshire County Council,19-May-20,51301373807,-979.99,Redacted Personal Data,INDIVIDUAL,LD - Young Adults Team,LD - Young Adults - Care,Direct Payments
Cambridgeshire County Council,19-May-20,51301373807,-979.99,Redacted Personal Data,INDIVIDUAL,LD - Young Adults Team,LD - Young Adults - Care,Direct Payments
Cambridgeshire County Council,19-May-20,51301373807,-979.99,Redacted Personal Data,INDIVIDUAL,LD - Young Adults Team,LD - Young Adults - Care,Direct Payments
Cambridgeshire County Council,19-May-20,51301373807,-979.99,Redacted Personal Data,INDIVIDUAL,LD - Young Adults Team,LD - Young Adults - Care,Direct Payments
Cambridgeshire County Council,19-May-20,51301374571,-955.50,Redacted Personal Data,SERVICE USER,Physical Disablity - Cost of Care,Countywide PD Service - Care,Direct Payments
Cambridgeshire County Council,19-May-20,51301374571,-955.50,Redacted Personal Data,SERVICE USER,Physical Disablity - Cost of Care,Countywide PD Service - Care,Direct Payments
Cambridgeshire County Council,19-May-20,51301374571,-955.50,Redacted Personal Data,SERVICE USER,Physical Disablity - Cost of Care,Countywide PD Service - Care,Direct Payments
Cambridgeshire County Council,19-May-20,51301374571,-955.50,Redacted Personal Data,SERVICE USER,Physical Disablity - Cost of Care,Countywide PD Service - Care,Direct Payments
Cambridgeshire County Council,19-May-20,51301374571,-955.50,Redacted Personal Data,SERVICE USER,Physical Disablity - Cost of Care,Countywide PD Service - Care,Direct Payments
Cambridgeshire County Council,18-May-20,51301372352,-954.02,AFFINITY TRUST,CARE ESTABLISHMENT,LD - Hunts Locality - Cost of Care,LD - Huntingdonshire - Care,Supported Living
Cambridgeshire County Council,18-May-20,51301372352,-954.02,AFFINITY TRUST,CARE ESTABLISHMENT,LD - Hunts Locality - Cost of Care,LD - Huntingdonshire - Care,Supported Living
Cambridgeshire County Council,18-May-20,51301372352,-954.02,AFFINITY TRUST,CARE ESTABLISHMENT,LD - Hunts Locality - Cost of Care,LD - Huntingdonshire - Care,Supported Living
Cambridgeshire County Council,18-May-20,51301372352,-954.02,AFFINITY TRUST,CARE ESTABLISHMENT,LD - Hunts Locality - Cost of Care,LD - Huntingdonshire - Care,Supported Living
Cambridgeshire County Council,18-May-20,51301372352,-954.02,AFFINITY TRUST,CARE ESTABLISHMENT,LD - Hunts Locality - Cost of Care,LD - Huntingdonshire - Care,Supported Living
Cambridgeshire County Council,18-May-20,51301372352,-954.02,AFFINITY TRUST,CARE ESTABLISHMENT,LD - Hunts Locality - Cost of Care,LD - Huntingdonshire - Care,Supported Living
Cambridgeshire County Council,18-May-20,51301372352,-954.02,AFFINITY TRUST,CARE ESTABLISHMENT,LD - Hunts Locality - Cost of Care,LD - Huntingdonshire - Care,Supported Living
Cambridgeshire County Council,18-May-20,51301372352,-954.02,AFFINITY TRUST,CARE ESTABLISHMENT,LD - Hunts Locality - Cost of Care,LD - Huntingdonshire - Care,Supported Living
Cambridgeshire County Council,18-May-20,51301372352,-954.02,AFFINITY TRUST,CARE ESTABLISHMENT,LD - Hunts Locality - Cost of Care,LD - Huntingdonshire - Care,Supported Living
Cambridgeshire County Council,18-May-20,51301372352,-954.02,AFFINITY TRUST,CARE ESTABLISHMENT,LD - Hunts Locality - Cost of Care,LD - Huntingdonshire - Care,Supported Living
Cambridgeshire County Council,27-May-20,51301377491,-950.01,CHS GROUP,CARE ESTABLISHMENT,LAC Placements,Placements - supported accommodation,Agency Placements - In County
Cambridgeshire County Council,27-May-20,51301377478,-950.01,CHS GROUP,CARE ESTABLISHMENT,LAC Placements,Placements - supported accommodation,Agency Placements - In County
Cambridgeshire County Council,27-May-20,51301377489,-950.01,CHS GROUP,CARE ESTABLISHMENT,LAC Placements,Placements - supported accommodation,Agency Placements - In County
Cambridgeshire County Council,27-May-20,51301377457,-950.01,CHS GROUP,CARE ESTABLISHMENT,LAC Placements,Placements - supported accommodation,Agency Placements - In County
Cambridgeshire County Council,13-May-20,51301367206,-950.00,WOODLANDS CARE CENTRE,CARE ESTABLISHMENT,OP - City & South Locality - Cost of Care,Older People - City & South - Care,Nursing Care
Cambridgeshire County Council,13-May-20,51301367206,-950.00,WOODLANDS CARE CENTRE,CARE ESTABLISHMENT,OP - City & South Locality - Cost of Care,Older People - City & South - Care,Nursing Care
Cambridgeshire County Council,13-May-20,51301367248,-950.00,WOODLANDS CARE CENTRE,CARE ESTABLISHMENT,OP - City & South Locality - Cost of Care,Older People - City & South - Care,Residential Care
Cambridgeshire County Council,13-May-20,51301367248,-950.00,WOODLANDS CARE CENTRE,CARE ESTABLISHMENT,OP - City & South Locality - Cost of Care,Older People - City & South - Care,Residential Care
Cambridgeshire County Council,13-May-20,51301367206,-950.00,WOODLANDS CARE CENTRE,CARE ESTABLISHMENT,OP - City & South Locality - Cost of Care,Older People - City & South - Care,Nursing Care
Cambridgeshire County Council,13-May-20,51301367206,-950.00,WOODLANDS CARE CENTRE,CARE ESTABLISHMENT,OP - City & South Locality - Cost of Care,Older People - City & South - Care,Nursing Care
Cambridgeshire County Council,13-May-20,51301367248,-950.00,WOODLANDS CARE CENTRE,CARE ESTABLISHMENT,OP - City & South Locality - Cost of Care,Older People - City & South - Care,Residential Care
Cambridgeshire County Council,13-May-20,51301367248,-950.00,WOODLANDS CARE CENTRE,CARE ESTABLISHMENT,OP - City & South Locality - Cost of Care,Older People - City & South - Care,Residential Care
Cambridgeshire County Council,13-May-20,51301367248,-950.00,WOODLANDS CARE CENTRE,CARE ESTABLISHMENT,OP - City & South Locality - Cost of Care,Older People - City & South - Care,Residential Care
Cambridgeshire County Council,13-May-20,51301367206,-950.00,WOODLANDS CARE CENTRE,CARE ESTABLISHMENT,OP - City & South Locality - Cost of Care,Older People - City & South - Care,Nursing Care
Cambridgeshire County Council,13-May-20,51301367206,-950.00,WOODLANDS CARE CENTRE,CARE ESTABLISHMENT,OP - City & South Locality - Cost of Care,Older People - City & South - Care,Nursing Care
Cambridgeshire County Council,14-May-20,51301356551,-950.00,ASKHAM PLACE PD,CARE ESTABLISHMENT,Physical Disablity - Cost of Care,Countywide PD Service - Care,Rehabilitation And Respite Care
Cambridgeshire County Council,14-May-20,51301356551,-950.00,ASKHAM PLACE PD,CARE ESTABLISHMENT,Physical Disablity - Cost of Care,Countywide PD Service - Care,Rehabilitation And Respite Care
Cambridgeshire County Council,14-May-20,51301356551,-950.00,ASKHAM PLACE PD,CARE ESTABLISHMENT,Physical Disablity - Cost of Care,Countywide PD Service - Care,Rehabilitation And Respite Care
Cambridgeshire County Council,14-May-20,51301356551,-950.00,ASKHAM PLACE PD,CARE ESTABLISHMENT,Physical Disablity - Cost of Care,Countywide PD Service - Care,Rehabilitation And Respite Care
Cambridgeshire County Council,19-May-20,51301374364,-949.14,Redacted Personal Data,SERVICE USER,Physical Disablity - Cost of Care,Countywide PD Service - Care,Direct Payments
Cambridgeshire County Council,19-May-20,51301373762,-948.80,Redacted Personal Data,INDIVIDUAL,Physical Disablity - Cost of Care,Countywide PD Service - Care,Direct Payments
Cambridgeshire County Council,19-May-20,51301373762,-948.80,Redacted Personal Data,INDIVIDUAL,Physical Disablity - Cost of Care,Countywide PD Service - Care,Direct Payments
Cambridgeshire County Council,19-May-20,51301373762,-948.80,Redacted Personal Data,INDIVIDUAL,Physical Disablity - Cost of Care,Countywide PD Service - Care,Direct Payments
Cambridgeshire County Council,19-May-20,51301373762,-948.80,Redacted Personal Data,INDIVIDUAL,Physical Disablity - Cost of Care,Countywide PD Service - Care,Direct Payments
Cambridgeshire County Council,19-May-20,51301373762,-948.80,Redacted Personal Data,INDIVIDUAL,Physical Disablity - Cost of Care,Countywide PD Service - Care,Direct Payments
Cambridgeshire County Council,19-May-20,51301373762,-948.80,Redacted Personal Data,INDIVIDUAL,Physical Disablity - Cost of Care,Countywide PD Service - Care,Direct Payments
Cambridgeshire County Council,19-May-20,51301373762,-948.80,Redacted Personal Data,INDIVIDUAL,Physical Disablity - Cost of Care,Countywide PD Service - Care,Direct Payments
Cambridgeshire County Council,19-May-20,51301373762,-948.80,Redacted Personal Data,INDIVIDUAL,Physical Disablity - Cost of Care,Countywide PD Service - Care,Direct Payments
Cambridgeshire County Council,19-May-20,51301373762,-948.80,Redacted Personal Data,INDIVIDUAL,Physical Disablity - Cost of Care,Countywide PD Service - Care,Direct Payments
Cambridgeshire County Council,19-May-20,51301373762,-948.80,Redacted Personal Data,INDIVIDUAL,Physical Disablity - Cost of Care,Countywide PD Service - Care,Direct Payments
Cambridgeshire County Council,19-May-20,51301373762,-948.80,Redacted Personal Data,INDIVIDUAL,Physical Disablity - Cost of Care,Countywide PD Service - Care,Direct Payments
Cambridgeshire County Council,19-May-20,51301373762,-948.80,Redacted Personal Data,INDIVIDUAL,Physical Disablity - Cost of Care,Countywide PD Service - Care,Direct Payments
Cambridgeshire County Council,19-May-20,51301373762,-948.80,Redacted Personal Data,INDIVIDUAL,Physical Disablity - Cost of Care,Countywide PD Service - Care,Direct Payments
Cambridgeshire County Council,19-May-20,51301373762,-948.80,Redacted Personal Data,INDIVIDUAL,Physical Disablity - Cost of Care,Countywide PD Service - Care,Direct Payments
Cambridgeshire County Council,19-May-20,51301373762,-948.80,Redacted Personal Data,INDIVIDUAL,Physical Disablity - Cost of Care,Countywide PD Service - Care,Direct Payments
Cambridgeshire County Council,19-May-20,51301374446,-947.01,Redacted Personal Data,SERVICE USER,Physical Disablity - Cost of Care,Countywide PD Service - Care,Direct Payments
Cambridgeshire County Council,06-May-20,51301364012,-944.95,OAKLANDS CARE HOME,CARE ESTABLISHMENT,OP - East Cambs Locality - Cost of Care,East Cambs - O P Team - Care,Nursing Care
Cambridgeshire County Council,06-May-20,51301364012,-944.95,OAKLANDS CARE HOME,CARE ESTABLISHMENT,OP - East Cambs Locality - Cost of Care,East Cambs - O P Team - Care,Nursing Care
Cambridgeshire County Council,06-May-20,51301364012,-944.95,OAKLANDS CARE HOME,CARE ESTABLISHMENT,OP - East Cambs Locality - Cost of Care,East Cambs - O P Team - Care,Nursing Care
Cambridgeshire County Council,06-May-20,51301364012,-944.95,OAKLANDS CARE HOME,CARE ESTABLISHMENT,OP - East Cambs Locality - Cost of Care,East Cambs - O P Team - Care,Nursing Care
Cambridgeshire County Council,06-May-20,51301364012,-944.95,OAKLANDS CARE HOME,CARE ESTABLISHMENT,OP - East Cambs Locality - Cost of Care,East Cambs - O P Team - Care,Nursing Care
Cambridgeshire County Council,06-May-20,51301364012,-944.95,OAKLANDS CARE HOME,CARE ESTABLISHMENT,OP - East Cambs Locality - Cost of Care,East Cambs - O P Team - Care,Nursing Care
Cambridgeshire County Council,06-May-20,51301364012,-944.95,OAKLANDS CARE HOME,CARE ESTABLISHMENT,OP - East Cambs Locality - Cost of Care,East Cambs - O P Team - Care,Nursing Care
Cambridgeshire County Council,06-May-20,51301364012,-944.95,OAKLANDS CARE HOME,CARE ESTABLISHMENT,OP - East Cambs Locality - Cost of Care,East Cambs - O P Team - Care,Nursing Care
Cambridgeshire County Council,06-May-20,51301364012,-944.95,OAKLANDS CARE HOME,CARE ESTABLISHMENT,OP - East Cambs Locality - Cost of Care,East Cambs - O P Team - Care,Nursing Care
Cambridgeshire County Council,06-May-20,51301364012,-944.95,OAKLANDS CARE HOME,CARE ESTABLISHMENT,OP - East Cambs Locality - Cost of Care,East Cambs - O P Team - Care,Nursing Care
Cambridgeshire County Council,06-May-20,51301364012,-944.95,OAKLANDS CARE HOME,CARE ESTABLISHMENT,OP - East Cambs Locality - Cost of Care,East Cambs - O P Team - Care,Nursing Care
Cambridgeshire County Council,06-May-20,51301364012,-944.95,OAKLANDS CARE HOME,CARE ESTABLISHMENT,OP - East Cambs Locality - Cost of Care,East Cambs - O P Team - Care,Nursing Care
Cambridgeshire County Council,06-May-20,51301364012,-944.95,OAKLANDS CARE HOME,CARE ESTABLISHMENT,OP - East Cambs Locality - Cost of Care,East Cambs - O P Team - Care,Nursing Care
Cambridgeshire County Council,06-May-20,51301364012,-944.95,OAKLANDS CARE HOME,CARE ESTABLISHMENT,OP - East Cambs Locality - Cost of Care,East Cambs - O P Team - Care,Nursing Care
Cambridgeshire County Council,06-May-20,51301364012,-944.95,OAKLANDS CARE HOME,CARE ESTABLISHMENT,OP - East Cambs Locality - Cost of Care,East Cambs - O P Team - Care,Nursing Care
Cambridgeshire County Council,06-May-20,51301364012,-944.95,OAKLANDS CARE HOME,CARE ESTABLISHMENT,OP - East Cambs Locality - Cost of Care,East Cambs - O P Team - Care,Nursing Care
Cambridgeshire County Council,06-May-20,51301364012,-944.95,OAKLANDS CARE HOME,CARE ESTABLISHMENT,OP - East Cambs Locality - Cost of Care,East Cambs - O P Team - Care,Nursing Care
Cambridgeshire County Council,06-May-20,51301364012,-944.95,OAKLANDS CARE HOME,CARE ESTABLISHMENT,OP - East Cambs Locality - Cost of Care,East Cambs - O P Team - Care,Nursing Care
Cambridgeshire County Council,13-May-20,51301367209,-941.84,CHERRY HINTON NURSING HOME,CARE ESTABLISHMENT,OP - City & South Locality - Cost of Care,Older People - City & South - Care,Nursing Care
Cambridgeshire County Council,13-May-20,51301367209,-941.84,CHERRY HINTON NURSING HOME,CARE ESTABLISHMENT,OP - City & South Locality - Cost of Care,Older People - City & South - Care,Nursing Care
Cambridgeshire County Council,13-May-20,51301367209,-941.84,CHERRY HINTON NURSING HOME,CARE ESTABLISHMENT,OP - City & South Locality - Cost of Care,Older People - City & South - Care,Nursing Care
Cambridgeshire County Council,13-May-20,51301367209,-941.84,CHERRY HINTON NURSING HOME,CARE ESTABLISHMENT,OP - City & South Locality - Cost of Care,Older People - City & South - Care,Nursing Care
Cambridgeshire County Council,13-May-20,51301367209,-941.84,CHERRY HINTON NURSING HOME,CARE ESTABLISHMENT,OP - City & South Locality - Cost of Care,Older People - City & South - Care,Nursing Care
Cambridgeshire County Council,13-May-20,51301367661,-939.75,CONQUEST CARE HOMES PETERBOROUGH,CARE ESTABLISHMENT,LD - Fenland Locality - Cost of Care,LD - Fenland  - Care,Residential Care
Cambridgeshire County Council,13-May-20,51301367661,-939.75,CONQUEST CARE HOMES PETERBOROUGH,CARE ESTABLISHMENT,LD - Fenland Locality - Cost of Care,LD - Fenland  - Care,Residential Care
Cambridgeshire County Council,13-May-20,51301367661,-939.75,CONQUEST CARE HOMES PETERBOROUGH,CARE ESTABLISHMENT,LD - Fenland Locality - Cost of Care,LD - Fenland  - Care,Residential Care
Cambridgeshire County Council,13-May-20,51301367661,-939.75,CONQUEST CARE HOMES PETERBOROUGH,CARE ESTABLISHMENT,LD - Fenland Locality - Cost of Care,LD - Fenland  - Care,Residential Care
Cambridgeshire County Council,13-May-20,51301367162,-939.20,THE CAMBRIDGE NURSING CENTRE,CARE ESTABLISHMENT,OPMH - City & South,Older People Mental Health City & South,Nursing Care
Cambridgeshire County Council,13-May-20,51301367162,-939.20,THE CAMBRIDGE NURSING CENTRE,CARE ESTABLISHMENT,OPMH - City & South,Older People Mental Health City & South,Nursing Care
Cambridgeshire County Council,13-May-20,51301367162,-939.20,THE CAMBRIDGE NURSING CENTRE,CARE ESTABLISHMENT,OPMH - City & South,Older People Mental Health City & South,Nursing Care
Cambridgeshire County Council,13-May-20,51301367162,-939.20,THE CAMBRIDGE NURSING CENTRE,CARE ESTABLISHMENT,OPMH - City & South,Older People Mental Health City & South,Nursing Care
Cambridgeshire County Council,13-May-20,51301367162,-939.20,THE CAMBRIDGE NURSING CENTRE,CARE ESTABLISHMENT,OPMH - City & South,Older People Mental Health City & South,Nursing Care
Cambridgeshire County Council,13-May-20,51301367162,-939.20,THE CAMBRIDGE NURSING CENTRE,CARE ESTABLISHMENT,OPMH - City & South,Older People Mental Health City & South,Nursing Care
Cambridgeshire County Council,13-May-20,51301367162,-939.20,THE CAMBRIDGE NURSING CENTRE,CARE ESTABLISHMENT,OPMH - City & South,Older People Mental Health City & South,Nursing Care
Cambridgeshire County Council,13-May-20,51301367162,-939.20,THE CAMBRIDGE NURSING CENTRE,CARE ESTABLISHMENT,OPMH - City & South,Older People Mental Health City & South,Nursing Care
Cambridgeshire County Council,13-May-20,51301367162,-939.20,THE CAMBRIDGE NURSING CENTRE,CARE ESTABLISHMENT,OPMH - City & South,Older People Mental Health City & South,Nursing Care
Cambridgeshire County Council,13-May-20,51301367162,-939.20,THE CAMBRIDGE NURSING CENTRE,CARE ESTABLISHMENT,OPMH - City & South,Older People Mental Health City & South,Nursing Care
Cambridgeshire County Council,13-May-20,51301367162,-939.20,THE CAMBRIDGE NURSING CENTRE,CARE ESTABLISHMENT,OPMH - City & South,Older People Mental Health City & South,Nursing Care
Cambridgeshire County Council,13-May-20,51301367162,-939.20,THE CAMBRIDGE NURSING CENTRE,CARE ESTABLISHMENT,OPMH - City & South,Older People Mental Health City & South,Nursing Care
Cambridgeshire County Council,13-May-20,51301367162,-939.20,THE CAMBRIDGE NURSING CENTRE,CARE ESTABLISHMENT,OPMH - City & South,Older People Mental Health City & South,Nursing Care
Cambridgeshire County Council,13-May-20,51301367162,-939.20,THE CAMBRIDGE NURSING CENTRE,CARE ESTABLISHMENT,OPMH - City & South,Older People Mental Health City & South,Nursing Care
Cambridgeshire County Council,13-May-20,51301367162,-939.20,THE CAMBRIDGE NURSING CENTRE,CARE ESTABLISHMENT,OPMH - City & South,Older People Mental Health City & South,Nursing Care
Cambridgeshire County Council,13-May-20,51301367162,-939.20,THE CAMBRIDGE NURSING CENTRE,CARE ESTABLISHMENT,OPMH - City & South,Older People Mental Health City & South,Nursing Care
Cambridgeshire County Council,13-May-20,51301367162,-939.20,THE CAMBRIDGE NURSING CENTRE,CARE ESTABLISHMENT,OPMH - City & South,Older People Mental Health City & South,Nursing Care
Cambridgeshire County Council,13-May-20,51301367162,-939.20,THE CAMBRIDGE NURSING CENTRE,CARE ESTABLISHMENT,OPMH - City & South,Older People Mental Health City & South,Nursing Care
Cambridgeshire County Council,13-May-20,51301367162,-939.20,THE CAMBRIDGE NURSING CENTRE,CARE ESTABLISHMENT,OPMH - City & South,Older People Mental Health City & South,Nursing Care
Cambridgeshire County Council,13-May-20,51301367162,-939.20,THE CAMBRIDGE NURSING CENTRE,CARE ESTABLISHMENT,OPMH - City & South,Older People Mental Health City & South,Nursing Care
Cambridgeshire County Council,13-May-20,51301367162,-939.20,THE CAMBRIDGE NURSING CENTRE,CARE ESTABLISHMENT,OPMH - City & South,Older People Mental Health City & South,Nursing Care
Cambridgeshire County Council,13-May-20,51301367162,-939.20,THE CAMBRIDGE NURSING CENTRE,CARE ESTABLISHMENT,OPMH - City & South,Older People Mental Health City & South,Nursing Care
Cambridgeshire County Council,13-May-20,51301367162,-939.20,THE CAMBRIDGE NURSING CENTRE,CARE ESTABLISHMENT,OPMH - City & South,Older People Mental Health City & South,Nursing Care
Cambridgeshire County Council,13-May-20,51301367162,-939.20,THE CAMBRIDGE NURSING CENTRE,CARE ESTABLISHMENT,OPMH - City & South,Older People Mental Health City & South,Nursing Care
Cambridgeshire County Council,13-May-20,51301367162,-939.20,THE CAMBRIDGE NURSING CENTRE,CARE ESTABLISHMENT,OPMH - City & South,Older People Mental Health City & South,Nursing Care
Cambridgeshire County Council,13-May-20,51301367162,-939.20,THE CAMBRIDGE NURSING CENTRE,CARE ESTABLISHMENT,OPMH - City & South,Older People Mental Health City & South,Nursing Care
Cambridgeshire County Council,13-May-20,51301367162,-939.20,THE CAMBRIDGE NURSING CENTRE,CARE ESTABLISHMENT,OPMH - City & South,Older People Mental Health City & South,Nursing Care
Cambridgeshire County Council,13-May-20,51301367162,-939.20,THE CAMBRIDGE NURSING CENTRE,CARE ESTABLISHMENT,OPMH - City & South,Older People Mental Health City & South,Nursing Care
Cambridgeshire County Council,13-May-20,51301367162,-939.20,THE CAMBRIDGE NURSING CENTRE,CARE ESTABLISHMENT,OPMH - City & South,Older People Mental Health City & South,Nursing Care
Cambridgeshire County Council,13-May-20,51301367162,-939.20,THE CAMBRIDGE NURSING CENTRE,CARE ESTABLISHMENT,OPMH - City & South,Older People Mental Health City & South,Nursing Care
Cambridgeshire County Council,13-May-20,51301367162,-939.20,THE CAMBRIDGE NURSING CENTRE,CARE ESTABLISHMENT,OPMH - City & South,Older People Mental Health City & South,Nursing Care
Cambridgeshire County Council,13-May-20,51301367162,-939.20,THE CAMBRIDGE NURSING CENTRE,CARE ESTABLISHMENT,OPMH - City & South,Older People Mental Health City & South,Nursing Care
Cambridgeshire County Council,13-May-20,51301367162,-939.20,THE CAMBRIDGE NURSING CENTRE,CARE ESTABLISHMENT,OPMH - City & South,Older People Mental Health City & South,Nursing Care
Cambridgeshire County Council,13-May-20,51301367162,-939.20,THE CAMBRIDGE NURSING CENTRE,CARE ESTABLISHMENT,OPMH - City & South,Older People Mental Health City & South,Nursing Care
Cambridgeshire County Council,13-May-20,51301367162,-939.20,THE CAMBRIDGE NURSING CENTRE,CARE ESTABLISHMENT,OPMH - City & South,Older People Mental Health City & South,Nursing Care
Cambridgeshire County Council,13-May-20,51301367162,-939.20,THE CAMBRIDGE NURSING CENTRE,CARE ESTABLISHMENT,OPMH - City & South,Older People Mental Health City & South,Nursing Care
Cambridgeshire County Council,13-May-20,51301367162,-939.20,THE CAMBRIDGE NURSING CENTRE,CARE ESTABLISHMENT,OPMH - City & South,Older People Mental Health City & South,Nursing Care
Cambridgeshire County Council,13-May-20,51301367162,-939.20,THE CAMBRIDGE NURSING CENTRE,CARE ESTABLISHMENT,OPMH - City & South,Older People Mental Health City & South,Nursing Care
Cambridgeshire County Council,13-May-20,51301367162,-939.20,THE CAMBRIDGE NURSING CENTRE,CARE ESTABLISHMENT,OPMH - City & South,Older People Mental Health City & South,Nursing Care
Cambridgeshire County Council,13-May-20,51301367162,-939.20,THE CAMBRIDGE NURSING CENTRE,CARE ESTABLISHMENT,OPMH - City & South,Older People Mental Health City & South,Nursing Care
Cambridgeshire County Council,13-May-20,51301367162,-939.20,THE CAMBRIDGE NURSING CENTRE,CARE ESTABLISHMENT,OPMH - City & South,Older People Mental Health City & South,Nursing Care
Cambridgeshire County Council,13-May-20,51301367162,-939.20,THE CAMBRIDGE NURSING CENTRE,CARE ESTABLISHMENT,OPMH - City & South,Older People Mental Health City & South,Nursing Care
Cambridgeshire County Council,13-May-20,51301367162,-939.20,THE CAMBRIDGE NURSING CENTRE,CARE ESTABLISHMENT,OPMH - City & South,Older People Mental Health City & South,Nursing Care
Cambridgeshire County Council,13-May-20,51301367162,-939.20,THE CAMBRIDGE NURSING CENTRE,CARE ESTABLISHMENT,OPMH - City & South,Older People Mental Health City & South,Nursing Care
Cambridgeshire County Council,13-May-20,51301367162,-939.20,THE CAMBRIDGE NURSING CENTRE,CARE ESTABLISHMENT,OPMH - City & South,Older People Mental Health City & South,Nursing Care
Cambridgeshire County Council,13-May-20,51301367162,-939.20,THE CAMBRIDGE NURSING CENTRE,CARE ESTABLISHMENT,OPMH - City & South,Older People Mental Health City & South,Nursing Care
Cambridgeshire County Council,13-May-20,51301367162,-939.20,THE CAMBRIDGE NURSING CENTRE,CARE ESTABLISHMENT,OPMH - City & South,Older People Mental Health City & South,Nursing Care
Cambridgeshire County Council,13-May-20,51301367162,-939.20,THE CAMBRIDGE NURSING CENTRE,CARE ESTABLISHMENT,OPMH - City & South,Older People Mental Health City & South,Nursing Care
Cambridgeshire County Council,13-May-20,51301367162,-939.20,THE CAMBRIDGE NURSING CENTRE,CARE ESTABLISHMENT,OPMH - City & South,Older People Mental Health City & South,Nursing Care
Cambridgeshire County Council,13-May-20,51301367162,-939.20,THE CAMBRIDGE NURSING CENTRE,CARE ESTABLISHMENT,OPMH - City & South,Older People Mental Health City & South,Nursing Care
Cambridgeshire County Council,13-May-20,51301367162,-939.20,THE CAMBRIDGE NURSING CENTRE,CARE ESTABLISHMENT,OPMH - City & South,Older People Mental Health City & South,Nursing Care
Cambridgeshire County Council,13-May-20,51301367162,-939.20,THE CAMBRIDGE NURSING CENTRE,CARE ESTABLISHMENT,OPMH - City & South,Older People Mental Health City & South,Nursing Care
Cambridgeshire County Council,13-May-20,51301367162,-939.20,THE CAMBRIDGE NURSING CENTRE,CARE ESTABLISHMENT,OPMH - City & South,Older People Mental Health City & South,Nursing Care
Cambridgeshire County Council,13-May-20,51301367162,-939.20,THE CAMBRIDGE NURSING CENTRE,CARE ESTABLISHMENT,OPMH - City & South,Older People Mental Health City & South,Nursing Care
Cambridgeshire County Council,13-May-20,51301367162,-939.20,THE CAMBRIDGE NURSING CENTRE,CARE ESTABLISHMENT,OPMH - City & South,Older People Mental Health City & South,Nursing Care
Cambridgeshire County Council,13-May-20,51301367162,-939.20,THE CAMBRIDGE NURSING CENTRE,CARE ESTABLISHMENT,OPMH - City & South,Older People Mental Health City & South,Nursing Care
Cambridgeshire County Council,13-May-20,51301367162,-939.20,THE CAMBRIDGE NURSING CENTRE,CARE ESTABLISHMENT,OPMH - City & South,Older People Mental Health City & South,Nursing Care
Cambridgeshire County Council,13-May-20,51301367162,-939.20,THE CAMBRIDGE NURSING CENTRE,CARE ESTABLISHMENT,OPMH - City & South,Older People Mental Health City & South,Nursing Care
Cambridgeshire County Council,13-May-20,51301367162,-939.20,THE CAMBRIDGE NURSING CENTRE,CARE ESTABLISHMENT,OPMH - City & South,Older People Mental Health City & South,Nursing Care
Cambridgeshire County Council,13-May-20,51301367162,-939.20,THE CAMBRIDGE NURSING CENTRE,CARE ESTABLISHMENT,OPMH - City & South,Older People Mental Health City & South,Nursing Care
Cambridgeshire County Council,13-May-20,51301367162,-939.20,THE CAMBRIDGE NURSING CENTRE,CARE ESTABLISHMENT,OPMH - City & South,Older People Mental Health City & South,Nursing Care
Cambridgeshire County Council,13-May-20,51301367162,-939.20,THE CAMBRIDGE NURSING CENTRE,CARE ESTABLISHMENT,OPMH - City & South,Older People Mental Health City & South,Nursing Care
Cambridgeshire County Council,13-May-20,51301367162,-939.20,THE CAMBRIDGE NURSING CENTRE,CARE ESTABLISHMENT,OPMH - City & South,Older People Mental Health City & South,Nursing Care
Cambridgeshire County Council,13-May-20,51301367162,-939.20,THE CAMBRIDGE NURSING CENTRE,CARE ESTABLISHMENT,OPMH - City & South,Older People Mental Health City & South,Nursing Care
Cambridgeshire County Council,13-May-20,51301367162,-939.20,THE CAMBRIDGE NURSING CENTRE,CARE ESTABLISHMENT,OPMH - City & South,Older People Mental Health City & South,Nursing Care
Cambridgeshire County Council,13-May-20,51301367162,-939.20,THE CAMBRIDGE NURSING CENTRE,CARE ESTABLISHMENT,OPMH - City & South,Older People Mental Health City & South,Nursing Care
Cambridgeshire County Council,13-May-20,51301367162,-939.20,THE CAMBRIDGE NURSING CENTRE,CARE ESTABLISHMENT,OPMH - City & South,Older People Mental Health City & South,Nursing Care
Cambridgeshire County Council,13-May-20,51301367162,-939.20,THE CAMBRIDGE NURSING CENTRE,CARE ESTABLISHMENT,OPMH - City & South,Older People Mental Health City & South,Nursing Care
Cambridgeshire County Council,13-May-20,51301367162,-939.20,THE CAMBRIDGE NURSING CENTRE,CARE ESTABLISHMENT,OPMH - City & South,Older People Mental Health City & South,Nursing Care
Cambridgeshire County Council,13-May-20,51301367162,-939.20,THE CAMBRIDGE NURSING CENTRE,CARE ESTABLISHMENT,OPMH - City & South,Older People Mental Health City & South,Nursing Care
Cambridgeshire County Council,13-May-20,51301367162,-939.20,THE CAMBRIDGE NURSING CENTRE,CARE ESTABLISHMENT,OPMH - City & South,Older People Mental Health City & South,Nursing Care
Cambridgeshire County Council,13-May-20,51301367162,-939.20,THE CAMBRIDGE NURSING CENTRE,CARE ESTABLISHMENT,OPMH - City & South,Older People Mental Health City & South,Nursing Care
Cambridgeshire County Council,13-May-20,51301367162,-939.20,THE CAMBRIDGE NURSING CENTRE,CARE ESTABLISHMENT,OPMH - City & South,Older People Mental Health City & South,Nursing Care
Cambridgeshire County Council,13-May-20,51301367162,-939.20,THE CAMBRIDGE NURSING CENTRE,CARE ESTABLISHMENT,OPMH - City & South,Older People Mental Health City & South,Nursing Care
Cambridgeshire County Council,13-May-20,51301367162,-939.20,THE CAMBRIDGE NURSING CENTRE,CARE ESTABLISHMENT,OPMH - City & South,Older People Mental Health City & South,Nursing Care
Cambridgeshire County Council,13-May-20,51301367162,-939.20,THE CAMBRIDGE NURSING CENTRE,CARE ESTABLISHMENT,OPMH - City & South,Older People Mental Health City & South,Nursing Care
Cambridgeshire County Council,13-May-20,51301367162,-939.20,THE CAMBRIDGE NURSING CENTRE,CARE ESTABLISHMENT,OPMH - City & South,Older People Mental Health City & South,Nursing Care
Cambridgeshire County Council,13-May-20,51301367162,-939.20,THE CAMBRIDGE NURSING CENTRE,CARE ESTABLISHMENT,OPMH - City & South,Older People Mental Health City & South,Nursing Care
Cambridgeshire County Council,13-May-20,51301367162,-939.20,THE CAMBRIDGE NURSING CENTRE,CARE ESTABLISHMENT,OPMH - City & South,Older People Mental Health City & South,Nursing Care
Cambridgeshire County Council,13-May-20,51301367162,-939.20,THE CAMBRIDGE NURSING CENTRE,CARE ESTABLISHMENT,OPMH - City & South,Older People Mental Health City & South,Nursing Care
Cambridgeshire County Council,13-May-20,51301367162,-939.20,THE CAMBRIDGE NURSING CENTRE,CARE ESTABLISHMENT,OPMH - City & South,Older People Mental Health City & South,Nursing Care
Cambridgeshire County Council,13-May-20,51301367162,-939.20,THE CAMBRIDGE NURSING CENTRE,CARE ESTABLISHMENT,OPMH - City & South,Older People Mental Health City & South,Nursing Care
Cambridgeshire County Council,13-May-20,51301367162,-939.20,THE CAMBRIDGE NURSING CENTRE,CARE ESTABLISHMENT,OPMH - City & South,Older People Mental Health City & South,Nursing Care
Cambridgeshire County Council,19-May-20,51301374460,-938.91,Redacted Personal Data,SERVICE USER,Physical Disablity - Cost of Care,Countywide PD Service - Care,Direct Payments
Cambridgeshire County Council,19-May-20,51301374376,-937.78,Redacted Personal Data,SERVICE USER,Physical Disablity - Cost of Care,Countywide PD Service - Care,Direct Payments
Cambridgeshire County Council,19-May-20,51301374376,-937.78,Redacted Personal Data,SERVICE USER,Physical Disablity - Cost of Care,Countywide PD Service - Care,Direct Payments
Cambridgeshire County Council,19-May-20,51301374376,-937.78,Redacted Personal Data,SERVICE USER,Physical Disablity - Cost of Care,Countywide PD Service - Care,Direct Payments
Cambridgeshire County Council,19-May-20,51301374376,-937.78,Redacted Personal Data,SERVICE USER,Physical Disablity - Cost of Care,Countywide PD Service - Care,Direct Payments
Cambridgeshire County Council,19-May-20,51301374376,-937.78,Redacted Personal Data,SERVICE USER,Physical Disablity - Cost of Care,Countywide PD Service - Care,Direct Payments
Cambridgeshire County Council,19-May-20,51301374319,-935.12,Redacted Personal Data,SERVICE USER,Physical Disablity - Cost of Care,Countywide PD Service - Care,Direct Payments
Cambridgeshire County Council,19-May-20,51301374319,-935.12,Redacted Personal Data,SERVICE USER,Physical Disablity - Cost of Care,Countywide PD Service - Care,Direct Payments
Cambridgeshire County Council,19-May-20,51301374319,-935.12,Redacted Personal Data,SERVICE USER,Physical Disablity - Cost of Care,Countywide PD Service - Care,Direct Payments
Cambridgeshire County Council,19-May-20,51301374319,-935.12,Redacted Personal Data,SERVICE USER,Physical Disablity - Cost of Care,Countywide PD Service - Care,Direct Payments
Cambridgeshire County Council,19-May-20,51301374319,-935.12,Redacted Personal Data,SERVICE USER,Physical Disablity - Cost of Care,Countywide PD Service - Care,Direct Payments
Cambridgeshire County Council,19-May-20,51301374099,-933.64,Redacted Personal Data,PARENT/GUARDIAN,LD - Hunts Locality - Cost of Care,LD - Huntingdonshire - Care,Direct Payments
Cambridgeshire County Council,19-May-20,51301374099,-933.64,Redacted Personal Data,PARENT/GUARDIAN,LD - Hunts Locality - Cost of Care,LD - Huntingdonshire - Care,Direct Payments
Cambridgeshire County Council,19-May-20,51301374099,-933.64,Redacted Personal Data,PARENT/GUARDIAN,LD - Hunts Locality - Cost of Care,LD - Huntingdonshire - Care,Direct Payments
Cambridgeshire County Council,19-May-20,51301374099,-933.64,Redacted Personal Data,PARENT/GUARDIAN,LD - Hunts Locality - Cost of Care,LD - Huntingdonshire - Care,Direct Payments
Cambridgeshire County Council,19-May-20,51301374099,-933.64,Redacted Personal Data,PARENT/GUARDIAN,LD - Hunts Locality - Cost of Care,LD - Huntingdonshire - Care,Direct Payments
Cambridgeshire County Council,19-May-20,51301374108,-933.34,Redacted Personal Data,SERVICE USER,LD - South Locality - Cost of Care,LD - South Cambs - Care,Direct Payments
Cambridgeshire County Council,19-May-20,51301374108,-933.34,Redacted Personal Data,SERVICE USER,LD - South Locality - Cost of Care,LD - South Cambs - Care,Direct Payments
Cambridgeshire County Council,19-May-20,51301374108,-933.34,Redacted Personal Data,SERVICE USER,LD - South Locality - Cost of Care,LD - South Cambs - Care,Direct Payments
Cambridgeshire County Council,19-May-20,51301374108,-933.34,Redacted Personal Data,SERVICE USER,LD - South Locality - Cost of Care,LD - South Cambs - Care,Direct Payments
Cambridgeshire County Council,19-May-20,51301374108,-933.34,Redacted Personal Data,SERVICE USER,LD - South Locality - Cost of Care,LD - South Cambs - Care,Direct Payments
Cambridgeshire County Council,19-May-20,51301374218,-926.25,Redacted Personal Data,SERVICE USER,LD - East Locality - Cost of Care,LD - East Cambs - Care,Direct Payments
Cambridgeshire County Council,19-May-20,51301374218,-926.25,Redacted Personal Data,SERVICE USER,LD - East Locality - Cost of Care,LD - East Cambs - Care,Direct Payments
Cambridgeshire County Council,19-May-20,51301374218,-926.25,Redacted Personal Data,SERVICE USER,LD - East Locality - Cost of Care,LD - East Cambs - Care,Direct Payments
Cambridgeshire County Council,19-May-20,51301374218,-926.25,Redacted Personal Data,SERVICE USER,LD - East Locality - Cost of Care,LD - East Cambs - Care,Direct Payments
Cambridgeshire County Council,19-May-20,51301374218,-926.25,Redacted Personal Data,SERVICE USER,LD - East Locality - Cost of Care,LD - East Cambs - Care,Direct Payments
Cambridgeshire County Council,14-May-20,51301369043,-925.00,CROMWELL HOUSE HEALTH CARE,CARE ESTABLISHMENT,OP - Hunts Locality - Cost of Care,Hunts OP Team - Care,Nursing Care
Cambridgeshire County Council,07-May-20,51301364504,-920.79,ATLAS HOME SUPPORT,CARE ESTABLISHMENT,LD - South Locality - Cost of Care,LD - South Cambs - Care,Domiciliary Care
Cambridgeshire County Council,07-May-20,51301364504,-920.79,ATLAS HOME SUPPORT,CARE ESTABLISHMENT,LD - South Locality - Cost of Care,LD - South Cambs - Care,Domiciliary Care
Cambridgeshire County Council,07-May-20,51301364504,-920.79,ATLAS HOME SUPPORT,CARE ESTABLISHMENT,LD - South Locality - Cost of Care,LD - South Cambs - Care,Domiciliary Care
Cambridgeshire County Council,13-May-20,51301367215,-919.21,BARCHESTER HEALTHCARE HOMES LTD,CARE ESTABLISHMENT,OPMH - City & South,Older People Mental Health City & South,Nursing Care
Cambridgeshire County Council,13-May-20,51301367215,-919.21,BARCHESTER HEALTHCARE HOMES LTD,CARE ESTABLISHMENT,OPMH - City & South,Older People Mental Health City & South,Nursing Care
Cambridgeshire County Council,13-May-20,51301367215,-919.21,BARCHESTER HEALTHCARE HOMES LTD,CARE ESTABLISHMENT,OPMH - City & South,Older People Mental Health City & South,Nursing Care
Cambridgeshire County Council,13-May-20,51301367215,-919.21,BARCHESTER HEALTHCARE HOMES LTD,CARE ESTABLISHMENT,OPMH - City & South,Older People Mental Health City & South,Nursing Care
Cambridgeshire County Council,13-May-20,51301367215,-919.21,BARCHESTER HEALTHCARE HOMES LTD,CARE ESTABLISHMENT,OPMH - City & South,Older People Mental Health City & South,Nursing Care
Cambridgeshire County Council,13-May-20,51301367215,-919.21,BARCHESTER HEALTHCARE HOMES LTD,CARE ESTABLISHMENT,OPMH - City & South,Older People Mental Health City & South,Nursing Care
Cambridgeshire County Council,14-May-20,51301369068,-917.00,ORCHARD HOUSE NURSING HOME,CARE ESTABLISHMENT,OP - City & South Locality - Cost of Care,Older People - City & South - Care,Residential Care
Cambridgeshire County Council,14-May-20,51301369068,-917.00,ORCHARD HOUSE NURSING HOME,CARE ESTABLISHMENT,OP - City & South Locality - Cost of Care,Older People - City & South - Care,Residential Care
Cambridgeshire County Council,14-May-20,51301369068,-917.00,ORCHARD HOUSE NURSING HOME,CARE ESTABLISHMENT,OP - City & South Locality - Cost of Care,Older People - City & South - Care,Residential Care
Cambridgeshire County Council,14-May-20,51301369068,-917.00,ORCHARD HOUSE NURSING HOME,CARE ESTABLISHMENT,OP - City & South Locality - Cost of Care,Older People - City & South - Care,Residential Care
Cambridgeshire County Council,14-May-20,51301369068,-917.00,ORCHARD HOUSE NURSING HOME,CARE ESTABLISHMENT,OP - City & South Locality - Cost of Care,Older People - City & South - Care,Residential Care
Cambridgeshire County Council,14-May-20,51301369068,-917.00,ORCHARD HOUSE NURSING HOME,CARE ESTABLISHMENT,OP - City & South Locality - Cost of Care,Older People - City & South - Care,Residential Care
Cambridgeshire County Council,14-May-20,51301369068,-917.00,ORCHARD HOUSE NURSING HOME,CARE ESTABLISHMENT,OP - City & South Locality - Cost of Care,Older People - City & South - Care,Residential Care
Cambridgeshire County Council,14-May-20,51301369068,-917.00,ORCHARD HOUSE NURSING HOME,CARE ESTABLISHMENT,OP - City & South Locality - Cost of Care,Older People - City & South - Care,Residential Care
Cambridgeshire County Council,14-May-20,51301369068,-917.00,ORCHARD HOUSE NURSING HOME,CARE ESTABLISHMENT,OP - City & South Locality - Cost of Care,Older People - City & South - Care,Residential Care
Cambridgeshire County Council,14-May-20,51301369068,-917.00,ORCHARD HOUSE NURSING HOME,CARE ESTABLISHMENT,OP - City & South Locality - Cost of Care,Older People - City & South - Care,Residential Care
Cambridgeshire County Council,14-May-20,51301369068,-917.00,ORCHARD HOUSE NURSING HOME,CARE ESTABLISHMENT,OP - City & South Locality - Cost of Care,Older People - City & South - Care,Residential Care
Cambridgeshire County Council,14-May-20,51301369068,-917.00,ORCHARD HOUSE NURSING HOME,CARE ESTABLISHMENT,OP - City & South Locality - Cost of Care,Older People - City & South - Care,Residential Care
Cambridgeshire County Council,14-May-20,51301369068,-917.00,ORCHARD HOUSE NURSING HOME,CARE ESTABLISHMENT,OP - City & South Locality - Cost of Care,Older People - City & South - Care,Residential Care
Cambridgeshire County Council,14-May-20,51301369068,-917.00,ORCHARD HOUSE NURSING HOME,CARE ESTABLISHMENT,OP - City & South Locality - Cost of Care,Older People - City & South - Care,Residential Care
Cambridgeshire County Council,14-May-20,51301369068,-917.00,ORCHARD HOUSE NURSING HOME,CARE ESTABLISHMENT,OP - City & South Locality - Cost of Care,Older People - City & South - Care,Residential Care
Cambridgeshire County Council,14-May-20,51301369068,-917.00,ORCHARD HOUSE NURSING HOME,CARE ESTABLISHMENT,OP - City & South Locality - Cost of Care,Older People - City & South - Care,Residential Care
Cambridgeshire County Council,14-May-20,51301369068,-917.00,ORCHARD HOUSE NURSING HOME,CARE ESTABLISHMENT,OP - City & South Locality - Cost of Care,Older People - City & South - Care,Residential Care
Cambridgeshire County Council,14-May-20,51301369068,-917.00,ORCHARD HOUSE NURSING HOME,CARE ESTABLISHMENT,OP - City & South Locality - Cost of Care,Older People - City & South - Care,Residential Care
Cambridgeshire County Council,14-May-20,51301369068,-917.00,ORCHARD HOUSE NURSING HOME,CARE ESTABLISHMENT,OP - City & South Locality - Cost of Care,Older People - City & South - Care,Residential Care
Cambridgeshire County Council,13-May-20,51301367802,-915.06,PAULINE BURNETT HOUSE,CARE ESTABLISHMENT,LD - South Locality - Cost of Care,LD - South Cambs - Care,Residential Care
Cambridgeshire County Council,13-May-20,51301367802,-915.06,PAULINE BURNETT HOUSE,CARE ESTABLISHMENT,LD - South Locality - Cost of Care,LD - South Cambs - Care,Residential Care
Cambridgeshire County Council,13-May-20,51301367802,-915.06,PAULINE BURNETT HOUSE,CARE ESTABLISHMENT,LD - South Locality - Cost of Care,LD - South Cambs - Care,Residential Care
Cambridgeshire County Council,13-May-20,51301367802,-915.06,PAULINE BURNETT HOUSE,CARE ESTABLISHMENT,LD - South Locality - Cost of Care,LD - South Cambs - Care,Residential Care
Cambridgeshire County Council,26-May-20,51301375843,-912.45,LOCATE ACCOMMODATION,CARE ESTABLISHMENT,Unaccompanied Asylum Seeking Children,Unaccompanied Asylum Seeking Children >18 Leaving Care,Living Spport Grants - Financial Assistance 18+
Cambridgeshire County Council,15-May-20,51301370927,-908.36,Ambito Care and Education,COMPANY,LD - South Locality - Cost of Care,LD - South Cambs - Care,Domiciliary Care
Cambridgeshire County Council,15-May-20,51301370927,-908.36,Ambito Care and Education,COMPANY,LD - South Locality - Cost of Care,LD - South Cambs - Care,Domiciliary Care
Cambridgeshire County Council,15-May-20,51301370927,-908.36,Ambito Care and Education,COMPANY,LD - South Locality - Cost of Care,LD - South Cambs - Care,Domiciliary Care
Cambridgeshire County Council,15-May-20,51301371233,-907.93,Kwikfix Recruitment Services Ltd,COMPANY,OP - Fenland Locality - Cost of Care,Older People - Fenland - Care,Domiciliary Care
Cambridgeshire County Council,19-May-20,51301374422,-903.00,Redacted Personal Data,SERVICE USER,Physical Disablity - Cost of Care,Countywide PD Service - Care,Direct Payments
Cambridgeshire County Council,19-May-20,51301374422,-903.00,Redacted Personal Data,SERVICE USER,Physical Disablity - Cost of Care,Countywide PD Service - Care,Direct Payments
Cambridgeshire County Council,19-May-20,51301374422,-903.00,Redacted Personal Data,SERVICE USER,Physical Disablity - Cost of Care,Countywide PD Service - Care,Direct Payments
Cambridgeshire County Council,19-May-20,51301374422,-903.00,Redacted Personal Data,SERVICE USER,Physical Disablity - Cost of Care,Countywide PD Service - Care,Direct Payments
Cambridgeshire County Council,19-May-20,51301374422,-903.00,Redacted Personal Data,SERVICE USER,Physical Disablity - Cost of Care,Countywide PD Service - Care,Direct Payments
Cambridgeshire County Council,19-May-20,51301374227,-902.76,Redacted Personal Data,SERVICE USER,Physical Disablity - Cost of Care,Countywide PD Service - Care,Direct Payments
Cambridgeshire County Council,19-May-20,51301374227,-902.76,Redacted Personal Data,SERVICE USER,Physical Disablity - Cost of Care,Countywide PD Service - Care,Direct Payments
Cambridgeshire County Council,19-May-20,51301374227,-902.76,Redacted Personal Data,SERVICE USER,Physical Disablity - Cost of Care,Countywide PD Service - Care,Direct Payments
Cambridgeshire County Council,19-May-20,51301374227,-902.76,Redacted Personal Data,SERVICE USER,Physical Disablity - Cost of Care,Countywide PD Service - Care,Direct Payments
Cambridgeshire County Council,19-May-20,51301374227,-902.76,Redacted Personal Data,SERVICE USER,Physical Disablity - Cost of Care,Countywide PD Service - Care,Direct Payments
Cambridgeshire County Council,19-May-20,51301374501,-892.50,Redacted Personal Data,SERVICE USER,LD - Hunts Locality - Cost of Care,LD - Huntingdonshire - Care,Direct Payments
Cambridgeshire County Council,19-May-20,51301374001,-887.14,Redacted Personal Data,INDIVIDUAL,OP - City & South Locality - Cost of Care,Older People - City & South - Care,Direct Payments
Cambridgeshire County Council,13-May-20,51301367837,-885.39,CONQUEST CARE HOMES PETERBOROUGH,CARE ESTABLISHMENT,LD - Fenland Locality - Cost of Care,LD - Fenland  - Care,Residential Care
Cambridgeshire County Council,13-May-20,51301367283,-884.44,BARCHESTER HEALTHCARE HOMES LTD,CARE ESTABLISHMENT,OP - East Cambs Locality - Cost of Care,East Cambs - O P Team - Care,Nursing Care
Cambridgeshire County Council,13-May-20,51301367283,-884.44,BARCHESTER HEALTHCARE HOMES LTD,CARE ESTABLISHMENT,OP - East Cambs Locality - Cost of Care,East Cambs - O P Team - Care,Nursing Care
Cambridgeshire County Council,13-May-20,51301367283,-884.44,BARCHESTER HEALTHCARE HOMES LTD,CARE ESTABLISHMENT,OP - East Cambs Locality - Cost of Care,East Cambs - O P Team - Care,Nursing Care
Cambridgeshire County Council,13-May-20,51301367283,-884.44,BARCHESTER HEALTHCARE HOMES LTD,CARE ESTABLISHMENT,OP - East Cambs Locality - Cost of Care,East Cambs - O P Team - Care,Nursing Care
Cambridgeshire County Council,19-May-20,51301374220,-876.54,Redacted Personal Data,FOSTER PARENT,Physical Disablity - Cost of Care,Countywide PD Service - Care,Direct Payments
Cambridgeshire County Council,19-May-20,51301374220,-876.54,Redacted Personal Data,FOSTER PARENT,Physical Disablity - Cost of Care,Countywide PD Service - Care,Direct Payments
Cambridgeshire County Council,19-May-20,51301374220,-876.54,Redacted Personal Data,FOSTER PARENT,Physical Disablity - Cost of Care,Countywide PD Service - Care,Direct Payments
Cambridgeshire County Council,19-May-20,51301374220,-876.54,Redacted Personal Data,FOSTER PARENT,Physical Disablity - Cost of Care,Countywide PD Service - Care,Direct Payments
Cambridgeshire County Council,19-May-20,51301374220,-876.54,Redacted Personal Data,FOSTER PARENT,Physical Disablity - Cost of Care,Countywide PD Service - Care,Direct Payments
Cambridgeshire County Council,19-May-20,51301374115,-875.92,Redacted Personal Data,SERVICE USER,LD - Hunts Locality - Cost of Care,LD - Huntingdonshire - Care,Direct Payments
Cambridgeshire County Council,19-May-20,51301374115,-875.92,Redacted Personal Data,SERVICE USER,LD - Hunts Locality - Cost of Care,LD - Huntingdonshire - Care,Direct Payments
Cambridgeshire County Council,19-May-20,51301374115,-875.92,Redacted Personal Data,SERVICE USER,LD - Hunts Locality - Cost of Care,LD - Huntingdonshire - Care,Direct Payments
Cambridgeshire County Council,19-May-20,51301374115,-875.92,Redacted Personal Data,SERVICE USER,LD - Hunts Locality - Cost of Care,LD - Huntingdonshire - Care,Direct Payments
Cambridgeshire County Council,19-May-20,51301374115,-875.92,Redacted Personal Data,SERVICE USER,LD - Hunts Locality - Cost of Care,LD - Huntingdonshire - Care,Direct Payments
Cambridgeshire County Council,14-May-20,51301369055,-875.61,GLENNFIELD CARE CENTRE (OP),CARE ESTABLISHMENT,OPMH - Hunts & Fens,Older People Mental Health Fenland,Residential Care
Cambridgeshire County Council,14-May-20,51301369055,-875.61,GLENNFIELD CARE CENTRE (OP),CARE ESTABLISHMENT,OPMH - Hunts & Fens,Older People Mental Health Fenland,Residential Care
Cambridgeshire County Council,14-May-20,51301369055,-875.61,GLENNFIELD CARE CENTRE (OP),CARE ESTABLISHMENT,OPMH - Hunts & Fens,Older People Mental Health Fenland,Residential Care
Cambridgeshire County Council,14-May-20,51301369055,-875.61,GLENNFIELD CARE CENTRE (OP),CARE ESTABLISHMENT,OPMH - Hunts & Fens,Older People Mental Health Fenland,Residential Care
Cambridgeshire County Council,14-May-20,51301369055,-875.61,GLENNFIELD CARE CENTRE (OP),CARE ESTABLISHMENT,OPMH - Hunts & Fens,Older People Mental Health Fenland,Residential Care
Cambridgeshire County Council,14-May-20,51301369055,-875.61,GLENNFIELD CARE CENTRE (OP),CARE ESTABLISHMENT,OPMH - Hunts & Fens,Older People Mental Health Fenland,Residential Care
Cambridgeshire County Council,14-May-20,51301369055,-875.61,GLENNFIELD CARE CENTRE (OP),CARE ESTABLISHMENT,OPMH - Hunts & Fens,Older People Mental Health Fenland,Residential Care
Cambridgeshire County Council,14-May-20,51301369055,-875.61,GLENNFIELD CARE CENTRE (OP),CARE ESTABLISHMENT,OPMH - Hunts & Fens,Older People Mental Health Fenland,Residential Care
Cambridgeshire County Council,14-May-20,51301369055,-875.61,GLENNFIELD CARE CENTRE (OP),CARE ESTABLISHMENT,OPMH - Hunts & Fens,Older People Mental Health Fenland,Residential Care
Cambridgeshire County Council,14-May-20,51301369055,-875.61,GLENNFIELD CARE CENTRE (OP),CARE ESTABLISHMENT,OPMH - Hunts & Fens,Older People Mental Health Fenland,Residential Care
Cambridgeshire County Council,14-May-20,51301369055,-875.61,GLENNFIELD CARE CENTRE (OP),CARE ESTABLISHMENT,OPMH - Hunts & Fens,Older People Mental Health Fenland,Residential Care
Cambridgeshire County Council,14-May-20,51301369055,-875.61,GLENNFIELD CARE CENTRE (OP),CARE ESTABLISHMENT,OPMH - Hunts & Fens,Older People Mental Health Fenland,Residential Care
Cambridgeshire County Council,14-May-20,51301369055,-875.61,GLENNFIELD CARE CENTRE (OP),CARE ESTABLISHMENT,OPMH - Hunts & Fens,Older People Mental Health Fenland,Residential Care
Cambridgeshire County Council,14-May-20,51301369055,-875.61,GLENNFIELD CARE CENTRE (OP),CARE ESTABLISHMENT,OPMH - Hunts & Fens,Older People Mental Health Fenland,Residential Care
Cambridgeshire County Council,14-May-20,51301369055,-875.61,GLENNFIELD CARE CENTRE (OP),CARE ESTABLISHMENT,OPMH - Hunts & Fens,Older People Mental Health Fenland,Residential Care
Cambridgeshire County Council,14-May-20,51301369055,-875.61,GLENNFIELD CARE CENTRE (OP),CARE ESTABLISHMENT,OPMH - Hunts & Fens,Older People Mental Health Fenland,Residential Care
Cambridgeshire County Council,14-May-20,51301369055,-875.61,GLENNFIELD CARE CENTRE (OP),CARE ESTABLISHMENT,OPMH - Hunts & Fens,Older People Mental Health Fenland,Residential Care
Cambridgeshire County Council,14-May-20,51301369055,-875.61,GLENNFIELD CARE CENTRE (OP),CARE ESTABLISHMENT,OPMH - Hunts & Fens,Older People Mental Health Fenland,Residential Care
Cambridgeshire County Council,14-May-20,51301369055,-875.61,GLENNFIELD CARE CENTRE (OP),CARE ESTABLISHMENT,OPMH - Hunts & Fens,Older People Mental Health Fenland,Residential Care
Cambridgeshire County Council,14-May-20,51301369055,-875.61,GLENNFIELD CARE CENTRE (OP),CARE ESTABLISHMENT,OPMH - Hunts & Fens,Older People Mental Health Fenland,Residential Care
Cambridgeshire County Council,14-May-20,51301369055,-875.61,GLENNFIELD CARE CENTRE (OP),CARE ESTABLISHMENT,OPMH - Hunts & Fens,Older People Mental Health Fenland,Residential Care
Cambridgeshire County Council,14-May-20,51301369055,-875.61,GLENNFIELD CARE CENTRE (OP),CARE ESTABLISHMENT,OPMH - Hunts & Fens,Older People Mental Health Fenland,Residential Care
Cambridgeshire County Council,14-May-20,51301369055,-875.61,GLENNFIELD CARE CENTRE (OP),CARE ESTABLISHMENT,OPMH - Hunts & Fens,Older People Mental Health Fenland,Residential Care
Cambridgeshire County Council,14-May-20,51301369055,-875.61,GLENNFIELD CARE CENTRE (OP),CARE ESTABLISHMENT,OPMH - Hunts & Fens,Older People Mental Health Fenland,Residential Care
Cambridgeshire County Council,14-May-20,51301369055,-875.61,GLENNFIELD CARE CENTRE (OP),CARE ESTABLISHMENT,OPMH - Hunts & Fens,Older People Mental Health Fenland,Residential Care
Cambridgeshire County Council,14-May-20,51301369055,-875.61,GLENNFIELD CARE CENTRE (OP),CARE ESTABLISHMENT,OPMH - Hunts & Fens,Older People Mental Health Fenland,Residential Care
Cambridgeshire County Council,14-May-20,51301369055,-875.61,GLENNFIELD CARE CENTRE (OP),CARE ESTABLISHMENT,OPMH - Hunts & Fens,Older People Mental Health Fenland,Residential Care
Cambridgeshire County Council,14-May-20,51301369055,-875.61,GLENNFIELD CARE CENTRE (OP),CARE ESTABLISHMENT,OPMH - Hunts & Fens,Older People Mental Health Fenland,Residential Care
Cambridgeshire County Council,14-May-20,51301369055,-875.61,GLENNFIELD CARE CENTRE (OP),CARE ESTABLISHMENT,OPMH - Hunts & Fens,Older People Mental Health Fenland,Residential Care
Cambridgeshire County Council,14-May-20,51301369055,-875.61,GLENNFIELD CARE CENTRE (OP),CARE ESTABLISHMENT,OPMH - Hunts & Fens,Older People Mental Health Fenland,Residential Care
Cambridgeshire County Council,14-May-20,51301369055,-875.61,GLENNFIELD CARE CENTRE (OP),CARE ESTABLISHMENT,OPMH - Hunts & Fens,Older People Mental Health Fenland,Residential Care
Cambridgeshire County Council,14-May-20,51301369055,-875.61,GLENNFIELD CARE CENTRE (OP),CARE ESTABLISHMENT,OPMH - Hunts & Fens,Older People Mental Health Fenland,Residential Care
Cambridgeshire County Council,14-May-20,51301369055,-875.61,GLENNFIELD CARE CENTRE (OP),CARE ESTABLISHMENT,OPMH - Hunts & Fens,Older People Mental Health Fenland,Residential Care
Cambridgeshire County Council,14-May-20,51301369055,-875.61,GLENNFIELD CARE CENTRE (OP),CARE ESTABLISHMENT,OPMH - Hunts & Fens,Older People Mental Health Fenland,Residential Care
